Workbook

Sheet Macros (hidden)
D6: Your macros are not enabled.
D7: To use the Days Suitable for Fieldwork spreadsheet, you must enable your macros.
D9: Excel 2003
D10: Please go to Tools/Macro/Security and set your macro security to Medium
D11: You must then restart Excel and Enable Macros in this spreadsheet
D13: Excel 2007+
D14: Click the Microsoft Office Button (or File Tab), and then click Excel Options.
D15: In the Trust Center category,click Trust Center Settings,
D16: and then click the Macro Settings category. Select Disalbe Macros with Notification.
D17: You must restart Excel and allow macros/enable Active content.

Sheet Summary
B3: Probable Fieldwork Days Model
J4: version 4.29.16
B6: Scenario | H6: Results
B8: State | I8: ="Probability of Completing Acres ("&fnmonthname(VLOOKUP(cllStartDate,Calculations!$D$56:$F$94,2,FALSE))&" "&DAY(VLOOKUP(cllStartDate,Calculations!$D$56:$F$94,2,FALSE))&" to "&fnmonthname(VLOOKUP(cllEndDate,Calculations!$D$56:$F$94,3,FALSE))&" "&DAY(VLOOKUP(cllEndDate,Calculations!$D$56:$F$94,3,FALSE))&")" -> Probability of Completing Acres (Oct 21 to Nov 24)
B10: Region
B12: Implement description | C12: Row crop planter
B14: Implement width (ft) | C14: 40
B15: Implement speed (mph) | C15: 5.5
B16: Field efficiency | C16: 0.83
B17: Acres worked per hour | C17: =(C15*C14*C16)/8.25 -> 22.13333333
B19: Acres | C19: 2000
B20: Calculated hours needed | C20: =C19/C17 -> 90.36144578
B22: Hours in field per day
C23: =ROUND(MIN(OFFSET(DaylightHours,2,cllStartDate,1,cllEndDate-cllStartDate+1)),1) & " - " & ROUND(MAX(OFFSET(DaylightHours,2,cllStartDate,1,cllEndDate-cllStartDate+1)),1) -> 9.8 - 10.8
J25: ="Cumulative Acres Completed if Starting " & fnmonthname(VLOOKUP(cllStartDate,Calculations!$D$56:$F$94,2,FALSE)) & " " & DAY(VLOOKUP(cllStartDate,Calculations!$D$56:$F$94,2,FALSE)) -> Cumulative Acres Completed if Starting Oct 21
B27: Days worked in 7 | C27: 7 | I27: Completion | J27: and Ending on These Dates
I28: Percentile | J28: =fnmonthname(VLOOKUP(cllEndDate-1,Calculations!$D$56:$F$94,3,FALSE)) & " " & DAY(VLOOKUP(cllEndDate-1,Calculations!$D$56:$F$94,3,FALSE)) -> Nov 17 | K28: =fnmonthname(VLOOKUP(cllEndDate,Calculations!$D$56:$F$94,3,FALSE)) & " " & DAY(VLOOKUP(cllEndDate,Calculations!$D$56:$F$94,3,FALSE)) -> Nov 24 | L28: =fnmonthname(VLOOKUP(cllEndDate+1,Calculations!$D$56:$F$94,3,FALSE)) & " " & DAY(VLOOKUP(cllEndDate+1,Calculations!$D$56:$F$94,3,FALSE)) ->  | M28: =fnmonthname(VLOOKUP(cllEndDate+2,Calculations!$D$56:$F$94,3,FALSE)) & " " & DAY(VLOOKUP(cllEndDate+2,Calculations!$D$56:$F$94,3,FALSE)) -> 
B29: Start date | I29: =SMALL(union(Percentile,{50,60,70,80,85,90,95}),ROW(INDIRECT("1:8"))) -> 50 | J29: =PERCENTILE(rngSumAcres0,1-$I29/100) -> 3978.345753 | K29: =PERCENTILE(rngSumAcres1,1-$I29/100) -> 4519.737402 | L29: =PERCENTILE(rngSumAcres2,1-$I29/100) -> 4617.136496 | M29: =PERCENTILE(rngSumAcres3,1-$I29/100) -> 3716.733463
I30: 60 | J30: 3575.846711 | K30: 4086.498665 | L30: 4090.164654 | M30: 3569.011255
B31: End date | I31: 70 | J31: 3339.150273 | K31: 3631.181505 | L31: 3572.069813 | M31: 3421.289048
I32: 80 | J32: 2719.104078 | K32: 2945.454629 | L32: 2787.175027 | M32: 3087.823765
B33: Days in selected period | C33: =(cllEndDate-cllStartDate+1)*7 -> 35 | I33: 85 | J33: 2356.400425 | K33: 2703.033859 | L33: 2478.42787 | M33: 2828.219586
B34: Average days suitable in period | C34: =ROUND(AVERAGE(rngSumDays1),1) -> 18.6 | I34: 90 | J34: 1863.195813 | K34: 2198.89147 | L34: 2267.699741 | M34: 2568.615408
B35: Average hours suitable in period | C35: =ROUND(AVERAGE(rngSumHours1),0) -> 195 | I35: 91.34329597 | J35: 1677.574538 | K35: 1999.999999 | L35: 2211.763403 | M35: 2498.870358
B36: Years of data history | C36: =COUNT(rngSumAcres1) -> 25 | I36: 95 | J36: 1523.504495 | K36: 1900.323538 | L36: 2063.356747 | M36: 2309.011229

Sheet Help
G2: Objects
G4: State and region
G5: Select your state and USDA crop reporting district from the list of USDA crop reporting districts. If you are unsure, click on the 'Select Region' button. You can select your region by clicking on it in the map.
G7: Help Me Decide
G8: If you are unsure of the speed and field efficiency for your implement, use this button to automatically import engineering estimates.
G9: Field efficiency
G10: Field efficiency is a decimal between one and zero to account for turning around in fields, refilling planters, etc. A field efficiency of .70 for a planter can be translated as 30% of the time in the field is not spent putting seed in the ground.
G13: Acres
G14: Enter the number of acres that you plan to cover with the implement in the time period.
G16: Hours in field per day
G17: Choose between hours of daylight for that period or enter a constant amount of hours per day.
G19: Days worked in 7
G20: Enter the number of days that you typically work in a week, such as 6.5.
G22: Dates
G23: Use the drop-down box to select the beginning and ending dates that you plan to complete fieldwork activity. The model allows dates in seven day increments.
G25: Chart
G26: The chart plots acres completed against the probability of completion for the selections made in the scenario. The green dot marks the acres selected.
G28: Table
G29: The starting date is the same as the one you selected above. The ending date is incremented by one week across the columns with the blue highlighted column being the ending date that was selected. The acres in the table are the acres completed within the starting date and ending date of the column. The rows correspond to the certainty of completing the number of acres with the green row pertaining to the acres entered in the 'Scenario' section.
G31: For additional information, please refer to MU Guide 363 "Fieldwork Days and Machinery Capacity."

Sheet Print (hidden)
B5: Probable Fieldwork Days Model
B6: =NOW() -> 2020-05-26T17:03:20.240
I9: =Summary!J25 -> Cumulative Acres Completed if Starting Oct 21
H10: Completion | I10: and Ending on These Dates
H11: =Summary!I28 -> Percentile | I11: =Summary!J28 -> Nov 17 | J11: =Summary!K28 -> Nov 24 | K11: =Summary!L28 ->  | L11: =Summary!M28 -> 
H12: =Summary!I29 -> 50 | I12: =Summary!J29 -> 3978.345753 | J12: =Summary!K29 -> 4519.737402 | K12: =Summary!L29 -> 4617.136496 | L12: =Summary!M29 -> 3716.733463
H13: =Summary!I30 -> 60 | I13: =Summary!J30 -> 3575.846711 | J13: =Summary!K30 -> 4086.498665 | K13: =Summary!L30 -> 4090.164654 | L13: =Summary!M30 -> 3569.011255
H14: =Summary!I31 -> 70 | I14: =Summary!J31 -> 3339.150273 | J14: =Summary!K31 -> 3631.181505 | K14: =Summary!L31 -> 3572.069813 | L14: =Summary!M31 -> 3421.289048
H15: =Summary!I32 -> 80 | I15: =Summary!J32 -> 2719.104078 | J15: =Summary!K32 -> 2945.454629 | K15: =Summary!L32 -> 2787.175027 | L15: =Summary!M32 -> 3087.823765
H16: =Summary!I33 -> 85 | I16: =Summary!J33 -> 2356.400425 | J16: =Summary!K33 -> 2703.033859 | K16: =Summary!L33 -> 2478.42787 | L16: =Summary!M33 -> 2828.219586
H17: =Summary!I34 -> 90 | I17: =Summary!J34 -> 1863.195813 | J17: =Summary!K34 -> 2198.89147 | K17: =Summary!L34 -> 2267.699741 | L17: =Summary!M34 -> 2568.615408
H18: =Summary!I35 -> 91.34329597 | I18: =Summary!J35 -> 1677.574538 | J18: =Summary!K35 -> 1999.999999 | K18: =Summary!L35 -> 2211.763403 | L18: =Summary!M35 -> 2498.870358
H19: =Summary!I36 -> 95 | I19: =Summary!J36 -> 1523.504495 | J19: =Summary!K36 -> 1900.323538 | K19: =Summary!L36 -> 2063.356747 | L19: =Summary!M36 -> 2309.011229
G21: ="Probability of completing acres ("&fnmonthname(VLOOKUP(cllStartDate,Calculations!$D$56:$F$94,2,TRUE))&" "&DAY(VLOOKUP(cllStartDate,Calculations!$D$56:$F$94,2,FALSE))&" to "&fnmonthname(VLOOKUP(cllEndDate,Calculations!$D$56:$F$94,3,FALSE))&" "&DAY(VLOOKUP(cllEndDate,Calculations!$D$56:$F$94,3,FALSE))&")" -> Probability of completing acres (Oct 21 to Nov 24)
B22: Input Data
B23: Hours worked per day | E23: =IF(Calculations!B10=1,ROUND(MIN(OFFSET(DaylightHours,2,cllStartDate,1,cllEndDate-cllStartDate+1)),1) & " - " & ROUND(MAX(OFFSET(DaylightHours,2,cllStartDate,1,cllEndDate-cllStartDate+1)),1),Calculations!B11) -> 9.8 - 10.8
B24: Days worked per week | E24: =cllDaysPerWeek -> 7
B25: Period selected | E25: =fnmonthname(VLOOKUP(cllStartDate,Calculations!$D$56:$F$94,2,FALSE)) & " " & DAY(VLOOKUP(cllStartDate,Calculations!$D$56:$F$94,2,FALSE)) & " to " & fnmonthname(VLOOKUP(cllEndDate,Calculations!$D$56:$F$94,3,FALSE)) & " " & DAY(VLOOKUP(cllEndDate,Calculations!$D$56:$F$94,3,FALSE)) -> Oct 21 to Nov 24
B26: Days in selected period | E26: =(cllEndDate-cllStartDate+1)*7 -> 35
B28: Implement | E28: =cllDescription -> Row crop planter
B29: Implement width (ft) | E29: =Summary!C14 -> 40
B30: Implement speed (mph) | E30: =cllSpeed -> 5.5
B31: Field efficiency | E31: =cllEfficiency -> 0.83
B32: Calculated acres worked per hour | E32: =Summary!C17 -> 22.13333333
B34: Average of "weather" data for selected period
B35: Average percent of days suitable | E35: =(Summary!C34/Summary!C33)*100 -> 53.14285714
B36: Average days suitable for fieldwork | E36: =Summary!C34 -> 18.6
B37: Average hours suitable for fieldwork | E37: =Summary!C35 -> 195
B38: Years of data history available for this period | E38: =Summary!C36 -> 25

Sheet Calculations (hidden)
A1: User input | D1: Probability calculations | AL1: Ends | AM1: 2020-10-27 | AN1: =AM1+7 -> 2020-11-03 | AO1: =AN1+7 -> 2020-11-10 | AP1: 2020-11-17 | AQ1: 2020-11-24 | AX1: Week 0 | BB1: Week 1 | BF1: Week 2 | BJ1: Week 3 | BN1: Chart
D2: Week | E2: 1 | F2: 2 | G2: 3 | H2: 4 | I2: 5 | J2: 6 | K2: 7 | L2: 8 | M2: 9 | N2: 10 | O2: 11 | P2: 12 | Q2: 13 | R2: 14 | S2: 15 | T2: 16 | U2: 17 | V2: 18 | W2: 19 | X2: 20 | Y2: 21 | Z2: 22 | AA2: 23 | AB2: 24 | AC2: 25 | AD2: 26 | AE2: 27 | AF2: 28 | AG2: 29 | AH2: 30 | AI2: 31 | AJ2: 32 | AK2: 33 | AL2: 34 | AM2: 35 | AN2: 36 | AO2: 37 | AP2: 38 | AQ2: 39 | AR2: 40 | AS2: 41 | AT2: 42 | AU2: 43 | AV2: 44 | AX2: Sum days | AY2: Sum hours | AZ2: Sum acres | BB2: Sum days | BC2: Sum hours | BD2: Sum acres | BF2: Sum days | BG2: Sum hours | BH2: Sum acres | BJ2: Sum days | BK2: Sum hours | BL2: Sum acres | BN2: X | BO2: Y
A3: Start date | B3: 35 | D3: 1977 | E3: =IF(TYPE(VLOOKUP($B$6&$D3&E$2,data,$B$7+5,FALSE))=1,VLOOKUP($B$6&$D3&E$2,data,$B$7+5,FALSE),"") ->  | I3: 1.4 | J3: 0.9 | K3: 3 | L3: 6 | M3: 3.2 | N3: 5 | O3: =IF(TYPE(VLOOKUP($B$6&$D3&O$2,data,$B$7+5,FALSE))=1,VLOOKUP($B$6&$D3&O$2,data,$B$7+5,FALSE),"") -> 2.4 | P3: 4.1 | Q3: 5.7 | R3: 5.7 | S3: 5.6 | T3: 5.1 | U3: 6.1 | V3: 4.1 | W3: 4 | X3: 5.4 | Y3: =IF(TYPE(VLOOKUP($B$6&$D3&Y$2,data,$B$7+5,FALSE))=1,VLOOKUP($B$6&$D3&Y$2,data,$B$7+5,FALSE),"") -> 5 | Z3: 6.2 | AA3: 5.7 | AB3: 5 | AC3: 0.3 | AD3: 2.9 | AE3: 5.4 | AF3: 2.8 | AG3: 3.9 | AH3: 0.5 | AI3: =IF(TYPE(VLOOKUP($B$6&$D3&AI$2,data,$B$7+5,FALSE))=1,VLOOKUP($B$6&$D3&AI$2,data,$B$7+5,FALSE),"") -> 1.8 | AJ3: 3.9 | AK3: 1.9 | AL3: 1.2 | AM3: 4.2 | AN3: 0.4 | AO3: 0.1 | AP3: 0.4 | AQ3: 3.1 | AR3: 3.4 | AS3: 3.5 | AT3: 0.5 | AX3: =IF(COUNT(INDIRECT(ADDRESS(ROW($A3),4+cllStartDate) & ":" & ADDRESS(ROW($A3),4+cllEndDate-1))) = (cllEndDate-cllStartDate),SUM(INDIRECT(ADDRESS(ROW($A3),4+cllStartDate) & ":" & ADDRESS(ROW($A3),4+cllEndDate-1)))*cllDaysPerWeek/7,"") -> 5.1 | AY3: =IF(AX3<>"",IF($B$10=1,SUMPRODUCT(INDIRECT(ADDRESS(INDEX(ROW($A3),1,1),4+cllStartDate) & ":" & ADDRESS(INDEX(ROW($A3),1,1),4+cllEndDate-1)),INDIRECT(ADDRESS(INDEX(ROW($A$47),1,1),4+cllStartDate) & ":" & ADDRESS(INDEX(ROW($A$47),1,1),4+cllEndDate-1)))*cllDaysPerWeek/7,AX3*$B$11),"") -> 54.81504738 | AZ3: =IF(AY3<>"",AY3*(Summary!$C$15*Summary!$C$14*Summary!$C$16)/8.25,"") -> 1213.239715 | BB3: =IF(COUNT(INDIRECT(ADDRESS(ROW($A3),4+cllStartDate) & ":" & ADDRESS(ROW($A3),4+cllEndDate))) = (cllEndDate-cllStartDate+1),SUM(INDIRECT(ADDRESS(ROW($A3),4+cllStartDate) & ":" & ADDRESS(ROW($A3),4+cllEndDate)))*cllDaysPerWeek/7,"") -> 8.2 | BC3: =IF(BB3<>"",IF($B$10=1,SUMPRODUCT(INDIRECT(ADDRESS(INDEX(ROW($A3),1,1),4+cllStartDate) & ":" & ADDRESS(INDEX(ROW($A3),1,1),4+cllEndDate)),INDIRECT(ADDRESS(INDEX(ROW($A$47),1,1),4+cllStartDate) & ":" & ADDRESS(INDEX(ROW($A$47),1,1),4+cllEndDate)))*cllDaysPerWeek/7,BB3*$B$11),"") -> 85.27292956 | BD3: =IF(BC3<>"",BC3*(Summary!$C$15*Summary!$C$14*Summary!$C$16)/8.25,"") -> 1887.374174 | BF3: =IF(COUNT(INDIRECT(ADDRESS(ROW($A3),4+cllStartDate) & ":" & ADDRESS(ROW($A3),4+cllEndDate+1))) = (cllEndDate-cllStartDate+2),SUM(INDIRECT(ADDRESS(ROW($A3),4+cllStartDate) & ":" & ADDRESS(ROW($A3),4+cllEndDate+1)))*cllDaysPerWeek/7,"") -> 11.6 | BG3: =IF(BF3<>"",IF($B$10=1,SUMPRODUCT(INDIRECT(ADDRESS(INDEX(ROW($A3),1,1),4+cllStartDate) & ":" & ADDRESS(INDEX(ROW($A3),1,1),4+cllEndDate+1)),INDIRECT(ADDRESS(INDEX(ROW($A$47),1,1),4+cllStartDate) & ":" & ADDRESS(INDEX(ROW($A$47),1,1),4+cllEndDate+1)))*cllDaysPerWeek/7,BF3*$B$11),"") -> 118.035885 | BH3: =IF(BG3<>"",BG3*(Summary!$C$15*Summary!$C$14*Summary!$C$16)/8.25,"") -> 2612.527589 | BJ3: =IF(COUNT(INDIRECT(ADDRESS(ROW($A3),4+cllStartDate) & ":" & ADDRESS(ROW($A3),4+cllEndDate+2))) = (cllEndDate-cllStartDate+3),SUM(INDIRECT(ADDRESS(ROW($A3),4+cllStartDate) & ":" & ADDRESS(ROW($A3),4+cllEndDate+2)))*cllDaysPerWeek/7,"") -> 15.1 | BK3: =IF(BJ3<>"",IF($B$10=1,SUMPRODUCT(INDIRECT(ADDRESS(INDEX(ROW($A3),1,1),4+cllStartDate) & ":" & ADDRESS(INDEX(ROW($A3),1,1),4+cllEndDate+2)),INDIRECT(ADDRESS(INDEX(ROW($A$47),1,1),4+cllStartDate) & ":" & ADDRESS(INDEX(ROW($A$47),1,1),4+cllEndDate+2)))*cllDaysPerWeek/7,BJ3*$B$11),"") -> 151.2392143 | BL3: =IF(BK3<>"",BK3*(Summary!$C$15*Summary!$C$14*Summary!$C$16)/8.25,"") -> 3347.427944 | BN3: =SMALL(rngSumAcres1,ROW(INDIRECT("1:" & COUNT(rngSumAcres1)))) -> 1540.512049 | BO3: =1-PERCENTRANK(rngSumAcres1,SMALL(rngSumAcres1,ROW(INDIRECT("1:" & COUNT(rngSumAcres1))))) -> 1
A4: End date | B4: 39 | D4: 1978 | J4: 0.1 | K4: 0 | L4: 0.2 | M4: 0 | N4: 0.6 | O4: 0.8 | P4: 0.3 | Q4: 2 | R4: 2.1 | S4: 2.7 | T4: 5.4 | U4: 6 | V4: 5.2 | W4: 4.9 | X4: 5.1 | Y4: 2.4 | Z4: 2.4 | AA4: 5.9 | AB4: 2.9 | AC4: 4.5 | AD4: 5 | AE4: 6 | AF4: 5.7 | AG4: 6.2 | AH4: 6 | AI4: 1.9 | AJ4: 5.8 | AK4: 4.7 | AL4: 3 | AM4: 6 | AN4: 5 | AX4: =IF(COUNT(INDIRECT(ADDRESS(ROW($A4),4+cllStartDate) & ":" & ADDRESS(ROW($A4),4+cllEndDate-1))) = (cllEndDate-cllStartDate),SUM(INDIRECT(ADDRESS(ROW($A4),4+cllStartDate) & ":" & ADDRESS(ROW($A4),4+cllEndDate-1)))*cllDaysPerWeek/7,"") ->  | AY4: =IF(AX4<>"",IF($B$10=1,SUMPRODUCT(INDIRECT(ADDRESS(INDEX(ROW($A4),1,1),4+cllStartDate) & ":" & ADDRESS(INDEX(ROW($A4),1,1),4+cllEndDate-1)),INDIRECT(ADDRESS(INDEX(ROW($A$47),1,1),4+cllStartDate) & ":" & ADDRESS(INDEX(ROW($A$47),1,1),4+cllEndDate-1)))*cllDaysPerWeek/7,AX4*$B$11),"") ->  | AZ4: =IF(AY4<>"",AY4*(Summary!$C$15*Summary!$C$14*Summary!$C$16)/8.25,"") ->  | BC4: =IF(BB4<>"",IF($B$10=1,SUMPRODUCT(INDIRECT(ADDRESS(INDEX(ROW($A4),1,1),4+cllStartDate) & ":" & ADDRESS(INDEX(ROW($A4),1,1),4+cllEndDate)),INDIRECT(ADDRESS(INDEX(ROW($A$47),1,1),4+cllStartDate) & ":" & ADDRESS(INDEX(ROW($A$47),1,1),4+cllEndDate)))*cllDaysPerWeek/7,BB4*$B$11),"") ->  | BD4: =IF(BC4<>"",BC4*(Summary!$C$15*Summary!$C$14*Summary!$C$16)/8.25,"") ->  | BG4: =IF(BF4<>"",IF($B$10=1,SUMPRODUCT(INDIRECT(ADDRESS(INDEX(ROW($A4),1,1),4+cllStartDate) & ":" & ADDRESS(INDEX(ROW($A4),1,1),4+cllEndDate+1)),INDIRECT(ADDRESS(INDEX(ROW($A$47),1,1),4+cllStartDate) & ":" & ADDRESS(INDEX(ROW($A$47),1,1),4+cllEndDate+1)))*cllDaysPerWeek/7,BF4*$B$11),"") ->  | BH4: =IF(BG4<>"",BG4*(Summary!$C$15*Summary!$C$14*Summary!$C$16)/8.25,"") ->  | BK4: =IF(BJ4<>"",IF($B$10=1,SUMPRODUCT(INDIRECT(ADDRESS(INDEX(ROW($A4),1,1),4+cllStartDate) & ":" & ADDRESS(INDEX(ROW($A4),1,1),4+cllEndDate+2)),INDIRECT(ADDRESS(INDEX(ROW($A$47),1,1),4+cllStartDate) & ":" & ADDRESS(INDEX(ROW($A$47),1,1),4+cllEndDate+2)))*cllDaysPerWeek/7,BJ4*$B$11),"") ->  | BL4: =IF(BK4<>"",BK4*(Summary!$C$15*Summary!$C$14*Summary!$C$16)/8.25,"") ->  | BN4: 1887.374174 | BO4: 0.959
A5: State index | B5: 4 | D5: 1979 | J5: 0 | K5: 0 | L5: 0.2 | M5: 0.9 | N5: 0.8 | O5: 1 | P5: 4.2 | Q5: 5.1 | R5: 5.9 | S5: 5.7 | T5: 4.6 | U5: 2.4 | V5: 5.4 | W5: 2.8 | X5: 4 | Y5: 5.6 | Z5: 6 | AA5: 3.4 | AB5: 3.1 | AC5: 6.2 | AD5: 4.9 | AE5: 4.8 | AF5: 3.6 | AG5: 4 | AH5: 5.7 | AI5: 5.8 | AJ5: 6.4 | AK5: 6.1 | AL5: 6.3 | AM5: 5.6 | AN5: 3.9 | AO5: 4.1 | AP5: 3.7 | AQ5: 5.3 | AR5: 1.7 | AX5: 17.3 | AY5: =IF(AX5<>"",IF($B$10=1,SUMPRODUCT(INDIRECT(ADDRESS(INDEX(ROW($A5),1,1),4+cllStartDate) & ":" & ADDRESS(INDEX(ROW($A5),1,1),4+cllEndDate-1)),INDIRECT(ADDRESS(INDEX(ROW($A$47),1,1),4+cllStartDate) & ":" & ADDRESS(INDEX(ROW($A$47),1,1),4+cllEndDate-1)))*cllDaysPerWeek/7,AX5*$B$11),"") -> 181.2921027 | AZ5: =IF(AY5<>"",AY5*(Summary!$C$15*Summary!$C$14*Summary!$C$16)/8.25,"") -> 4012.59854 | BB5: 22.6 | BC5: =IF(BB5<>"",IF($B$10=1,SUMPRODUCT(INDIRECT(ADDRESS(INDEX(ROW($A5),1,1),4+cllStartDate) & ":" & ADDRESS(INDEX(ROW($A5),1,1),4+cllEndDate)),INDIRECT(ADDRESS(INDEX(ROW($A$47),1,1),4+cllStartDate) & ":" & ADDRESS(INDEX(ROW($A$47),1,1),4+cllEndDate)))*cllDaysPerWeek/7,BB5*$B$11),"") -> 233.3652561 | BD5: =IF(BC5<>"",BC5*(Summary!$C$15*Summary!$C$14*Summary!$C$16)/8.25,"") -> 5165.151002 | BF5: 24.3 | BG5: =IF(BF5<>"",IF($B$10=1,SUMPRODUCT(INDIRECT(ADDRESS(INDEX(ROW($A5),1,1),4+cllStartDate) & ":" & ADDRESS(INDEX(ROW($A5),1,1),4+cllEndDate+1)),INDIRECT(ADDRESS(INDEX(ROW($A$47),1,1),4+cllStartDate) & ":" & ADDRESS(INDEX(ROW($A$47),1,1),4+cllEndDate+1)))*cllDaysPerWeek/7,BF5*$B$11),"") -> 249.7467338 | BH5: =IF(BG5<>"",BG5*(Summary!$C$15*Summary!$C$14*Summary!$C$16)/8.25,"") -> 5527.727709 | BK5: =IF(BJ5<>"",IF($B$10=1,SUMPRODUCT(INDIRECT(ADDRESS(INDEX(ROW($A5),1,1),4+cllStartDate) & ":" & ADDRESS(INDEX(ROW($A5),1,1),4+cllEndDate+2)),INDIRECT(ADDRESS(INDEX(ROW($A$47),1,1),4+cllStartDate) & ":" & ADDRESS(INDEX(ROW($A$47),1,1),4+cllEndDate+2)))*cllDaysPerWeek/7,BJ5*$B$11),"") ->  | BL5: =IF(BK5<>"",BK5*(Summary!$C$15*Summary!$C$14*Summary!$C$16)/8.25,"") ->  | BN5: 1952.120994 | BO5: 0.917
A6: State | B6: =VLOOKUP(B5,O66:Q69,3,FALSE) -> MO | D6: 1980 | K6: 0.6 | L6: 1 | M6: 4.9 | N6: 6.2 | O6: 6.6 | P6: 4.5 | Q6: 3.7 | R6: 6 | S6: 1.3 | T6: 5 | U6: 5.5 | V6: 5.6 | W6: 3.6 | X6: 6.2 | Y6: 6.1 | Z6: 6 | AA6: 6.3 | AB6: 5.4 | AC6: 4.6 | AD6: 4.5 | AE6: 6.3 | AF6: 2.4 | AG6: 4.8 | AH6: 2.6 | AI6: 5.4 | AJ6: 6.3 | AK6: 6.4 | AL6: 3.6 | AM6: 5.3 | AN6: 2.2 | AO6: 5.8 | AP6: 5.2 | AX6: 18.5 | AY6: =IF(AX6<>"",IF($B$10=1,SUMPRODUCT(INDIRECT(ADDRESS(INDEX(ROW($A6),1,1),4+cllStartDate) & ":" & ADDRESS(INDEX(ROW($A6),1,1),4+cllEndDate-1)),INDIRECT(ADDRESS(INDEX(ROW($A$47),1,1),4+cllStartDate) & ":" & ADDRESS(INDEX(ROW($A$47),1,1),4+cllEndDate-1)))*cllDaysPerWeek/7,AX6*$B$11),"") -> 192.6547104 | AZ6: =IF(AY6<>"",AY6*(Summary!$C$15*Summary!$C$14*Summary!$C$16)/8.25,"") -> 4264.090923 | BC6: =IF(BB6<>"",IF($B$10=1,SUMPRODUCT(INDIRECT(ADDRESS(INDEX(ROW($A6),1,1),4+cllStartDate) & ":" & ADDRESS(INDEX(ROW($A6),1,1),4+cllEndDate)),INDIRECT(ADDRESS(INDEX(ROW($A$47),1,1),4+cllStartDate) & ":" & ADDRESS(INDEX(ROW($A$47),1,1),4+cllEndDate)))*cllDaysPerWeek/7,BB6*$B$11),"") ->  | BD6: =IF(BC6<>"",BC6*(Summary!$C$15*Summary!$C$14*Summary!$C$16)/8.25,"") ->  | BG6: =IF(BF6<>"",IF($B$10=1,SUMPRODUCT(INDIRECT(ADDRESS(INDEX(ROW($A6),1,1),4+cllStartDate) & ":" & ADDRESS(INDEX(ROW($A6),1,1),4+cllEndDate+1)),INDIRECT(ADDRESS(INDEX(ROW($A$47),1,1),4+cllStartDate) & ":" & ADDRESS(INDEX(ROW($A$47),1,1),4+cllEndDate+1)))*cllDaysPerWeek/7,BF6*$B$11),"") ->  | BH6: =IF(BG6<>"",BG6*(Summary!$C$15*Summary!$C$14*Summary!$C$16)/8.25,"") ->  | BK6: =IF(BJ6<>"",IF($B$10=1,SUMPRODUCT(INDIRECT(ADDRESS(INDEX(ROW($A6),1,1),4+cllStartDate) & ":" & ADDRESS(INDEX(ROW($A6),1,1),4+cllEndDate+2)),INDIRECT(ADDRESS(INDEX(ROW($A$47),1,1),4+cllStartDate) & ":" & ADDRESS(INDEX(ROW($A$47),1,1),4+cllEndDate+2)))*cllDaysPerWeek/7,BJ6*$B$11),"") ->  | BL6: =IF(BK6<>"",BK6*(Summary!$C$15*Summary!$C$14*Summary!$C$16)/8.25,"") ->  | BN6: 2569.047182 | BO6: 0.875
A7: Region | B7: 2 | D7: 1981 | J7: 6.4 | K7: 6.2 | L7: 1.4 | M7: 0.6 | N7: 4.5 | O7: 3.4 | P7: 0.1 | Q7: 0.2 | R7: 1.7 | S7: 3.7 | T7: 3.5 | U7: 2.1 | V7: 1.8 | W7: 1.5 | X7: 3.1 | Y7: 4.4 | Z7: 1.7 | AA7: 0.7 | AB7: 1.9 | AC7: 4.2 | AD7: 5.8 | AE7: 4.2 | AF7: 5 | AG7: 4.8 | AH7: 5.8 | AI7: 5.3 | AJ7: 5.8 | AK7: 6 | AL7: 1.6 | AM7: 4.4 | AN7: 5.3 | AO7: 0.5 | AP7: 4 | AQ7: 4 | AR7: 4.6 | AX7: 14.2 | AY7: =IF(AX7<>"",IF($B$10=1,SUMPRODUCT(INDIRECT(ADDRESS(INDEX(ROW($A7),1,1),4+cllStartDate) & ":" & ADDRESS(INDEX(ROW($A7),1,1),4+cllEndDate-1)),INDIRECT(ADDRESS(INDEX(ROW($A$47),1,1),4+cllStartDate) & ":" & ADDRESS(INDEX(ROW($A$47),1,1),4+cllEndDate-1)))*cllDaysPerWeek/7,AX7*$B$11),"") -> 149.0210023 | AZ7: =IF(AY7<>"",AY7*(Summary!$C$15*Summary!$C$14*Summary!$C$16)/8.25,"") -> 3298.331517 | BB7: 18.2 | BC7: =IF(BB7<>"",IF($B$10=1,SUMPRODUCT(INDIRECT(ADDRESS(INDEX(ROW($A7),1,1),4+cllStartDate) & ":" & ADDRESS(INDEX(ROW($A7),1,1),4+cllEndDate)),INDIRECT(ADDRESS(INDEX(ROW($A$47),1,1),4+cllStartDate) & ":" & ADDRESS(INDEX(ROW($A$47),1,1),4+cllEndDate)))*cllDaysPerWeek/7,BB7*$B$11),"") -> 188.3214954 | BD7: =IF(BC7<>"",BC7*(Summary!$C$15*Summary!$C$14*Summary!$C$16)/8.25,"") -> 4168.182431 | BF7: 22.8 | BG7: =IF(BF7<>"",IF($B$10=1,SUMPRODUCT(INDIRECT(ADDRESS(INDEX(ROW($A7),1,1),4+cllStartDate) & ":" & ADDRESS(INDEX(ROW($A7),1,1),4+cllEndDate+1)),INDIRECT(ADDRESS(INDEX(ROW($A$47),1,1),4+cllStartDate) & ":" & ADDRESS(INDEX(ROW($A$47),1,1),4+cllEndDate+1)))*cllDaysPerWeek/7,BF7*$B$11),"") -> 232.6478469 | BH7: =IF(BG7<>"",BG7*(Summary!$C$15*Summary!$C$14*Summary!$C$16)/8.25,"") -> 5149.272345 | BK7: =IF(BJ7<>"",IF($B$10=1,SUMPRODUCT(INDIRECT(ADDRESS(INDEX(ROW($A7),1,1),4+cllStartDate) & ":" & ADDRESS(INDEX(ROW($A7),1,1),4+cllEndDate+2)),INDIRECT(ADDRESS(INDEX(ROW($A$47),1,1),4+cllStartDate) & ":" & ADDRESS(INDEX(ROW($A$47),1,1),4+cllEndDate+2)))*cllDaysPerWeek/7,BJ7*$B$11),"") ->  | BL7: =IF(BK7<>"",BK7*(Summary!$C$15*Summary!$C$14*Summary!$C$16)/8.25,"") ->  | BN7: 2792.35831 | BO7: 0.834
A8: Index | B8: =SUM(IF(U55:U90=cllRegion,S55:S90,0)*IF(T55:T90=cllState,1,0)) -> 29 | D8: 1982 | L8: 3.1 | M8: 3.4 | N8: 5.6 | O8: 4.1 | P8: 3.4 | Q8: 0.6 | R8: 0.2 | S8: 0.1 | T8: 0.2 | U8: 0.8 | V8: 4.8 | W8: 4 | X8: 4.9 | Y8: 3.8 | Z8: 4 | AA8: 6 | AB8: 5.8 | AC8: 3.2 | AD8: 3.3 | AE8: 1.7 | AF8: 1 | AG8: 1.4 | AH8: 1.6 | AI8: 3.7 | AJ8: 5.8 | AK8: 5.4 | AL8: 4.5 | AM8: 4.3 | AN8: 4.9 | AO8: 3.5 | AP8: 4.1 | AQ8: 3.1 | AR8: 1.2 | AX8: 16.8 | AY8: =IF(AX8<>"",IF($B$10=1,SUMPRODUCT(INDIRECT(ADDRESS(INDEX(ROW($A8),1,1),4+cllStartDate) & ":" & ADDRESS(INDEX(ROW($A8),1,1),4+cllEndDate-1)),INDIRECT(ADDRESS(INDEX(ROW($A$47),1,1),4+cllStartDate) & ":" & ADDRESS(INDEX(ROW($A$47),1,1),4+cllEndDate-1)))*cllDaysPerWeek/7,AX8*$B$11),"") -> 175.5993433 | AZ8: =IF(AY8<>"",AY8*(Summary!$C$15*Summary!$C$14*Summary!$C$16)/8.25,"") -> 3886.598797 | BB8: 19.9 | BC8: =IF(BB8<>"",IF($B$10=1,SUMPRODUCT(INDIRECT(ADDRESS(INDEX(ROW($A8),1,1),4+cllStartDate) & ":" & ADDRESS(INDEX(ROW($A8),1,1),4+cllEndDate)),INDIRECT(ADDRESS(INDEX(ROW($A$47),1,1),4+cllStartDate) & ":" & ADDRESS(INDEX(ROW($A$47),1,1),4+cllEndDate)))*cllDaysPerWeek/7,BB8*$B$11),"") -> 206.0572254 | BD8: =IF(BC8<>"",BC8*(Summary!$C$15*Summary!$C$14*Summary!$C$16)/8.25,"") -> 4560.733256 | BF8: 21.1 | BG8: =IF(BF8<>"",IF($B$10=1,SUMPRODUCT(INDIRECT(ADDRESS(INDEX(ROW($A8),1,1),4+cllStartDate) & ":" & ADDRESS(INDEX(ROW($A8),1,1),4+cllEndDate+1)),INDIRECT(ADDRESS(INDEX(ROW($A$47),1,1),4+cllStartDate) & ":" & ADDRESS(INDEX(ROW($A$47),1,1),4+cllEndDate+1)))*cllDaysPerWeek/7,BF8*$B$11),"") -> 217.6206215 | BH8: =IF(BG8<>"",BG8*(Summary!$C$15*Summary!$C$14*Summary!$C$16)/8.25,"") -> 4816.669755 | BK8: =IF(BJ8<>"",IF($B$10=1,SUMPRODUCT(INDIRECT(ADDRESS(INDEX(ROW($A8),1,1),4+cllStartDate) & ":" & ADDRESS(INDEX(ROW($A8),1,1),4+cllEndDate+2)),INDIRECT(ADDRESS(INDEX(ROW($A$47),1,1),4+cllStartDate) & ":" & ADDRESS(INDEX(ROW($A$47),1,1),4+cllEndDate+2)))*cllDaysPerWeek/7,BJ8*$B$11),"") ->  | BL8: =IF(BK8<>"",BK8*(Summary!$C$15*Summary!$C$14*Summary!$C$16)/8.25,"") ->  | BN8: 2983.728709 | BO8: 0.792
D9: 1983 | N9: 3 | O9: 1.5 | P9: 2.9 | Q9: 1 | R9: 2.1 | S9: 3.2 | T9: 5.5 | U9: 5.6 | V9: 4.8 | W9: 3.9 | X9: 5.1 | Y9: 6.2 | Z9: 6.4 | AA9: 6.3 | AB9: 5.8 | AC9: 6.4 | AD9: 6.5 | AE9: 5.9 | AF9: 5.2 | AG9: 6.1 | AH9: 4.1 | AI9: 4 | AJ9: 6.1 | AK9: 6.3 | AL9: 3.5 | AM9: 2.5 | AN9: 3.8 | AO9: 0.5 | AP9: 0.4 | AQ9: 1.2 | AR9: 1.3 | AX9: 7.2 | AY9: =IF(AX9<>"",IF($B$10=1,SUMPRODUCT(INDIRECT(ADDRESS(INDEX(ROW($A9),1,1),4+cllStartDate) & ":" & ADDRESS(INDEX(ROW($A9),1,1),4+cllEndDate-1)),INDIRECT(ADDRESS(INDEX(ROW($A$47),1,1),4+cllStartDate) & ":" & ADDRESS(INDEX(ROW($A$47),1,1),4+cllEndDate-1)))*cllDaysPerWeek/7,AX9*$B$11),"") -> 76.40808976 | AZ9: =IF(AY9<>"",AY9*(Summary!$C$15*Summary!$C$14*Summary!$C$16)/8.25,"") -> 1691.16572 | BB9: =IF(COUNT(INDIRECT(ADDRESS(ROW($A9),4+cllStartDate) & ":" & ADDRESS(ROW($A9),4+cllEndDate))) = (cllEndDate-cllStartDate+1),SUM(INDIRECT(ADDRESS(ROW($A9),4+cllStartDate) & ":" & ADDRESS(ROW($A9),4+cllEndDate)))*cllDaysPerWeek/7,"") -> 8.4 | BC9: =IF(BB9<>"",IF($B$10=1,SUMPRODUCT(INDIRECT(ADDRESS(INDEX(ROW($A9),1,1),4+cllStartDate) & ":" & ADDRESS(INDEX(ROW($A9),1,1),4+cllEndDate)),INDIRECT(ADDRESS(INDEX(ROW($A$47),1,1),4+cllStartDate) & ":" & ADDRESS(INDEX(ROW($A$47),1,1),4+cllEndDate)))*cllDaysPerWeek/7,BB9*$B$11),"") -> 88.1982377 | BD9: =IF(BC9<>"",BC9*(Summary!$C$15*Summary!$C$14*Summary!$C$16)/8.25,"") -> 1952.120994 | BF9: 9.7 | BG9: =IF(BF9<>"",IF($B$10=1,SUMPRODUCT(INDIRECT(ADDRESS(INDEX(ROW($A9),1,1),4+cllStartDate) & ":" & ADDRESS(INDEX(ROW($A9),1,1),4+cllEndDate+1)),INDIRECT(ADDRESS(INDEX(ROW($A$47),1,1),4+cllStartDate) & ":" & ADDRESS(INDEX(ROW($A$47),1,1),4+cllEndDate+1)))*cllDaysPerWeek/7,BF9*$B$11),"") -> 100.7252501 | BH9: =IF(BG9<>"",BG9*(Summary!$C$15*Summary!$C$14*Summary!$C$16)/8.25,"") -> 2229.385535 | BK9: =IF(BJ9<>"",IF($B$10=1,SUMPRODUCT(INDIRECT(ADDRESS(INDEX(ROW($A9),1,1),4+cllStartDate) & ":" & ADDRESS(INDEX(ROW($A9),1,1),4+cllEndDate+2)),INDIRECT(ADDRESS(INDEX(ROW($A$47),1,1),4+cllStartDate) & ":" & ADDRESS(INDEX(ROW($A$47),1,1),4+cllEndDate+2)))*cllDaysPerWeek/7,BJ9*$B$11),"") ->  | BL9: =IF(BK9<>"",BK9*(Summary!$C$15*Summary!$C$14*Summary!$C$16)/8.25,"") ->  | BN9: 3165.844156 | BO9: 0.75
A10: Daylight hours | B10: 1 | D10: 1984 | M10: 0.7 | N10: 0.7 | O10: 0.8 | P10: 2.1 | Q10: 2.7 | R10: 1.6 | S10: 1.8 | T10: 4.6 | U10: 1.5 | V10: 2 | W10: 4.4 | X10: 4.7 | Y10: 5.1 | Z10: 6.1 | AA10: 5.7 | AB10: 6.6 | AC10: 6.1 | AD10: 6.5 | AE10: 6.5 | AF10: 6.4 | AG10: 6.4 | AH10: 2.7 | AI10: 5.5 | AJ10: 3.7 | AK10: 6.3 | AL10: 3.9 | AM10: 1 | AN10: 1.7 | AO10: 0.5 | AP10: 3.8 | AQ10: 5.5 | AR10: 4.6 | AS10: 3.2 | AT10: 3.3 | AX10: 7 | AY10: =IF(AX10<>"",IF($B$10=1,SUMPRODUCT(INDIRECT(ADDRESS(INDEX(ROW($A10),1,1),4+cllStartDate) & ":" & ADDRESS(INDEX(ROW($A10),1,1),4+cllEndDate-1)),INDIRECT(ADDRESS(INDEX(ROW($A$47),1,1),4+cllStartDate) & ":" & ADDRESS(INDEX(ROW($A$47),1,1),4+cllEndDate-1)))*cllDaysPerWeek/7,AX10*$B$11),"") -> 72.12258895 | AZ10: =IF(AY10<>"",AY10*(Summary!$C$15*Summary!$C$14*Summary!$C$16)/8.25,"") -> 1596.313302 | BB10: 12.5 | BC10: =IF(BB10<>"",IF($B$10=1,SUMPRODUCT(INDIRECT(ADDRESS(INDEX(ROW($A10),1,1),4+cllStartDate) & ":" & ADDRESS(INDEX(ROW($A10),1,1),4+cllEndDate)),INDIRECT(ADDRESS(INDEX(ROW($A$47),1,1),4+cllStartDate) & ":" & ADDRESS(INDEX(ROW($A$47),1,1),4+cllEndDate)))*cllDaysPerWeek/7,BB10*$B$11),"") -> 126.160767 | BD10: =IF(BC10<>"",BC10*(Summary!$C$15*Summary!$C$14*Summary!$C$16)/8.25,"") -> 2792.35831 | BF10: 17.1 | BG10: =IF(BF10<>"",IF($B$10=1,SUMPRODUCT(INDIRECT(ADDRESS(INDEX(ROW($A10),1,1),4+cllStartDate) & ":" & ADDRESS(INDEX(ROW($A10),1,1),4+cllEndDate+1)),INDIRECT(ADDRESS(INDEX(ROW($A$47),1,1),4+cllStartDate) & ":" & ADDRESS(INDEX(ROW($A$47),1,1),4+cllEndDate+1)))*cllDaysPerWeek/7,BF10*$B$11),"") -> 170.4871185 | BH10: =IF(BG10<>"",BG10*(Summary!$C$15*Summary!$C$14*Summary!$C$16)/8.25,"") -> 3773.448223 | BJ10: 20.3 | BK10: =IF(BJ10<>"",IF($B$10=1,SUMPRODUCT(INDIRECT(ADDRESS(INDEX(ROW($A10),1,1),4+cllStartDate) & ":" & ADDRESS(INDEX(ROW($A10),1,1),4+cllEndDate+2)),INDIRECT(ADDRESS(INDEX(ROW($A$47),1,1),4+cllStartDate) & ":" & ADDRESS(INDEX(ROW($A$47),1,1),4+cllEndDate+2)))*cllDaysPerWeek/7,BJ10*$B$11),"") -> 200.8444482 | BL10: =IF(BK10<>"",BK10*(Summary!$C$15*Summary!$C$14*Summary!$C$16)/8.25,"") -> 4445.35712 | BN10: 3626.943503 | BO10: 0.709
A11: Constant hours | B11: =cllHrsPerDay -> 0 | D11: 1985 | K11: 3.6 | L11: 5.1 | M11: 6.5 | N11: 3.1 | O11: 4.7 | P11: 1.3 | Q11: 5.6 | R11: 4.2 | S11: 2.9 | T11: 4.2 | U11: 4.3 | V11: 3 | W11: 5.9 | X11: 6.5 | Y11: 5.9 | Z11: 3.6 | AA11: 2.1 | AB11: 4.1 | AC11: 1.8 | AD11: 0.6 | AE11: 3 | AF11: 5.4 | AG11: 6.4 | AH11: 6.1 | AI11: 1 | AJ11: 2.1 | AK11: 1.5 | AL11: 1.4 | AM11: 0.9 | AN11: 2.2 | AO11: 2.4 | AP11: 0.5 | AQ11: 0.7 | AR11: 1.5 | AS11: 0.9 | AT11: 1.2 | AX11: 6 | AY11: =IF(AX11<>"",IF($B$10=1,SUMPRODUCT(INDIRECT(ADDRESS(INDEX(ROW($A11),1,1),4+cllStartDate) & ":" & ADDRESS(INDEX(ROW($A11),1,1),4+cllEndDate-1)),INDIRECT(ADDRESS(INDEX(ROW($A$47),1,1),4+cllStartDate) & ":" & ADDRESS(INDEX(ROW($A$47),1,1),4+cllEndDate-1)))*cllDaysPerWeek/7,AX11*$B$11),"") -> 62.7238617 | AZ11: =IF(AY11<>"",AY11*(Summary!$C$15*Summary!$C$14*Summary!$C$16)/8.25,"") -> 1388.288139 | BB11: 6.7 | BC11: =IF(BB11<>"",IF($B$10=1,SUMPRODUCT(INDIRECT(ADDRESS(INDEX(ROW($A11),1,1),4+cllStartDate) & ":" & ADDRESS(INDEX(ROW($A11),1,1),4+cllEndDate)),INDIRECT(ADDRESS(INDEX(ROW($A$47),1,1),4+cllStartDate) & ":" & ADDRESS(INDEX(ROW($A$47),1,1),4+cllEndDate)))*cllDaysPerWeek/7,BB11*$B$11),"") -> 69.601448 | BD11: =IF(BC11<>"",BC11*(Summary!$C$15*Summary!$C$14*Summary!$C$16)/8.25,"") -> 1540.512049 | BF11: 8.2 | BG11: =IF(BF11<>"",IF($B$10=1,SUMPRODUCT(INDIRECT(ADDRESS(INDEX(ROW($A11),1,1),4+cllStartDate) & ":" & ADDRESS(INDEX(ROW($A11),1,1),4+cllEndDate+1)),INDIRECT(ADDRESS(INDEX(ROW($A$47),1,1),4+cllStartDate) & ":" & ADDRESS(INDEX(ROW($A$47),1,1),4+cllEndDate+1)))*cllDaysPerWeek/7,BF11*$B$11),"") -> 84.05569306 | BH11: =IF(BG11<>"",BG11*(Summary!$C$15*Summary!$C$14*Summary!$C$16)/8.25,"") -> 1860.432673 | BJ11: 9.1 | BK11: =IF(BJ11<>"",IF($B$10=1,SUMPRODUCT(INDIRECT(ADDRESS(INDEX(ROW($A11),1,1),4+cllStartDate) & ":" & ADDRESS(INDEX(ROW($A11),1,1),4+cllEndDate+2)),INDIRECT(ADDRESS(INDEX(ROW($A$47),1,1),4+cllStartDate) & ":" & ADDRESS(INDEX(ROW($A$47),1,1),4+cllEndDate+2)))*cllDaysPerWeek/7,BJ11*$B$11),"") -> 92.59369203 | BL11: =IF(BK11<>"",BK11*(Summary!$C$15*Summary!$C$14*Summary!$C$16)/8.25,"") -> 2049.40705 | BN11: 3648.13351 | BO11: 0.667
D12: 1986 | K12: 4 | L12: 4.2 | M12: 4.8 | N12: 4.6 | O12: 4.1 | P12: 1.6 | Q12: 0.8 | R12: 3.7 | S12: 5.4 | T12: 4.7 | U12: 5.6 | V12: 5.2 | W12: 4 | X12: 3.1 | Y12: 2.8 | Z12: 5.8 | AA12: 5.5 | AB12: 4 | AC12: 4.3 | AD12: 6.2 | AE12: 6.1 | AF12: 6.2 | AG12: 4.4 | AH12: 3.2 | AI12: 1.6 | AJ12: 0.2 | AK12: 1.8 | AL12: 2.2 | AM12: 3.2 | AN12: 2.4 | AO12: 1.7 | AP12: 2.9 | AQ12: 3.7 | AR12: 1.5 | AS12: 1.1 | AX12: 10.2 | AY12: =IF(AX12<>"",IF($B$10=1,SUMPRODUCT(INDIRECT(ADDRESS(INDEX(ROW($A12),1,1),4+cllStartDate) & ":" & ADDRESS(INDEX(ROW($A12),1,1),4+cllEndDate-1)),INDIRECT(ADDRESS(INDEX(ROW($A$47),1,1),4+cllStartDate) & ":" & ADDRESS(INDEX(ROW($A$47),1,1),4+cllEndDate-1)))*cllDaysPerWeek/7,AX12*$B$11),"") -> 106.6821714 | AZ12: =IF(AY12<>"",AY12*(Summary!$C$15*Summary!$C$14*Summary!$C$16)/8.25,"") -> 2361.23206 | BB12: 13.9 | BC12: =IF(BB12<>"",IF($B$10=1,SUMPRODUCT(INDIRECT(ADDRESS(INDEX(ROW($A12),1,1),4+cllStartDate) & ":" & ADDRESS(INDEX(ROW($A12),1,1),4+cllEndDate)),INDIRECT(ADDRESS(INDEX(ROW($A$47),1,1),4+cllStartDate) & ":" & ADDRESS(INDEX(ROW($A$47),1,1),4+cllEndDate)))*cllDaysPerWeek/7,BB12*$B$11),"") -> 143.0351275 | BD12: =IF(BC12<>"",BC12*(Summary!$C$15*Summary!$C$14*Summary!$C$16)/8.25,"") -> 3165.844156 | BF12: 15.4 | BG12: =IF(BF12<>"",IF($B$10=1,SUMPRODUCT(INDIRECT(ADDRESS(INDEX(ROW($A12),1,1),4+cllStartDate) & ":" & ADDRESS(INDEX(ROW($A12),1,1),4+cllEndDate+1)),INDIRECT(ADDRESS(INDEX(ROW($A$47),1,1),4+cllStartDate) & ":" & ADDRESS(INDEX(ROW($A$47),1,1),4+cllEndDate+1)))*cllDaysPerWeek/7,BF12*$B$11),"") -> 157.4893726 | BH12: =IF(BG12<>"",BG12*(Summary!$C$15*Summary!$C$14*Summary!$C$16)/8.25,"") -> 3485.76478 | BJ12: 16.5 | BK12: =IF(BJ12<>"",IF($B$10=1,SUMPRODUCT(INDIRECT(ADDRESS(INDEX(ROW($A12),1,1),4+cllStartDate) & ":" & ADDRESS(INDEX(ROW($A12),1,1),4+cllEndDate+2)),INDIRECT(ADDRESS(INDEX(ROW($A$47),1,1),4+cllStartDate) & ":" & ADDRESS(INDEX(ROW($A$47),1,1),4+cllEndDate+2)))*cllDaysPerWeek/7,BJ12*$B$11),"") -> 167.9247047 | BL12: =IF(BK12<>"",BK12*(Summary!$C$15*Summary!$C$14*Summary!$C$16)/8.25,"") -> 3716.733463 | BN12: 3963.973016 | BO12: 0.625
A13: Latitude | B13: =VLOOKUP(B8,S55:W90,5,FALSE) -> 40 | D13: 1987 | E13: =IF(TYPE(VLOOKUP($B$6&$D13&E$2,data,$B$7+5,FALSE))=1,VLOOKUP($B$6&$D13&E$2,data,$B$7+5,FALSE),"") ->  | J13: 0.7 | K13: 4.8 | L13: 0.4 | M13: 2 | N13: 5.5 | O13: =IF(TYPE(VLOOKUP($B$6&$D13&O$2,data,$B$7+5,FALSE))=1,VLOOKUP($B$6&$D13&O$2,data,$B$7+5,FALSE),"") -> 2.9 | P13: 6.2 | Q13: 3.2 | R13: 3.6 | S13: 3.9 | T13: 4.8 | U13: 5.8 | V13: 5.1 | W13: 4.5 | X13: 1.5 | Y13: =IF(TYPE(VLOOKUP($B$6&$D13&Y$2,data,$B$7+5,FALSE))=1,VLOOKUP($B$6&$D13&Y$2,data,$B$7+5,FALSE),"") -> 2.1 | Z13: 6.2 | AA13: 6.6 | AB13: 5.6 | AC13: 4.1 | AD13: 4.5 | AE13: 2.4 | AF13: 5.9 | AG13: 4.4 | AH13: 1.2 | AI13: =IF(TYPE(VLOOKUP($B$6&$D13&AI$2,data,$B$7+5,FALSE))=1,VLOOKUP($B$6&$D13&AI$2,data,$B$7+5,FALSE),"") -> 5.8 | AJ13: 4.9 | AK13: 6.3 | AL13: 5.7 | AM13: 5 | AN13: 5.6 | AO13: 4.2 | AY13: =IF(AX13<>"",IF($B$10=1,SUMPRODUCT(INDIRECT(ADDRESS(INDEX(ROW($A13),1,1),4+cllStartDate) & ":" & ADDRESS(INDEX(ROW($A13),1,1),4+cllEndDate-1)),INDIRECT(ADDRESS(INDEX(ROW($A$47),1,1),4+cllStartDate) & ":" & ADDRESS(INDEX(ROW($A$47),1,1),4+cllEndDate-1)))*cllDaysPerWeek/7,AX13*$B$11),"") ->  | AZ13: =IF(AY13<>"",AY13*(Summary!$C$15*Summary!$C$14*Summary!$C$16)/8.25,"") ->  | BC13: =IF(BB13<>"",IF($B$10=1,SUMPRODUCT(INDIRECT(ADDRESS(INDEX(ROW($A13),1,1),4+cllStartDate) & ":" & ADDRESS(INDEX(ROW($A13),1,1),4+cllEndDate)),INDIRECT(ADDRESS(INDEX(ROW($A$47),1,1),4+cllStartDate) & ":" & ADDRESS(INDEX(ROW($A$47),1,1),4+cllEndDate)))*cllDaysPerWeek/7,BB13*$B$11),"") ->  | BD13: =IF(BC13<>"",BC13*(Summary!$C$15*Summary!$C$14*Summary!$C$16)/8.25,"") ->  | BG13: =IF(BF13<>"",IF($B$10=1,SUMPRODUCT(INDIRECT(ADDRESS(INDEX(ROW($A13),1,1),4+cllStartDate) & ":" & ADDRESS(INDEX(ROW($A13),1,1),4+cllEndDate+1)),INDIRECT(ADDRESS(INDEX(ROW($A$47),1,1),4+cllStartDate) & ":" & ADDRESS(INDEX(ROW($A$47),1,1),4+cllEndDate+1)))*cllDaysPerWeek/7,BF13*$B$11),"") ->  | BH13: =IF(BG13<>"",BG13*(Summary!$C$15*Summary!$C$14*Summary!$C$16)/8.25,"") ->  | BK13: =IF(BJ13<>"",IF($B$10=1,SUMPRODUCT(INDIRECT(ADDRESS(INDEX(ROW($A13),1,1),4+cllStartDate) & ":" & ADDRESS(INDEX(ROW($A13),1,1),4+cllEndDate+2)),INDIRECT(ADDRESS(INDEX(ROW($A$47),1,1),4+cllStartDate) & ":" & ADDRESS(INDEX(ROW($A$47),1,1),4+cllEndDate+2)))*cllDaysPerWeek/7,BJ13*$B$11),"") ->  | BL13: =IF(BK13<>"",BK13*(Summary!$C$15*Summary!$C$14*Summary!$C$16)/8.25,"") ->  | BN13: 4168.182431 | BO13: 0.584
D14: 1988 | J14: 1.8 | K14: 2.3 | L14: 5.5 | M14: 6.4 | N14: 6.5 | O14: 6.2 | P14: 6 | Q14: 6.5 | R14: 4.1 | S14: 5.3 | T14: 6.2 | U14: 6.8 | V14: 6.8 | W14: 5.7 | X14: 6.8 | Y14: 6.4 | Z14: 4.9 | AA14: 6.6 | AB14: 6.2 | AC14: 4.9 | AD14: 6.4 | AE14: 4.4 | AF14: 6.2 | AG14: 6.7 | AH14: 5.6 | AI14: 4.9 | AJ14: 4.6 | AK14: 5.8 | AL14: 6.3 | AM14: 5.7 | AN14: 6.1 | AO14: 6.7 | AP14: 5.7 | AX14: 24.2 | AY14: =IF(AX14<>"",IF($B$10=1,SUMPRODUCT(INDIRECT(ADDRESS(INDEX(ROW($A14),1,1),4+cllStartDate) & ":" & ADDRESS(INDEX(ROW($A14),1,1),4+cllEndDate-1)),INDIRECT(ADDRESS(INDEX(ROW($A$47),1,1),4+cllStartDate) & ":" & ADDRESS(INDEX(ROW($A$47),1,1),4+cllEndDate-1)))*cllDaysPerWeek/7,AX14*$B$11),"") -> 252.4701373 | AZ14: =IF(AY14<>"",AY14*(Summary!$C$15*Summary!$C$14*Summary!$C$16)/8.25,"") -> 5588.005705 | BC14: =IF(BB14<>"",IF($B$10=1,SUMPRODUCT(INDIRECT(ADDRESS(INDEX(ROW($A14),1,1),4+cllStartDate) & ":" & ADDRESS(INDEX(ROW($A14),1,1),4+cllEndDate)),INDIRECT(ADDRESS(INDEX(ROW($A$47),1,1),4+cllStartDate) & ":" & ADDRESS(INDEX(ROW($A$47),1,1),4+cllEndDate)))*cllDaysPerWeek/7,BB14*$B$11),"") ->  | BD14: =IF(BC14<>"",BC14*(Summary!$C$15*Summary!$C$14*Summary!$C$16)/8.25,"") ->  | BG14: =IF(BF14<>"",IF($B$10=1,SUMPRODUCT(INDIRECT(ADDRESS(INDEX(ROW($A14),1,1),4+cllStartDate) & ":" & ADDRESS(INDEX(ROW($A14),1,1),4+cllEndDate+1)),INDIRECT(ADDRESS(INDEX(ROW($A$47),1,1),4+cllStartDate) & ":" & ADDRESS(INDEX(ROW($A$47),1,1),4+cllEndDate+1)))*cllDaysPerWeek/7,BF14*$B$11),"") ->  | BH14: =IF(BG14<>"",BG14*(Summary!$C$15*Summary!$C$14*Summary!$C$16)/8.25,"") ->  | BK14: =IF(BJ14<>"",IF($B$10=1,SUMPRODUCT(INDIRECT(ADDRESS(INDEX(ROW($A14),1,1),4+cllStartDate) & ":" & ADDRESS(INDEX(ROW($A14),1,1),4+cllEndDate+2)),INDIRECT(ADDRESS(INDEX(ROW($A$47),1,1),4+cllStartDate) & ":" & ADDRESS(INDEX(ROW($A$47),1,1),4+cllEndDate+2)))*cllDaysPerWeek/7,BJ14*$B$11),"") ->  | BL14: =IF(BK14<>"",BK14*(Summary!$C$15*Summary!$C$14*Summary!$C$16)/8.25,"") ->  | BN14: 4412.831021 | BO14: 0.542
A15: Probability | B15: =100*(1-PERCENTRANK(rngSumAcres1,MAX(MIN(Summary!C19,MAX(rngSumAcres1)),MIN(rngSumAcres1)),10)) -> 91.34329597 | D15: 1989 | J15: 2.4 | K15: 1.9 | L15: 4.3 | M15: 6.4 | N15: 5.9 | O15: 5.2 | P15: 5.9 | Q15: 4.9 | R15: 3 | S15: 2.4 | T15: 4.6 | U15: 4.1 | V15: 5.5 | W15: 4.9 | X15: 6.1 | Y15: 6.1 | Z15: 4.5 | AA15: 6.1 | AB15: 5.5 | AC15: 6.5 | AD15: 6.5 | AE15: 2.9 | AF15: 1.3 | AG15: 2.1 | AH15: 1.3 | AI15: 4.9 | AJ15: 6.3 | AK15: 5.5 | AL15: 6.6 | AM15: 3.4 | AN15: 6.4 | AO15: 2.6 | AP15: 5.7 | AX15: 18.1 | AY15: =IF(AX15<>"",IF($B$10=1,SUMPRODUCT(INDIRECT(ADDRESS(INDEX(ROW($A15),1,1),4+cllStartDate) & ":" & ADDRESS(INDEX(ROW($A15),1,1),4+cllEndDate-1)),INDIRECT(ADDRESS(INDEX(ROW($A$47),1,1),4+cllStartDate) & ":" & ADDRESS(INDEX(ROW($A$47),1,1),4+cllEndDate-1)))*cllDaysPerWeek/7,AX15*$B$11),"") -> 188.4924963 | AZ15: =IF(AY15<>"",AY15*(Summary!$C$15*Summary!$C$14*Summary!$C$16)/8.25,"") -> 4171.967251 | BC15: =IF(BB15<>"",IF($B$10=1,SUMPRODUCT(INDIRECT(ADDRESS(INDEX(ROW($A15),1,1),4+cllStartDate) & ":" & ADDRESS(INDEX(ROW($A15),1,1),4+cllEndDate)),INDIRECT(ADDRESS(INDEX(ROW($A$47),1,1),4+cllStartDate) & ":" & ADDRESS(INDEX(ROW($A$47),1,1),4+cllEndDate)))*cllDaysPerWeek/7,BB15*$B$11),"") ->  | BD15: =IF(BC15<>"",BC15*(Summary!$C$15*Summary!$C$14*Summary!$C$16)/8.25,"") ->  | BG15: =IF(BF15<>"",IF($B$10=1,SUMPRODUCT(INDIRECT(ADDRESS(INDEX(ROW($A15),1,1),4+cllStartDate) & ":" & ADDRESS(INDEX(ROW($A15),1,1),4+cllEndDate+1)),INDIRECT(ADDRESS(INDEX(ROW($A$47),1,1),4+cllStartDate) & ":" & ADDRESS(INDEX(ROW($A$47),1,1),4+cllEndDate+1)))*cllDaysPerWeek/7,BF15*$B$11),"") ->  | BH15: =IF(BG15<>"",BG15*(Summary!$C$15*Summary!$C$14*Summary!$C$16)/8.25,"") ->  | BK15: =IF(BJ15<>"",IF($B$10=1,SUMPRODUCT(INDIRECT(ADDRESS(INDEX(ROW($A15),1,1),4+cllStartDate) & ":" & ADDRESS(INDEX(ROW($A15),1,1),4+cllEndDate+2)),INDIRECT(ADDRESS(INDEX(ROW($A$47),1,1),4+cllStartDate) & ":" & ADDRESS(INDEX(ROW($A$47),1,1),4+cllEndDate+2)))*cllDaysPerWeek/7,BJ15*$B$11),"") ->  | BL15: =IF(BK15<>"",BK15*(Summary!$C$15*Summary!$C$14*Summary!$C$16)/8.25,"") ->  | BN15: 4519.737402 | BO15: 0.5
A16: Graph Percentile | B16: =Percentile/100 -> 0.9134329597 | D16: 1990 | J16: 0.6 | K16: 2 | L16: 2.3 | M16: 1.5 | N16: 4.7 | O16: 0.7 | P16: 0.4 | Q16: 0.1 | R16: 1.1 | S16: 2.9 | T16: 1.9 | U16: 1.6 | V16: 1.9 | W16: 4 | X16: 5.9 | Y16: 2.9 | Z16: 4.9 | AA16: 3.4 | AB16: 4.8 | AC16: 4.4 | AD16: 2.5 | AE16: 4.2 | AF16: 6.1 | AG16: 6.5 | AH16: 6.5 | AI16: 4.9 | AJ16: 5.9 | AK16: 4.4 | AL16: 2.1 | AM16: 5.7 | AN16: 5.9 | AO16: 6.2 | AP16: 1.5 | AQ16: 5.6 | AX16: 19.3 | AY16: =IF(AX16<>"",IF($B$10=1,SUMPRODUCT(INDIRECT(ADDRESS(INDEX(ROW($A16),1,1),4+cllStartDate) & ":" & ADDRESS(INDEX(ROW($A16),1,1),4+cllEndDate-1)),INDIRECT(ADDRESS(INDEX(ROW($A$47),1,1),4+cllStartDate) & ":" & ADDRESS(INDEX(ROW($A$47),1,1),4+cllEndDate-1)))*cllDaysPerWeek/7,AX16*$B$11),"") -> 203.014556 | AZ16: =IF(AY16<>"",AY16*(Summary!$C$15*Summary!$C$14*Summary!$C$16)/8.25,"") -> 4493.38884 | BB16: 24.9 | BC16: =IF(BB16<>"",IF($B$10=1,SUMPRODUCT(INDIRECT(ADDRESS(INDEX(ROW($A16),1,1),4+cllStartDate) & ":" & ADDRESS(INDEX(ROW($A16),1,1),4+cllEndDate)),INDIRECT(ADDRESS(INDEX(ROW($A$47),1,1),4+cllStartDate) & ":" & ADDRESS(INDEX(ROW($A$47),1,1),4+cllEndDate)))*cllDaysPerWeek/7,BB16*$B$11),"") -> 258.0352464 | BD16: =IF(BC16<>"",BC16*(Summary!$C$15*Summary!$C$14*Summary!$C$16)/8.25,"") -> 5711.18012 | BG16: =IF(BF16<>"",IF($B$10=1,SUMPRODUCT(INDIRECT(ADDRESS(INDEX(ROW($A16),1,1),4+cllStartDate) & ":" & ADDRESS(INDEX(ROW($A16),1,1),4+cllEndDate+1)),INDIRECT(ADDRESS(INDEX(ROW($A$47),1,1),4+cllStartDate) & ":" & ADDRESS(INDEX(ROW($A$47),1,1),4+cllEndDate+1)))*cllDaysPerWeek/7,BF16*$B$11),"") ->  | BH16: =IF(BG16<>"",BG16*(Summary!$C$15*Summary!$C$14*Summary!$C$16)/8.25,"") ->  | BK16: =IF(BJ16<>"",IF($B$10=1,SUMPRODUCT(INDIRECT(ADDRESS(INDEX(ROW($A16),1,1),4+cllStartDate) & ":" & ADDRESS(INDEX(ROW($A16),1,1),4+cllEndDate+2)),INDIRECT(ADDRESS(INDEX(ROW($A$47),1,1),4+cllStartDate) & ":" & ADDRESS(INDEX(ROW($A$47),1,1),4+cllEndDate+2)))*cllDaysPerWeek/7,BJ16*$B$11),"") ->  | BL16: =IF(BK16<>"",BK16*(Summary!$C$15*Summary!$C$14*Summary!$C$16)/8.25,"") ->  | BN16: 4560.733256 | BO16: 0.459
D17: 1991 | I17: 3 | J17: 4.8 | L17: 1.3 | M17: 0.9 | N17: 1.3 | O17: 0.5 | P17: 1.6 | Q17: 1.9 | R17: 2.8 | S17: 2.8 | T17: 5.2 | U17: 6.1 | V17: 6.3 | W17: 6.6 | X17: 3.1 | Y17: 5.5 | Z17: 5.9 | AA17: 6.6 | AB17: 4.9 | AC17: 6.4 | AD17: 6.8 | AE17: 6.7 | AF17: 5.6 | AG17: 5.9 | AH17: 4.4 | AI17: 6.3 | AJ17: 4.7 | AK17: 5 | AL17: 6.5 | AM17: 5.7 | AN17: 2 | AO17: 1.2 | AP17: 0.7 | AQ17: 1.4 | AX17: 9.6 | AY17: =IF(AX17<>"",IF($B$10=1,SUMPRODUCT(INDIRECT(ADDRESS(INDEX(ROW($A17),1,1),4+cllStartDate) & ":" & ADDRESS(INDEX(ROW($A17),1,1),4+cllEndDate-1)),INDIRECT(ADDRESS(INDEX(ROW($A$47),1,1),4+cllStartDate) & ":" & ADDRESS(INDEX(ROW($A$47),1,1),4+cllEndDate-1)))*cllDaysPerWeek/7,AX17*$B$11),"") -> 102.3162362 | AZ17: =IF(AY17<>"",AY17*(Summary!$C$15*Summary!$C$14*Summary!$C$16)/8.25,"") -> 2264.599362 | BB17: 11 | BC17: =IF(BB17<>"",IF($B$10=1,SUMPRODUCT(INDIRECT(ADDRESS(INDEX(ROW($A17),1,1),4+cllStartDate) & ":" & ADDRESS(INDEX(ROW($A17),1,1),4+cllEndDate)),INDIRECT(ADDRESS(INDEX(ROW($A$47),1,1),4+cllStartDate) & ":" & ADDRESS(INDEX(ROW($A$47),1,1),4+cllEndDate)))*cllDaysPerWeek/7,BB17*$B$11),"") -> 116.0714088 | BD17: =IF(BC17<>"",BC17*(Summary!$C$15*Summary!$C$14*Summary!$C$16)/8.25,"") -> 2569.047182 | BG17: =IF(BF17<>"",IF($B$10=1,SUMPRODUCT(INDIRECT(ADDRESS(INDEX(ROW($A17),1,1),4+cllStartDate) & ":" & ADDRESS(INDEX(ROW($A17),1,1),4+cllEndDate+1)),INDIRECT(ADDRESS(INDEX(ROW($A$47),1,1),4+cllStartDate) & ":" & ADDRESS(INDEX(ROW($A$47),1,1),4+cllEndDate+1)))*cllDaysPerWeek/7,BF17*$B$11),"") ->  | BH17: =IF(BG17<>"",BG17*(Summary!$C$15*Summary!$C$14*Summary!$C$16)/8.25,"") ->  | BK17: =IF(BJ17<>"",IF($B$10=1,SUMPRODUCT(INDIRECT(ADDRESS(INDEX(ROW($A17),1,1),4+cllStartDate) & ":" & ADDRESS(INDEX(ROW($A17),1,1),4+cllEndDate+2)),INDIRECT(ADDRESS(INDEX(ROW($A$47),1,1),4+cllStartDate) & ":" & ADDRESS(INDEX(ROW($A$47),1,1),4+cllEndDate+2)))*cllDaysPerWeek/7,BJ17*$B$11),"") ->  | BL17: =IF(BK17<>"",BK17*(Summary!$C$15*Summary!$C$14*Summary!$C$16)/8.25,"") ->  | BN17: 4606.472054 | BO17: 0.417
D18: 1992 | J18: 0.5 | K18: 4.1 | L18: 2.8 | M18: 0.1 | N18: 1.6 | O18: 6.3 | P18: 5.6 | Q18: 5.6 | R18: 5.6 | S18: 6.4 | T18: 5.5 | U18: 6 | V18: 6.6 | W18: 6.5 | X18: 4.7 | Y18: 1.6 | Z18: 1.1 | AA18: 0.5 | AB18: 3.2 | AC18: 4.3 | AD18: 5.9 | AE18: 4.4 | AF18: 5.7 | AG18: 2.5 | AH18: 3.6 | AI18: 3.8 | AJ18: 5.8 | AK18: 5 | AL18: 5 | AM18: 6.2 | AN18: 4.8 | AO18: 0.1 | AP18: 0.6 | AQ18: 1 | AS18: 2.1 | AX18: 11.7 | AY18: =IF(AX18<>"",IF($B$10=1,SUMPRODUCT(INDIRECT(ADDRESS(INDEX(ROW($A18),1,1),4+cllStartDate) & ":" & ADDRESS(INDEX(ROW($A18),1,1),4+cllEndDate-1)),INDIRECT(ADDRESS(INDEX(ROW($A$47),1,1),4+cllStartDate) & ":" & ADDRESS(INDEX(ROW($A$47),1,1),4+cllEndDate-1)))*cllDaysPerWeek/7,AX18*$B$11),"") -> 124.9818967 | AZ18: =IF(AY18<>"",AY18*(Summary!$C$15*Summary!$C$14*Summary!$C$16)/8.25,"") -> 2766.265981 | BB18: 12.7 | BC18: =IF(BB18<>"",IF($B$10=1,SUMPRODUCT(INDIRECT(ADDRESS(INDEX(ROW($A18),1,1),4+cllStartDate) & ":" & ADDRESS(INDEX(ROW($A18),1,1),4+cllEndDate)),INDIRECT(ADDRESS(INDEX(ROW($A$47),1,1),4+cllStartDate) & ":" & ADDRESS(INDEX(ROW($A$47),1,1),4+cllEndDate)))*cllDaysPerWeek/7,BB18*$B$11),"") -> 134.80702 | BD18: =IF(BC18<>"",BC18*(Summary!$C$15*Summary!$C$14*Summary!$C$16)/8.25,"") -> 2983.728709 | BG18: =IF(BF18<>"",IF($B$10=1,SUMPRODUCT(INDIRECT(ADDRESS(INDEX(ROW($A18),1,1),4+cllStartDate) & ":" & ADDRESS(INDEX(ROW($A18),1,1),4+cllEndDate+1)),INDIRECT(ADDRESS(INDEX(ROW($A$47),1,1),4+cllStartDate) & ":" & ADDRESS(INDEX(ROW($A$47),1,1),4+cllEndDate+1)))*cllDaysPerWeek/7,BF18*$B$11),"") ->  | BH18: =IF(BG18<>"",BG18*(Summary!$C$15*Summary!$C$14*Summary!$C$16)/8.25,"") ->  | BK18: =IF(BJ18<>"",IF($B$10=1,SUMPRODUCT(INDIRECT(ADDRESS(INDEX(ROW($A18),1,1),4+cllStartDate) & ":" & ADDRESS(INDEX(ROW($A18),1,1),4+cllEndDate+2)),INDIRECT(ADDRESS(INDEX(ROW($A$47),1,1),4+cllStartDate) & ":" & ADDRESS(INDEX(ROW($A$47),1,1),4+cllEndDate+2)))*cllDaysPerWeek/7,BJ18*$B$11),"") ->  | BL18: =IF(BK18<>"",BK18*(Summary!$C$15*Summary!$C$14*Summary!$C$16)/8.25,"") ->  | BN18: 4784.127584 | BO18: 0.375
D19: 1993 | J19: 0.1 | K19: 0.1 | L19: 0 | M19: 0.2 | N19: 0.6 | O19: 0.2 | P19: 0.4 | Q19: 3.8 | R19: 5.3 | S19: 3.9 | T19: 1.3 | U19: 5.2 | V19: 4.1 | W19: 0.8 | X19: 0.5 | Y19: 0.8 | Z19: 1.1 | AA19: 2.9 | AB19: 4.2 | AC19: 2.2 | AD19: 4.8 | AE19: 6.6 | AF19: 4.6 | AG19: 3.5 | AH19: 1.6 | AI19: 0.3 | AJ19: 2.7 | AK19: 5.4 | AL19: 5.3 | AM19: 1.9 | AN19: 5.4 | AO19: 6.3 | AP19: 5 | AX19: 18.6 | AY19: =IF(AX19<>"",IF($B$10=1,SUMPRODUCT(INDIRECT(ADDRESS(INDEX(ROW($A19),1,1),4+cllStartDate) & ":" & ADDRESS(INDEX(ROW($A19),1,1),4+cllEndDate-1)),INDIRECT(ADDRESS(INDEX(ROW($A$47),1,1),4+cllStartDate) & ":" & ADDRESS(INDEX(ROW($A$47),1,1),4+cllEndDate-1)))*cllDaysPerWeek/7,AX19*$B$11),"") -> 192.7217254 | AZ19: =IF(AY19<>"",AY19*(Summary!$C$15*Summary!$C$14*Summary!$C$16)/8.25,"") -> 4265.574188 | BC19: =IF(BB19<>"",IF($B$10=1,SUMPRODUCT(INDIRECT(ADDRESS(INDEX(ROW($A19),1,1),4+cllStartDate) & ":" & ADDRESS(INDEX(ROW($A19),1,1),4+cllEndDate)),INDIRECT(ADDRESS(INDEX(ROW($A$47),1,1),4+cllStartDate) & ":" & ADDRESS(INDEX(ROW($A$47),1,1),4+cllEndDate)))*cllDaysPerWeek/7,BB19*$B$11),"") ->  | BD19: =IF(BC19<>"",BC19*(Summary!$C$15*Summary!$C$14*Summary!$C$16)/8.25,"") ->  | BG19: =IF(BF19<>"",IF($B$10=1,SUMPRODUCT(INDIRECT(ADDRESS(INDEX(ROW($A19),1,1),4+cllStartDate) & ":" & ADDRESS(INDEX(ROW($A19),1,1),4+cllEndDate+1)),INDIRECT(ADDRESS(INDEX(ROW($A$47),1,1),4+cllStartDate) & ":" & ADDRESS(INDEX(ROW($A$47),1,1),4+cllEndDate+1)))*cllDaysPerWeek/7,BF19*$B$11),"") ->  | BH19: =IF(BG19<>"",BG19*(Summary!$C$15*Summary!$C$14*Summary!$C$16)/8.25,"") ->  | BK19: =IF(BJ19<>"",IF($B$10=1,SUMPRODUCT(INDIRECT(ADDRESS(INDEX(ROW($A19),1,1),4+cllStartDate) & ":" & ADDRESS(INDEX(ROW($A19),1,1),4+cllEndDate+2)),INDIRECT(ADDRESS(INDEX(ROW($A$47),1,1),4+cllStartDate) & ":" & ADDRESS(INDEX(ROW($A$47),1,1),4+cllEndDate+2)))*cllDaysPerWeek/7,BJ19*$B$11),"") ->  | BL19: =IF(BK19<>"",BK19*(Summary!$C$15*Summary!$C$14*Summary!$C$16)/8.25,"") ->  | BN19: 4946.863071 | BO19: 0.334
D20: 1994 | J20: 5.6 | K20: 4 | L20: 0.5 | M20: 3.4 | N20: 2.7 | O20: 0.7 | P20: 2.6 | Q20: 6.1 | R20: 4.8 | S20: 2.9 | T20: 2.5 | U20: 5.6 | V20: 5.5 | W20: 6 | X20: 5.6 | Y20: 5.8 | Z20: 5.2 | AA20: 6.1 | AB20: 5.3 | AC20: 6.7 | AD20: 6.6 | AE20: 6.8 | AF20: 5.2 | AG20: 5.7 | AH20: 6.7 | AI20: 4.7 | AJ20: 5.4 | AK20: 5.1 | AL20: 5.9 | AM20: 4.5 | AN20: 6 | AO20: 2.7 | AP20: 2.1 | AQ20: 3.9 | AX20: 15.3 | AY20: =IF(AX20<>"",IF($B$10=1,SUMPRODUCT(INDIRECT(ADDRESS(INDEX(ROW($A20),1,1),4+cllStartDate) & ":" & ADDRESS(INDEX(ROW($A20),1,1),4+cllEndDate-1)),INDIRECT(ADDRESS(INDEX(ROW($A$47),1,1),4+cllStartDate) & ":" & ADDRESS(INDEX(ROW($A$47),1,1),4+cllEndDate-1)))*cllDaysPerWeek/7,AX20*$B$11),"") -> 161.0569147 | AZ20: =IF(AY20<>"",AY20*(Summary!$C$15*Summary!$C$14*Summary!$C$16)/8.25,"") -> 3564.72638 | BB20: 19.2 | BC20: =IF(BB20<>"",IF($B$10=1,SUMPRODUCT(INDIRECT(ADDRESS(INDEX(ROW($A20),1,1),4+cllStartDate) & ":" & ADDRESS(INDEX(ROW($A20),1,1),4+cllEndDate)),INDIRECT(ADDRESS(INDEX(ROW($A$47),1,1),4+cllStartDate) & ":" & ADDRESS(INDEX(ROW($A$47),1,1),4+cllEndDate)))*cllDaysPerWeek/7,BB20*$B$11),"") -> 199.3748955 | BD20: =IF(BC20<>"",BC20*(Summary!$C$15*Summary!$C$14*Summary!$C$16)/8.25,"") -> 4412.831021 | BG20: =IF(BF20<>"",IF($B$10=1,SUMPRODUCT(INDIRECT(ADDRESS(INDEX(ROW($A20),1,1),4+cllStartDate) & ":" & ADDRESS(INDEX(ROW($A20),1,1),4+cllEndDate+1)),INDIRECT(ADDRESS(INDEX(ROW($A$47),1,1),4+cllStartDate) & ":" & ADDRESS(INDEX(ROW($A$47),1,1),4+cllEndDate+1)))*cllDaysPerWeek/7,BF20*$B$11),"") ->  | BH20: =IF(BG20<>"",BG20*(Summary!$C$15*Summary!$C$14*Summary!$C$16)/8.25,"") ->  | BK20: =IF(BJ20<>"",IF($B$10=1,SUMPRODUCT(INDIRECT(ADDRESS(INDEX(ROW($A20),1,1),4+cllStartDate) & ":" & ADDRESS(INDEX(ROW($A20),1,1),4+cllEndDate+2)),INDIRECT(ADDRESS(INDEX(ROW($A$47),1,1),4+cllStartDate) & ":" & ADDRESS(INDEX(ROW($A$47),1,1),4+cllEndDate+2)))*cllDaysPerWeek/7,BJ20*$B$11),"") ->  | BL20: =IF(BK20<>"",BK20*(Summary!$C$15*Summary!$C$14*Summary!$C$16)/8.25,"") ->  | BN20: 5165.151002 | BO20: 0.292
D21: 1995 | J21: 3.6 | K21: 5.3 | L21: 1.9 | M21: 0.4 | N21: 0.6 | O21: 0 | P21: 0 | Q21: 0.2 | R21: 0.2 | S21: 0.6 | T21: 0.8 | U21: 4.3 | V21: 6.6 | W21: 1 | X21: 1.5 | Y21: 5.6 | Z21: 4.9 | AA21: 4.2 | AB21: 2 | AC21: 4.4 | AD21: 3.3 | AE21: 6.3 | AF21: 5.9 | AG21: 5.8 | AH21: 5.6 | AI21: 3.4 | AJ21: 6.1 | AK21: 4.9 | AL21: 6.4 | AM21: 6.7 | AN21: 6.5 | AO21: 1.2 | AP21: 2.7 | AQ21: 3.6 | AX21: 17.1 | AY21: =IF(AX21<>"",IF($B$10=1,SUMPRODUCT(INDIRECT(ADDRESS(INDEX(ROW($A21),1,1),4+cllStartDate) & ":" & ADDRESS(INDEX(ROW($A21),1,1),4+cllEndDate-1)),INDIRECT(ADDRESS(INDEX(ROW($A$47),1,1),4+cllStartDate) & ":" & ADDRESS(INDEX(ROW($A$47),1,1),4+cllEndDate-1)))*cllDaysPerWeek/7,AX21*$B$11),"") -> 180.7798988 | AZ21: =IF(AY21<>"",AY21*(Summary!$C$15*Summary!$C$14*Summary!$C$16)/8.25,"") -> 4001.261761 | BB21: 20.7 | BC21: =IF(BB21<>"",IF($B$10=1,SUMPRODUCT(INDIRECT(ADDRESS(INDEX(ROW($A21),1,1),4+cllStartDate) & ":" & ADDRESS(INDEX(ROW($A21),1,1),4+cllEndDate)),INDIRECT(ADDRESS(INDEX(ROW($A$47),1,1),4+cllStartDate) & ":" & ADDRESS(INDEX(ROW($A$47),1,1),4+cllEndDate)))*cllDaysPerWeek/7,BB21*$B$11),"") -> 216.1503426 | BD21: =IF(BC21<>"",BC21*(Summary!$C$15*Summary!$C$14*Summary!$C$16)/8.25,"") -> 4784.127584 | BG21: =IF(BF21<>"",IF($B$10=1,SUMPRODUCT(INDIRECT(ADDRESS(INDEX(ROW($A21),1,1),4+cllStartDate) & ":" & ADDRESS(INDEX(ROW($A21),1,1),4+cllEndDate+1)),INDIRECT(ADDRESS(INDEX(ROW($A$47),1,1),4+cllStartDate) & ":" & ADDRESS(INDEX(ROW($A$47),1,1),4+cllEndDate+1)))*cllDaysPerWeek/7,BF21*$B$11),"") ->  | BH21: =IF(BG21<>"",BG21*(Summary!$C$15*Summary!$C$14*Summary!$C$16)/8.25,"") ->  | BK21: =IF(BJ21<>"",IF($B$10=1,SUMPRODUCT(INDIRECT(ADDRESS(INDEX(ROW($A21),1,1),4+cllStartDate) & ":" & ADDRESS(INDEX(ROW($A21),1,1),4+cllEndDate+2)),INDIRECT(ADDRESS(INDEX(ROW($A$47),1,1),4+cllStartDate) & ":" & ADDRESS(INDEX(ROW($A$47),1,1),4+cllEndDate+2)))*cllDaysPerWeek/7,BJ21*$B$11),"") ->  | BL21: =IF(BK21<>"",BK21*(Summary!$C$15*Summary!$C$14*Summary!$C$16)/8.25,"") ->  | BN21: 5173.221025 | BO21: 0.25
D22: 1996 | J22: 2.5 | K22: 5.9 | L22: 5.3 | M22: 6.3 | N22: 2.9 | O22: 0.1 | P22: 0.1 | Q22: 1.9 | R22: 0.5 | S22: 1.6 | T22: 3 | U22: 3.5 | V22: 5.1 | W22: 5.9 | X22: 6.4 | Y22: 6.4 | Z22: 3.7 | AA22: 6.2 | AB22: 5.4 | AC22: 5.6 | AD22: 3.8 | AE22: 5.8 | AF22: 6.4 | AG22: 5.4 | AH22: 5.1 | AI22: 2.3 | AJ22: 5.4 | AK22: 6 | AL22: 5.9 | AM22: 3.1 | AN22: 4.5 | AO22: 3.2 | AP22: 4.7 | AX22: 15.5 | AY22: =IF(AX22<>"",IF($B$10=1,SUMPRODUCT(INDIRECT(ADDRESS(INDEX(ROW($A22),1,1),4+cllStartDate) & ":" & ADDRESS(INDEX(ROW($A22),1,1),4+cllEndDate-1)),INDIRECT(ADDRESS(INDEX(ROW($A$47),1,1),4+cllStartDate) & ":" & ADDRESS(INDEX(ROW($A$47),1,1),4+cllEndDate-1)))*cllDaysPerWeek/7,AX22*$B$11),"") -> 161.3024029 | AZ22: =IF(AY22<>"",AY22*(Summary!$C$15*Summary!$C$14*Summary!$C$16)/8.25,"") -> 3570.159851 | BC22: =IF(BB22<>"",IF($B$10=1,SUMPRODUCT(INDIRECT(ADDRESS(INDEX(ROW($A22),1,1),4+cllStartDate) & ":" & ADDRESS(INDEX(ROW($A22),1,1),4+cllEndDate)),INDIRECT(ADDRESS(INDEX(ROW($A$47),1,1),4+cllStartDate) & ":" & ADDRESS(INDEX(ROW($A$47),1,1),4+cllEndDate)))*cllDaysPerWeek/7,BB22*$B$11),"") ->  | BD22: =IF(BC22<>"",BC22*(Summary!$C$15*Summary!$C$14*Summary!$C$16)/8.25,"") ->  | BG22: =IF(BF22<>"",IF($B$10=1,SUMPRODUCT(INDIRECT(ADDRESS(INDEX(ROW($A22),1,1),4+cllStartDate) & ":" & ADDRESS(INDEX(ROW($A22),1,1),4+cllEndDate+1)),INDIRECT(ADDRESS(INDEX(ROW($A$47),1,1),4+cllStartDate) & ":" & ADDRESS(INDEX(ROW($A$47),1,1),4+cllEndDate+1)))*cllDaysPerWeek/7,BF22*$B$11),"") ->  | BH22: =IF(BG22<>"",BG22*(Summary!$C$15*Summary!$C$14*Summary!$C$16)/8.25,"") ->  | BK22: =IF(BJ22<>"",IF($B$10=1,SUMPRODUCT(INDIRECT(ADDRESS(INDEX(ROW($A22),1,1),4+cllStartDate) & ":" & ADDRESS(INDEX(ROW($A22),1,1),4+cllEndDate+2)),INDIRECT(ADDRESS(INDEX(ROW($A$47),1,1),4+cllStartDate) & ":" & ADDRESS(INDEX(ROW($A$47),1,1),4+cllEndDate+2)))*cllDaysPerWeek/7,BJ22*$B$11),"") ->  | BL22: =IF(BK22<>"",BK22*(Summary!$C$15*Summary!$C$14*Summary!$C$16)/8.25,"") ->  | BN22: 5481.657353 | BO22: 0.209
D23: 1997 | E23: =IF(TYPE(VLOOKUP($B$6&$D23&E$2,data,$B$7+5,FALSE))=1,VLOOKUP($B$6&$D23&E$2,data,$B$7+5,FALSE),"") ->  | J23: 5.5 | K23: 1.4 | L23: 0.7 | M23: 0.4 | N23: 2.3 | O23: =IF(TYPE(VLOOKUP($B$6&$D23&O$2,data,$B$7+5,FALSE))=1,VLOOKUP($B$6&$D23&O$2,data,$B$7+5,FALSE),"") -> 3.8 | P23: 5.9 | Q23: 4.7 | R23: 1.1 | S23: 4.9 | T23: 4.3 | U23: 4.7 | V23: 3.8 | W23: 5.2 | X23: 6.1 | Y23: =IF(TYPE(VLOOKUP($B$6&$D23&Y$2,data,$B$7+5,FALSE))=1,VLOOKUP($B$6&$D23&Y$2,data,$B$7+5,FALSE),"") -> 6.9 | Z23: 6.4 | AA23: 6.7 | AB23: 6.9 | AC23: 5.8 | AD23: 4 | AE23: 6.8 | AF23: 5.3 | AG23: 6.4 | AH23: 5.1 | AI23: =IF(TYPE(VLOOKUP($B$6&$D23&AI$2,data,$B$7+5,FALSE))=1,VLOOKUP($B$6&$D23&AI$2,data,$B$7+5,FALSE),"") -> 4.4 | AJ23: 6.8 | AK23: 4.8 | AL23: 4.3 | AM23: 5.8 | AN23: 2.3 | AO23: 2.4 | AP23: 4.2 | AQ23: 5.5 | AX23: 14.7 | AY23: =IF(AX23<>"",IF($B$10=1,SUMPRODUCT(INDIRECT(ADDRESS(INDEX(ROW($A23),1,1),4+cllStartDate) & ":" & ADDRESS(INDEX(ROW($A23),1,1),4+cllEndDate-1)),INDIRECT(ADDRESS(INDEX(ROW($A$47),1,1),4+cllStartDate) & ":" & ADDRESS(INDEX(ROW($A$47),1,1),4+cllEndDate-1)))*cllDaysPerWeek/7,AX23*$B$11),"") -> 154.0855593 | AZ23: =IF(AY23<>"",AY23*(Summary!$C$15*Summary!$C$14*Summary!$C$16)/8.25,"") -> 3410.427047 | BB23: 20.2 | BC23: =IF(BB23<>"",IF($B$10=1,SUMPRODUCT(INDIRECT(ADDRESS(INDEX(ROW($A23),1,1),4+cllStartDate) & ":" & ADDRESS(INDEX(ROW($A23),1,1),4+cllEndDate)),INDIRECT(ADDRESS(INDEX(ROW($A$47),1,1),4+cllStartDate) & ":" & ADDRESS(INDEX(ROW($A$47),1,1),4+cllEndDate)))*cllDaysPerWeek/7,BB23*$B$11),"") -> 208.1237374 | BD23: =IF(BC23<>"",BC23*(Summary!$C$15*Summary!$C$14*Summary!$C$16)/8.25,"") -> 4606.472054 | BG23: =IF(BF23<>"",IF($B$10=1,SUMPRODUCT(INDIRECT(ADDRESS(INDEX(ROW($A23),1,1),4+cllStartDate) & ":" & ADDRESS(INDEX(ROW($A23),1,1),4+cllEndDate+1)),INDIRECT(ADDRESS(INDEX(ROW($A$47),1,1),4+cllStartDate) & ":" & ADDRESS(INDEX(ROW($A$47),1,1),4+cllEndDate+1)))*cllDaysPerWeek/7,BF23*$B$11),"") ->  | BH23: =IF(BG23<>"",BG23*(Summary!$C$15*Summary!$C$14*Summary!$C$16)/8.25,"") ->  | BK23: =IF(BJ23<>"",IF($B$10=1,SUMPRODUCT(INDIRECT(ADDRESS(INDEX(ROW($A23),1,1),4+cllStartDate) & ":" & ADDRESS(INDEX(ROW($A23),1,1),4+cllEndDate+2)),INDIRECT(ADDRESS(INDEX(ROW($A$47),1,1),4+cllStartDate) & ":" & ADDRESS(INDEX(ROW($A$47),1,1),4+cllEndDate+2)))*cllDaysPerWeek/7,BJ23*$B$11),"") ->  | BL23: =IF(BK23<>"",BK23*(Summary!$C$15*Summary!$C$14*Summary!$C$16)/8.25,"") ->  | BN23: 5711.18012 | BO23: 0.167
D24: 1998 | J24: 0.4 | K24: 0.7 | L24: 0.6 | M24: 2.7 | N24: 1.6 | O24: 1.7 | P24: 4.3 | Q24: 4.7 | R24: 4.7 | S24: 4.7 | T24: 1.9 | U24: 1.1 | V24: 2.8 | W24: 4 | X24: 3 | Y24: 5.9 | Z24: 5.9 | AA24: 3.1 | AB24: 4.2 | AC24: 5.5 | AD24: 6.2 | AE24: 4.4 | AF24: 5.1 | AG24: 6.7 | AH24: 1.9 | AI24: 3.4 | AJ24: 5 | AK24: 1.5 | AL24: 5 | AM24: 4.4 | AN24: 4.9 | AO24: 0.4 | AP24: 1.6 | AQ24: 4.5 | AX24: 11.3 | AY24: =IF(AX24<>"",IF($B$10=1,SUMPRODUCT(INDIRECT(ADDRESS(INDEX(ROW($A24),1,1),4+cllStartDate) & ":" & ADDRESS(INDEX(ROW($A24),1,1),4+cllEndDate-1)),INDIRECT(ADDRESS(INDEX(ROW($A$47),1,1),4+cllStartDate) & ":" & ADDRESS(INDEX(ROW($A$47),1,1),4+cllEndDate-1)))*cllDaysPerWeek/7,AX24*$B$11),"") -> 119.6548746 | AZ24: =IF(AY24<>"",AY24*(Summary!$C$15*Summary!$C$14*Summary!$C$16)/8.25,"") -> 2648.361225 | BB24: 15.8 | BC24: =IF(BB24<>"",IF($B$10=1,SUMPRODUCT(INDIRECT(ADDRESS(INDEX(ROW($A24),1,1),4+cllStartDate) & ":" & ADDRESS(INDEX(ROW($A24),1,1),4+cllEndDate)),INDIRECT(ADDRESS(INDEX(ROW($A$47),1,1),4+cllStartDate) & ":" & ADDRESS(INDEX(ROW($A$47),1,1),4+cllEndDate)))*cllDaysPerWeek/7,BB24*$B$11),"") -> 163.8679294 | BD24: =IF(BC24<>"",BC24*(Summary!$C$15*Summary!$C$14*Summary!$C$16)/8.25,"") -> 3626.943503 | BG24: =IF(BF24<>"",IF($B$10=1,SUMPRODUCT(INDIRECT(ADDRESS(INDEX(ROW($A24),1,1),4+cllStartDate) & ":" & ADDRESS(INDEX(ROW($A24),1,1),4+cllEndDate+1)),INDIRECT(ADDRESS(INDEX(ROW($A$47),1,1),4+cllStartDate) & ":" & ADDRESS(INDEX(ROW($A$47),1,1),4+cllEndDate+1)))*cllDaysPerWeek/7,BF24*$B$11),"") ->  | BH24: =IF(BG24<>"",BG24*(Summary!$C$15*Summary!$C$14*Summary!$C$16)/8.25,"") ->  | BK24: =IF(BJ24<>"",IF($B$10=1,SUMPRODUCT(INDIRECT(ADDRESS(INDEX(ROW($A24),1,1),4+cllStartDate) & ":" & ADDRESS(INDEX(ROW($A24),1,1),4+cllEndDate+2)),INDIRECT(ADDRESS(INDEX(ROW($A$47),1,1),4+cllStartDate) & ":" & ADDRESS(INDEX(ROW($A$47),1,1),4+cllEndDate+2)))*cllDaysPerWeek/7,BJ24*$B$11),"") ->  | BL24: =IF(BK24<>"",BK24*(Summary!$C$15*Summary!$C$14*Summary!$C$16)/8.25,"") ->  | BN24: 5983.826992 | BO24: 0.125
D25: 1999 | J25: 5.1 | K25: 3.8 | L25: 1.9 | M25: 0 | N25: 0.6 | O25: 1.2 | P25: 1.5 | Q25: 1.5 | R25: 6.1 | S25: 5.2 | T25: 5.1 | U25: 5.3 | V25: 5 | W25: 4.2 | X25: 6.4 | Y25: 6.6 | Z25: 6.7 | AA25: 7 | AB25: 6 | AC25: 6.3 | AD25: 6.5 | AE25: 6.9 | AF25: 6.9 | AG25: 6.9 | AH25: 6.7 | AI25: 6.9 | AJ25: 3.3 | AK25: 5.5 | AL25: 6.3 | AM25: 6.9 | AN25: 3.3 | AO25: 7 | AY25: =IF(AX25<>"",IF($B$10=1,SUMPRODUCT(INDIRECT(ADDRESS(INDEX(ROW($A25),1,1),4+cllStartDate) & ":" & ADDRESS(INDEX(ROW($A25),1,1),4+cllEndDate-1)),INDIRECT(ADDRESS(INDEX(ROW($A$47),1,1),4+cllStartDate) & ":" & ADDRESS(INDEX(ROW($A$47),1,1),4+cllEndDate-1)))*cllDaysPerWeek/7,AX25*$B$11),"") ->  | AZ25: =IF(AY25<>"",AY25*(Summary!$C$15*Summary!$C$14*Summary!$C$16)/8.25,"") ->  | BC25: =IF(BB25<>"",IF($B$10=1,SUMPRODUCT(INDIRECT(ADDRESS(INDEX(ROW($A25),1,1),4+cllStartDate) & ":" & ADDRESS(INDEX(ROW($A25),1,1),4+cllEndDate)),INDIRECT(ADDRESS(INDEX(ROW($A$47),1,1),4+cllStartDate) & ":" & ADDRESS(INDEX(ROW($A$47),1,1),4+cllEndDate)))*cllDaysPerWeek/7,BB25*$B$11),"") ->  | BD25: =IF(BC25<>"",BC25*(Summary!$C$15*Summary!$C$14*Summary!$C$16)/8.25,"") ->  | BG25: =IF(BF25<>"",IF($B$10=1,SUMPRODUCT(INDIRECT(ADDRESS(INDEX(ROW($A25),1,1),4+cllStartDate) & ":" & ADDRESS(INDEX(ROW($A25),1,1),4+cllEndDate+1)),INDIRECT(ADDRESS(INDEX(ROW($A$47),1,1),4+cllStartDate) & ":" & ADDRESS(INDEX(ROW($A$47),1,1),4+cllEndDate+1)))*cllDaysPerWeek/7,BF25*$B$11),"") ->  | BH25: =IF(BG25<>"",BG25*(Summary!$C$15*Summary!$C$14*Summary!$C$16)/8.25,"") ->  | BK25: =IF(BJ25<>"",IF($B$10=1,SUMPRODUCT(INDIRECT(ADDRESS(INDEX(ROW($A25),1,1),4+cllStartDate) & ":" & ADDRESS(INDEX(ROW($A25),1,1),4+cllEndDate+2)),INDIRECT(ADDRESS(INDEX(ROW($A$47),1,1),4+cllStartDate) & ":" & ADDRESS(INDEX(ROW($A$47),1,1),4+cllEndDate+2)))*cllDaysPerWeek/7,BJ25*$B$11),"") ->  | BL25: =IF(BK25<>"",BK25*(Summary!$C$15*Summary!$C$14*Summary!$C$16)/8.25,"") ->  | BN25: 6223.078257 | BO25: 0.084
D26: 2000 | J26: 6.3 | K26: 6.7 | L26: 6.7 | M26: 5.7 | N26: 5.4 | O26: 6.9 | P26: 5.3 | Q26: 6.3 | R26: 4.8 | S26: 5.9 | T26: 5.6 | U26: 3 | V26: 2.5 | W26: 4.6 | X26: 4.6 | Y26: 5.2 | Z26: 5.2 | AA26: 4.8 | AB26: 4.8 | AC26: 4.4 | AD26: 4.4 | AE26: 5.1 | AF26: 6.7 | AG26: 6.9 | AH26: 6 | AI26: 4.1 | AJ26: 5.5 | AK26: 4 | AL26: 5.5 | AM26: 4.9 | AN26: 2.8 | AO26: 3.8 | AY26: =IF(AX26<>"",IF($B$10=1,SUMPRODUCT(INDIRECT(ADDRESS(INDEX(ROW($A26),1,1),4+cllStartDate) & ":" & ADDRESS(INDEX(ROW($A26),1,1),4+cllEndDate-1)),INDIRECT(ADDRESS(INDEX(ROW($A$47),1,1),4+cllStartDate) & ":" & ADDRESS(INDEX(ROW($A$47),1,1),4+cllEndDate-1)))*cllDaysPerWeek/7,AX26*$B$11),"") ->  | AZ26: =IF(AY26<>"",AY26*(Summary!$C$15*Summary!$C$14*Summary!$C$16)/8.25,"") ->  | BC26: =IF(BB26<>"",IF($B$10=1,SUMPRODUCT(INDIRECT(ADDRESS(INDEX(ROW($A26),1,1),4+cllStartDate) & ":" & ADDRESS(INDEX(ROW($A26),1,1),4+cllEndDate)),INDIRECT(ADDRESS(INDEX(ROW($A$47),1,1),4+cllStartDate) & ":" & ADDRESS(INDEX(ROW($A$47),1,1),4+cllEndDate)))*cllDaysPerWeek/7,BB26*$B$11),"") ->  | BD26: =IF(BC26<>"",BC26*(Summary!$C$15*Summary!$C$14*Summary!$C$16)/8.25,"") ->  | BG26: =IF(BF26<>"",IF($B$10=1,SUMPRODUCT(INDIRECT(ADDRESS(INDEX(ROW($A26),1,1),4+cllStartDate) & ":" & ADDRESS(INDEX(ROW($A26),1,1),4+cllEndDate+1)),INDIRECT(ADDRESS(INDEX(ROW($A$47),1,1),4+cllStartDate) & ":" & ADDRESS(INDEX(ROW($A$47),1,1),4+cllEndDate+1)))*cllDaysPerWeek/7,BF26*$B$11),"") ->  | BH26: =IF(BG26<>"",BG26*(Summary!$C$15*Summary!$C$14*Summary!$C$16)/8.25,"") ->  | BK26: =IF(BJ26<>"",IF($B$10=1,SUMPRODUCT(INDIRECT(ADDRESS(INDEX(ROW($A26),1,1),4+cllStartDate) & ":" & ADDRESS(INDEX(ROW($A26),1,1),4+cllEndDate+2)),INDIRECT(ADDRESS(INDEX(ROW($A$47),1,1),4+cllStartDate) & ":" & ADDRESS(INDEX(ROW($A$47),1,1),4+cllEndDate+2)))*cllDaysPerWeek/7,BJ26*$B$11),"") ->  | BL26: =IF(BK26<>"",BK26*(Summary!$C$15*Summary!$C$14*Summary!$C$16)/8.25,"") ->  | BN26: 6856.350578 | BO26: 0.042
D27: 2001 | J27: 1 | K27: 2.3 | L27: 1.5 | M27: 3.1 | N27: 5 | O27: 2.8 | P27: 1.9 | Q27: 1.7 | R27: 2.9 | S27: 1.2 | T27: 0.4 | U27: 2.8 | V27: 2 | W27: 6.1 | X27: 5.2 | Y27: 6 | Z27: 5.6 | AA27: 3.1 | AB27: 6.1 | AC27: 6.9 | AD27: 6.1 | AE27: 4 | AF27: 5.1 | AG27: 5.3 | AH27: 6 | AI27: 2.1 | AJ27: 6.5 | AK27: 4.6 | AL27: 3.2 | AM27: 3.7 | AN27: 4.3 | AO27: 6.7 | AP27: 6.9 | AX27: 21.6 | AY27: =IF(AX27<>"",IF($B$10=1,SUMPRODUCT(INDIRECT(ADDRESS(INDEX(ROW($A27),1,1),4+cllStartDate) & ":" & ADDRESS(INDEX(ROW($A27),1,1),4+cllEndDate-1)),INDIRECT(ADDRESS(INDEX(ROW($A$47),1,1),4+cllStartDate) & ":" & ADDRESS(INDEX(ROW($A$47),1,1),4+cllEndDate-1)))*cllDaysPerWeek/7,AX27*$B$11),"") -> 223.8286273 | AZ27: =IF(AY27<>"",AY27*(Summary!$C$15*Summary!$C$14*Summary!$C$16)/8.25,"") -> 4954.073617 | BC27: =IF(BB27<>"",IF($B$10=1,SUMPRODUCT(INDIRECT(ADDRESS(INDEX(ROW($A27),1,1),4+cllStartDate) & ":" & ADDRESS(INDEX(ROW($A27),1,1),4+cllEndDate)),INDIRECT(ADDRESS(INDEX(ROW($A$47),1,1),4+cllStartDate) & ":" & ADDRESS(INDEX(ROW($A$47),1,1),4+cllEndDate)))*cllDaysPerWeek/7,BB27*$B$11),"") ->  | BD27: =IF(BC27<>"",BC27*(Summary!$C$15*Summary!$C$14*Summary!$C$16)/8.25,"") ->  | BG27: =IF(BF27<>"",IF($B$10=1,SUMPRODUCT(INDIRECT(ADDRESS(INDEX(ROW($A27),1,1),4+cllStartDate) & ":" & ADDRESS(INDEX(ROW($A27),1,1),4+cllEndDate+1)),INDIRECT(ADDRESS(INDEX(ROW($A$47),1,1),4+cllStartDate) & ":" & ADDRESS(INDEX(ROW($A$47),1,1),4+cllEndDate+1)))*cllDaysPerWeek/7,BF27*$B$11),"") ->  | BH27: =IF(BG27<>"",BG27*(Summary!$C$15*Summary!$C$14*Summary!$C$16)/8.25,"") ->  | BK27: =IF(BJ27<>"",IF($B$10=1,SUMPRODUCT(INDIRECT(ADDRESS(INDEX(ROW($A27),1,1),4+cllStartDate) & ":" & ADDRESS(INDEX(ROW($A27),1,1),4+cllEndDate+2)),INDIRECT(ADDRESS(INDEX(ROW($A$47),1,1),4+cllStartDate) & ":" & ADDRESS(INDEX(ROW($A$47),1,1),4+cllEndDate+2)))*cllDaysPerWeek/7,BJ27*$B$11),"") ->  | BL27: =IF(BK27<>"",BK27*(Summary!$C$15*Summary!$C$14*Summary!$C$16)/8.25,"") ->  | BN27: 6904.393152 | BO27: 0
D28: 2002 | J28: 6.1 | K28: 4.6 | L28: 4.2 | M28: 1.3 | N28: 2.1 | O28: 0 | P28: 0.7 | Q28: 2.7 | R28: 5.3 | S28: 7 | T28: 2.9 | U28: 6.9 | V28: 7 | W28: 6.4 | X28: 4.3 | Y28: 6.8 | Z28: 5.9 | AA28: 6.2 | AB28: 6.6 | AC28: 4.7 | AD28: 2.5 | AE28: 6.9 | AF28: 6.9 | AG28: 6.6 | AH28: 4.8 | AI28: 6.9 | AJ28: 4 | AK28: 6.2 | AL28: 5.2 | AM28: 2.8 | AN28: 1.4 | AO28: 4.3 | AY28: =IF(AX28<>"",IF($B$10=1,SUMPRODUCT(INDIRECT(ADDRESS(INDEX(ROW($A28),1,1),4+cllStartDate) & ":" & ADDRESS(INDEX(ROW($A28),1,1),4+cllEndDate-1)),INDIRECT(ADDRESS(INDEX(ROW($A$47),1,1),4+cllStartDate) & ":" & ADDRESS(INDEX(ROW($A$47),1,1),4+cllEndDate-1)))*cllDaysPerWeek/7,AX28*$B$11),"") ->  | AZ28: =IF(AY28<>"",AY28*(Summary!$C$15*Summary!$C$14*Summary!$C$16)/8.25,"") ->  | BC28: =IF(BB28<>"",IF($B$10=1,SUMPRODUCT(INDIRECT(ADDRESS(INDEX(ROW($A28),1,1),4+cllStartDate) & ":" & ADDRESS(INDEX(ROW($A28),1,1),4+cllEndDate)),INDIRECT(ADDRESS(INDEX(ROW($A$47),1,1),4+cllStartDate) & ":" & ADDRESS(INDEX(ROW($A$47),1,1),4+cllEndDate)))*cllDaysPerWeek/7,BB28*$B$11),"") ->  | BD28: =IF(BC28<>"",BC28*(Summary!$C$15*Summary!$C$14*Summary!$C$16)/8.25,"") ->  | BG28: =IF(BF28<>"",IF($B$10=1,SUMPRODUCT(INDIRECT(ADDRESS(INDEX(ROW($A28),1,1),4+cllStartDate) & ":" & ADDRESS(INDEX(ROW($A28),1,1),4+cllEndDate+1)),INDIRECT(ADDRESS(INDEX(ROW($A$47),1,1),4+cllStartDate) & ":" & ADDRESS(INDEX(ROW($A$47),1,1),4+cllEndDate+1)))*cllDaysPerWeek/7,BF28*$B$11),"") ->  | BH28: =IF(BG28<>"",BG28*(Summary!$C$15*Summary!$C$14*Summary!$C$16)/8.25,"") ->  | BK28: =IF(BJ28<>"",IF($B$10=1,SUMPRODUCT(INDIRECT(ADDRESS(INDEX(ROW($A28),1,1),4+cllStartDate) & ":" & ADDRESS(INDEX(ROW($A28),1,1),4+cllEndDate+2)),INDIRECT(ADDRESS(INDEX(ROW($A$47),1,1),4+cllStartDate) & ":" & ADDRESS(INDEX(ROW($A$47),1,1),4+cllEndDate+2)))*cllDaysPerWeek/7,BJ28*$B$11),"") ->  | BL28: =IF(BK28<>"",BK28*(Summary!$C$15*Summary!$C$14*Summary!$C$16)/8.25,"") -> 
D29: 2003 | J29: 4.6 | K29: 5.7 | L29: 3.14 | M29: 1.8 | N29: 1.4 | O29: 1.1 | P29: 3 | Q29: 4.3 | R29: 5.6 | S29: 2.5 | T29: 2.2 | U29: 6.2 | V29: 4.6 | W29: 6.4 | X29: 6 | Y29: 5.4 | Z29: 6.9 | AA29: 6.6 | AB29: 6.9 | AC29: 6.9 | AD29: 6.9 | AE29: 6.9 | AF29: 5.3 | AG29: 3.3 | AH29: 3.4 | AI29: 5.3 | AJ29: 6.4 | AK29: 5.9 | AL29: 4.7 | AM29: 6.2 | AN29: 4.8 | AO29: 5.5 | AP29: 5.2 | AX29: 21.7 | AY29: =IF(AX29<>"",IF($B$10=1,SUMPRODUCT(INDIRECT(ADDRESS(INDEX(ROW($A29),1,1),4+cllStartDate) & ":" & ADDRESS(INDEX(ROW($A29),1,1),4+cllEndDate-1)),INDIRECT(ADDRESS(INDEX(ROW($A$47),1,1),4+cllStartDate) & ":" & ADDRESS(INDEX(ROW($A$47),1,1),4+cllEndDate-1)))*cllDaysPerWeek/7,AX29*$B$11),"") -> 226.7854684 | AZ29: =IF(AY29<>"",AY29*(Summary!$C$15*Summary!$C$14*Summary!$C$16)/8.25,"") -> 5019.518367 | BC29: =IF(BB29<>"",IF($B$10=1,SUMPRODUCT(INDIRECT(ADDRESS(INDEX(ROW($A29),1,1),4+cllStartDate) & ":" & ADDRESS(INDEX(ROW($A29),1,1),4+cllEndDate)),INDIRECT(ADDRESS(INDEX(ROW($A$47),1,1),4+cllStartDate) & ":" & ADDRESS(INDEX(ROW($A$47),1,1),4+cllEndDate)))*cllDaysPerWeek/7,BB29*$B$11),"") ->  | BD29: =IF(BC29<>"",BC29*(Summary!$C$15*Summary!$C$14*Summary!$C$16)/8.25,"") ->  | BG29: =IF(BF29<>"",IF($B$10=1,SUMPRODUCT(INDIRECT(ADDRESS(INDEX(ROW($A29),1,1),4+cllStartDate) & ":" & ADDRESS(INDEX(ROW($A29),1,1),4+cllEndDate+1)),INDIRECT(ADDRESS(INDEX(ROW($A$47),1,1),4+cllStartDate) & ":" & ADDRESS(INDEX(ROW($A$47),1,1),4+cllEndDate+1)))*cllDaysPerWeek/7,BF29*$B$11),"") ->  | BH29: =IF(BG29<>"",BG29*(Summary!$C$15*Summary!$C$14*Summary!$C$16)/8.25,"") ->  | BK29: =IF(BJ29<>"",IF($B$10=1,SUMPRODUCT(INDIRECT(ADDRESS(INDEX(ROW($A29),1,1),4+cllStartDate) & ":" & ADDRESS(INDEX(ROW($A29),1,1),4+cllEndDate+2)),INDIRECT(ADDRESS(INDEX(ROW($A$47),1,1),4+cllStartDate) & ":" & ADDRESS(INDEX(ROW($A$47),1,1),4+cllEndDate+2)))*cllDaysPerWeek/7,BJ29*$B$11),"") ->  | BL29: =IF(BK29<>"",BK29*(Summary!$C$15*Summary!$C$14*Summary!$C$16)/8.25,"") -> 
D30: 2004 | J30: 3.6 | K30: 4.8 | L30: 7 | M30: 2.6 | N30: 2.6 | O30: 5 | P30: 3.9 | Q30: 2.6 | R30: 1.3 | S30: 4.1 | T30: 2.1 | U30: 1 | V30: 3.7 | W30: 3.9 | X30: 2.4 | Y30: 4.4 | Z30: 4.8 | AA30: 5.5 | AB30: 3.2 | AC30: 6.7 | AD30: 5.1 | AE30: 1 | AF30: 4.2 | AG30: 6.2 | AH30: 4.4 | AI30: 6.6 | AJ30: 5.5 | AK30: 3.8 | AL30: 4.1 | AM30: 2.3 | AN30: 1.7 | AO30: 2.9 | AP30: 5.5 | AQ30: 5.2 | AX30: 12.4 | AY30: =IF(AX30<>"",IF($B$10=1,SUMPRODUCT(INDIRECT(ADDRESS(INDEX(ROW($A30),1,1),4+cllStartDate) & ":" & ADDRESS(INDEX(ROW($A30),1,1),4+cllEndDate-1)),INDIRECT(ADDRESS(INDEX(ROW($A$47),1,1),4+cllStartDate) & ":" & ADDRESS(INDEX(ROW($A$47),1,1),4+cllEndDate-1)))*cllDaysPerWeek/7,AX30*$B$11),"") -> 128.0045253 | AZ30: =IF(AY30<>"",AY30*(Summary!$C$15*Summary!$C$14*Summary!$C$16)/8.25,"") -> 2833.166828 | BB30: 17.6 | BC30: =IF(BB30<>"",IF($B$10=1,SUMPRODUCT(INDIRECT(ADDRESS(INDEX(ROW($A30),1,1),4+cllStartDate) & ":" & ADDRESS(INDEX(ROW($A30),1,1),4+cllEndDate)),INDIRECT(ADDRESS(INDEX(ROW($A$47),1,1),4+cllStartDate) & ":" & ADDRESS(INDEX(ROW($A$47),1,1),4+cllEndDate)))*cllDaysPerWeek/7,BB30*$B$11),"") -> 179.0951664 | BD30: =IF(BC30<>"",BC30*(Summary!$C$15*Summary!$C$14*Summary!$C$16)/8.25,"") -> 3963.973016 | BG30: =IF(BF30<>"",IF($B$10=1,SUMPRODUCT(INDIRECT(ADDRESS(INDEX(ROW($A30),1,1),4+cllStartDate) & ":" & ADDRESS(INDEX(ROW($A30),1,1),4+cllEndDate+1)),INDIRECT(ADDRESS(INDEX(ROW($A$47),1,1),4+cllStartDate) & ":" & ADDRESS(INDEX(ROW($A$47),1,1),4+cllEndDate+1)))*cllDaysPerWeek/7,BF30*$B$11),"") ->  | BH30: =IF(BG30<>"",BG30*(Summary!$C$15*Summary!$C$14*Summary!$C$16)/8.25,"") ->  | BK30: =IF(BJ30<>"",IF($B$10=1,SUMPRODUCT(INDIRECT(ADDRESS(INDEX(ROW($A30),1,1),4+cllStartDate) & ":" & ADDRESS(INDEX(ROW($A30),1,1),4+cllEndDate+2)),INDIRECT(ADDRESS(INDEX(ROW($A$47),1,1),4+cllStartDate) & ":" & ADDRESS(INDEX(ROW($A$47),1,1),4+cllEndDate+2)))*cllDaysPerWeek/7,BJ30*$B$11),"") ->  | BL30: =IF(BK30<>"",BK30*(Summary!$C$15*Summary!$C$14*Summary!$C$16)/8.25,"") -> 
D31: 2005 | J31: 5.53 | K31: 5.78 | L31: 3.3 | M31: 2.6 | N31: 2.8 | O31: 5.3 | P31: 2.8 | Q31: 4.5 | R31: 6.1 | S31: 4.5 | T31: 1.3 | U31: 5.4 | V31: 6.8 | W31: 4.6 | X31: 6.3 | Y31: 6.9 | Z31: 6.8 | AA31: 5.7 | AB31: 6.7 | AC31: 4.8 | AD31: 4 | AE31: 3.9 | AF31: 6.7 | AG31: 6.9 | AH31: 5.6 | AI31: 5 | AJ31: 4.5 | AK31: 5.2 | AL31: 6.6 | AM31: 4.1 | AN31: 6.1 | AO31: 5.9 | AP31: 6.6 | AX31: 22.7 | AY31: =IF(AX31<>"",IF($B$10=1,SUMPRODUCT(INDIRECT(ADDRESS(INDEX(ROW($A31),1,1),4+cllStartDate) & ":" & ADDRESS(INDEX(ROW($A31),1,1),4+cllEndDate-1)),INDIRECT(ADDRESS(INDEX(ROW($A$47),1,1),4+cllStartDate) & ":" & ADDRESS(INDEX(ROW($A$47),1,1),4+cllEndDate-1)))*cllDaysPerWeek/7,AX31*$B$11),"") -> 235.9273483 | AZ31: =IF(AY31<>"",AY31*(Summary!$C$15*Summary!$C$14*Summary!$C$16)/8.25,"") -> 5221.858641 | BC31: =IF(BB31<>"",IF($B$10=1,SUMPRODUCT(INDIRECT(ADDRESS(INDEX(ROW($A31),1,1),4+cllStartDate) & ":" & ADDRESS(INDEX(ROW($A31),1,1),4+cllEndDate)),INDIRECT(ADDRESS(INDEX(ROW($A$47),1,1),4+cllStartDate) & ":" & ADDRESS(INDEX(ROW($A$47),1,1),4+cllEndDate)))*cllDaysPerWeek/7,BB31*$B$11),"") ->  | BD31: =IF(BC31<>"",BC31*(Summary!$C$15*Summary!$C$14*Summary!$C$16)/8.25,"") ->  | BG31: =IF(BF31<>"",IF($B$10=1,SUMPRODUCT(INDIRECT(ADDRESS(INDEX(ROW($A31),1,1),4+cllStartDate) & ":" & ADDRESS(INDEX(ROW($A31),1,1),4+cllEndDate+1)),INDIRECT(ADDRESS(INDEX(ROW($A$47),1,1),4+cllStartDate) & ":" & ADDRESS(INDEX(ROW($A$47),1,1),4+cllEndDate+1)))*cllDaysPerWeek/7,BF31*$B$11),"") ->  | BH31: =IF(BG31<>"",BG31*(Summary!$C$15*Summary!$C$14*Summary!$C$16)/8.25,"") ->  | BK31: =IF(BJ31<>"",IF($B$10=1,SUMPRODUCT(INDIRECT(ADDRESS(INDEX(ROW($A31),1,1),4+cllStartDate) & ":" & ADDRESS(INDEX(ROW($A31),1,1),4+cllEndDate+2)),INDIRECT(ADDRESS(INDEX(ROW($A$47),1,1),4+cllStartDate) & ":" & ADDRESS(INDEX(ROW($A$47),1,1),4+cllEndDate+2)))*cllDaysPerWeek/7,BJ31*$B$11),"") ->  | BL31: =IF(BK31<>"",BK31*(Summary!$C$15*Summary!$C$14*Summary!$C$16)/8.25,"") -> 
D32: 2006 | J32: 1.9 | K32: 3.9 | L32: 6.1 | M32: 3.2 | N32: 4.2 | O32: 1.7 | P32: 3.8 | Q32: 6.3 | R32: 6.7 | S32: 4.4 | T32: 5.1 | U32: 5.7 | V32: 4.6 | W32: 6.3 | X32: 6.4 | Y32: 5.5 | Z32: 5.7 | AA32: 6.4 | AB32: 6.5 | AC32: 5.2 | AD32: 4.3 | AE32: 4.2 | AF32: 4.8 | AG32: 5.4 | AH32: 5.1 | AI32: 5.8 | AJ32: 6.6 | AK32: 6.8 | AL32: 5.6 | AM32: 2.9 | AN32: 2.2 | AO32: 5.7 | AP32: 4.9 | AQ32: 6.2 | AX32: 15.7 | AY32: =IF(AX32<>"",IF($B$10=1,SUMPRODUCT(INDIRECT(ADDRESS(INDEX(ROW($A32),1,1),4+cllStartDate) & ":" & ADDRESS(INDEX(ROW($A32),1,1),4+cllEndDate-1)),INDIRECT(ADDRESS(INDEX(ROW($A$47),1,1),4+cllStartDate) & ":" & ADDRESS(INDEX(ROW($A$47),1,1),4+cllEndDate-1)))*cllDaysPerWeek/7,AX32*$B$11),"") -> 162.5870852 | AZ32: =IF(AY32<>"",AY32*(Summary!$C$15*Summary!$C$14*Summary!$C$16)/8.25,"") -> 3598.594153 | BB32: 21.9 | BC32: =IF(BB32<>"",IF($B$10=1,SUMPRODUCT(INDIRECT(ADDRESS(INDEX(ROW($A32),1,1),4+cllStartDate) & ":" & ADDRESS(INDEX(ROW($A32),1,1),4+cllEndDate)),INDIRECT(ADDRESS(INDEX(ROW($A$47),1,1),4+cllStartDate) & ":" & ADDRESS(INDEX(ROW($A$47),1,1),4+cllEndDate)))*cllDaysPerWeek/7,BB32*$B$11),"") -> 223.5028496 | BD32: =IF(BC32<>"",BC32*(Summary!$C$15*Summary!$C$14*Summary!$C$16)/8.25,"") -> 4946.863071 | BG32: =IF(BF32<>"",IF($B$10=1,SUMPRODUCT(INDIRECT(ADDRESS(INDEX(ROW($A32),1,1),4+cllStartDate) & ":" & ADDRESS(INDEX(ROW($A32),1,1),4+cllEndDate+1)),INDIRECT(ADDRESS(INDEX(ROW($A$47),1,1),4+cllStartDate) & ":" & ADDRESS(INDEX(ROW($A$47),1,1),4+cllEndDate+1)))*cllDaysPerWeek/7,BF32*$B$11),"") ->  | BH32: =IF(BG32<>"",BG32*(Summary!$C$15*Summary!$C$14*Summary!$C$16)/8.25,"") ->  | BK32: =IF(BJ32<>"",IF($B$10=1,SUMPRODUCT(INDIRECT(ADDRESS(INDEX(ROW($A32),1,1),4+cllStartDate) & ":" & ADDRESS(INDEX(ROW($A32),1,1),4+cllEndDate+2)),INDIRECT(ADDRESS(INDEX(ROW($A$47),1,1),4+cllStartDate) & ":" & ADDRESS(INDEX(ROW($A$47),1,1),4+cllEndDate+2)))*cllDaysPerWeek/7,BJ32*$B$11),"") ->  | BL32: =IF(BK32<>"",BK32*(Summary!$C$15*Summary!$C$14*Summary!$C$16)/8.25,"") -> 
D33: 2007 | E33: =IF(TYPE(VLOOKUP($B$6&$D33&E$2,data,$B$7+5,FALSE))=1,VLOOKUP($B$6&$D33&E$2,data,$B$7+5,FALSE),"") ->  | J33: 1.8 | K33: 1.5 | L33: 1.9 | M33: 4.6 | N33: 2 | O33: =IF(TYPE(VLOOKUP($B$6&$D33&O$2,data,$B$7+5,FALSE))=1,VLOOKUP($B$6&$D33&O$2,data,$B$7+5,FALSE),"") -> 1.4 | P33: 1.6 | Q33: 4.8 | R33: 4.3 | S33: 2.6 | T33: 4.4 | U33: 6.4 | V33: 5.5 | W33: 3.2 | X33: 6.1 | Y33: =IF(TYPE(VLOOKUP($B$6&$D33&Y$2,data,$B$7+5,FALSE))=1,VLOOKUP($B$6&$D33&Y$2,data,$B$7+5,FALSE),"") -> 5.6 | Z33: 6.6 | AA33: 6.8 | AB33: 6.9 | AC33: 5.5 | AE33: 4.4 | AF33: 6.7 | AG33: 5.1 | AH33: 6.6 | AI33: =IF(TYPE(VLOOKUP($B$6&$D33&AI$2,data,$B$7+5,FALSE))=1,VLOOKUP($B$6&$D33&AI$2,data,$B$7+5,FALSE),"") -> 6.5 | AJ33: 5.6 | AK33: 4.9 | AL33: 4.5 | AM33: 2.4 | AN33: 5.2 | AO33: 6.9 | AP33: 6.6 | AQ33: 6.4 | AX33: 21.1 | AY33: =IF(AX33<>"",IF($B$10=1,SUMPRODUCT(INDIRECT(ADDRESS(INDEX(ROW($A33),1,1),4+cllStartDate) & ":" & ADDRESS(INDEX(ROW($A33),1,1),4+cllEndDate-1)),INDIRECT(ADDRESS(INDEX(ROW($A$47),1,1),4+cllStartDate) & ":" & ADDRESS(INDEX(ROW($A$47),1,1),4+cllEndDate-1)))*cllDaysPerWeek/7,AX33*$B$11),"") -> 218.2823853 | AZ33: =IF(AY33<>"",AY33*(Summary!$C$15*Summary!$C$14*Summary!$C$16)/8.25,"") -> 4831.316794 | BB33: 27.5 | BC33: =IF(BB33<>"",IF($B$10=1,SUMPRODUCT(INDIRECT(ADDRESS(INDEX(ROW($A33),1,1),4+cllStartDate) & ":" & ADDRESS(INDEX(ROW($A33),1,1),4+cllEndDate)),INDIRECT(ADDRESS(INDEX(ROW($A$47),1,1),4+cllStartDate) & ":" & ADDRESS(INDEX(ROW($A$47),1,1),4+cllEndDate)))*cllDaysPerWeek/7,BB33*$B$11),"") -> 281.1631743 | BD33: =IF(BC33<>"",BC33*(Summary!$C$15*Summary!$C$14*Summary!$C$16)/8.25,"") -> 6223.078257 | BG33: =IF(BF33<>"",IF($B$10=1,SUMPRODUCT(INDIRECT(ADDRESS(INDEX(ROW($A33),1,1),4+cllStartDate) & ":" & ADDRESS(INDEX(ROW($A33),1,1),4+cllEndDate+1)),INDIRECT(ADDRESS(INDEX(ROW($A$47),1,1),4+cllStartDate) & ":" & ADDRESS(INDEX(ROW($A$47),1,1),4+cllEndDate+1)))*cllDaysPerWeek/7,BF33*$B$11),"") ->  | BH33: =IF(BG33<>"",BG33*(Summary!$C$15*Summary!$C$14*Summary!$C$16)/8.25,"") ->  | BK33: =IF(BJ33<>"",IF($B$10=1,SUMPRODUCT(INDIRECT(ADDRESS(INDEX(ROW($A33),1,1),4+cllStartDate) & ":" & ADDRESS(INDEX(ROW($A33),1,1),4+cllEndDate+2)),INDIRECT(ADDRESS(INDEX(ROW($A$47),1,1),4+cllStartDate) & ":" & ADDRESS(INDEX(ROW($A$47),1,1),4+cllEndDate+2)))*cllDaysPerWeek/7,BJ33*$B$11),"") ->  | BL33: =IF(BK33<>"",BK33*(Summary!$C$15*Summary!$C$14*Summary!$C$16)/8.25,"") -> 
D34: 2008 | I34: 1.9 | J34: 3.2 | K34: 0.6 | L34: 0.9 | M34: 0.3 | N34: 1.1 | O34: 2 | P34: 3.9 | Q34: 4 | R34: 2.6 | S34: 1.3 | T34: 0.5 | U34: 2.6 | V34: 1.1 | W34: 3.1 | X34: 3.5 | Y34: 5.9 | Z34: 2.4 | AA34: 4 | AB34: 6.7 | AC34: 5.2 | AD34: 5 | AE34: 5.5 | AF34: 2.5 | AG34: 0.4 | AH34: 4.4 | AI34: 6.4 | AJ34: 6.4 | AK34: 5.8 | AL34: 3.8 | AM34: 3.2 | AN34: 6.5 | AO34: 4.1 | AP34: 3.3 | AQ34: 5.6 | AX34: 17.1 | AY34: =IF(AX34<>"",IF($B$10=1,SUMPRODUCT(INDIRECT(ADDRESS(INDEX(ROW($A34),1,1),4+cllStartDate) & ":" & ADDRESS(INDEX(ROW($A34),1,1),4+cllEndDate-1)),INDIRECT(ADDRESS(INDEX(ROW($A$47),1,1),4+cllStartDate) & ":" & ADDRESS(INDEX(ROW($A$47),1,1),4+cllEndDate-1)))*cllDaysPerWeek/7,AX34*$B$11),"") -> 178.7091752 | AZ34: =IF(AY34<>"",AY34*(Summary!$C$15*Summary!$C$14*Summary!$C$16)/8.25,"") -> 3955.429745 | BB34: 22.7 | BC34: =IF(BB34<>"",IF($B$10=1,SUMPRODUCT(INDIRECT(ADDRESS(INDEX(ROW($A34),1,1),4+cllStartDate) & ":" & ADDRESS(INDEX(ROW($A34),1,1),4+cllEndDate)),INDIRECT(ADDRESS(INDEX(ROW($A$47),1,1),4+cllStartDate) & ":" & ADDRESS(INDEX(ROW($A$47),1,1),4+cllEndDate)))*cllDaysPerWeek/7,BB34*$B$11),"") -> 233.7298656 | BD34: =IF(BC34<>"",BC34*(Summary!$C$15*Summary!$C$14*Summary!$C$16)/8.25,"") -> 5173.221025 | BG34: =IF(BF34<>"",IF($B$10=1,SUMPRODUCT(INDIRECT(ADDRESS(INDEX(ROW($A34),1,1),4+cllStartDate) & ":" & ADDRESS(INDEX(ROW($A34),1,1),4+cllEndDate+1)),INDIRECT(ADDRESS(INDEX(ROW($A$47),1,1),4+cllStartDate) & ":" & ADDRESS(INDEX(ROW($A$47),1,1),4+cllEndDate+1)))*cllDaysPerWeek/7,BF34*$B$11),"") ->  | BH34: =IF(BG34<>"",BG34*(Summary!$C$15*Summary!$C$14*Summary!$C$16)/8.25,"") ->  | BK34: =IF(BJ34<>"",IF($B$10=1,SUMPRODUCT(INDIRECT(ADDRESS(INDEX(ROW($A34),1,1),4+cllStartDate) & ":" & ADDRESS(INDEX(ROW($A34),1,1),4+cllEndDate+2)),INDIRECT(ADDRESS(INDEX(ROW($A$47),1,1),4+cllStartDate) & ":" & ADDRESS(INDEX(ROW($A$47),1,1),4+cllEndDate+2)))*cllDaysPerWeek/7,BJ34*$B$11),"") ->  | BL34: =IF(BK34<>"",BK34*(Summary!$C$15*Summary!$C$14*Summary!$C$16)/8.25,"") -> 
D35: 2009 | I35: 1.5 | J35: 0.7 | K35: 1 | L35: 1.1 | M35: 3.5 | N35: 0.7 | O35: 2.3 | P35: 2 | Q35: 4.9 | R35: 3.2 | S35: 3.2 | T35: 1.7 | U35: 1.1 | V35: 4.2 | W35: 5.2 | X35: 4.4 | Y35: 5.7 | Z35: 5.7 | AA35: 4.8 | AB35: 5.2 | AC35: 4 | AD35: 2 | AE35: 4.6 | AF35: 5.5 | AG35: 6.7 | AH35: 6.9 | AI35: 4.9 | AJ35: 4.4 | AK35: 2.3 | AL35: 2.2 | AM35: 2.33 | AN35: 1.4 | AO35: 6.1 | AP35: 4.8 | AQ35: 1.4 | AR35: 4.3 | AS35: 5.5 | AX35: 14.63 | AY35: =IF(AX35<>"",IF($B$10=1,SUMPRODUCT(INDIRECT(ADDRESS(INDEX(ROW($A35),1,1),4+cllStartDate) & ":" & ADDRESS(INDEX(ROW($A35),1,1),4+cllEndDate-1)),INDIRECT(ADDRESS(INDEX(ROW($A$47),1,1),4+cllStartDate) & ":" & ADDRESS(INDEX(ROW($A$47),1,1),4+cllEndDate-1)))*cllDaysPerWeek/7,AX35*$B$11),"") -> 151.0701366 | AZ35: =IF(AY35<>"",AY35*(Summary!$C$15*Summary!$C$14*Summary!$C$16)/8.25,"") -> 3343.68569 | BB35: 16.03 | BC35: =IF(BB35<>"",IF($B$10=1,SUMPRODUCT(INDIRECT(ADDRESS(INDEX(ROW($A35),1,1),4+cllStartDate) & ":" & ADDRESS(INDEX(ROW($A35),1,1),4+cllEndDate)),INDIRECT(ADDRESS(INDEX(ROW($A$47),1,1),4+cllStartDate) & ":" & ADDRESS(INDEX(ROW($A$47),1,1),4+cllEndDate)))*cllDaysPerWeek/7,BB35*$B$11),"") -> 164.8253092 | BD35: =IF(BC35<>"",BC35*(Summary!$C$15*Summary!$C$14*Summary!$C$16)/8.25,"") -> 3648.13351 | BF35: 20.33 | BG35: =IF(BF35<>"",IF($B$10=1,SUMPRODUCT(INDIRECT(ADDRESS(INDEX(ROW($A35),1,1),4+cllStartDate) & ":" & ADDRESS(INDEX(ROW($A35),1,1),4+cllEndDate+1)),INDIRECT(ADDRESS(INDEX(ROW($A$47),1,1),4+cllStartDate) & ":" & ADDRESS(INDEX(ROW($A$47),1,1),4+cllEndDate+1)))*cllDaysPerWeek/7,BF35*$B$11),"") -> 206.2608117 | BH35: =IF(BG35<>"",BG35*(Summary!$C$15*Summary!$C$14*Summary!$C$16)/8.25,"") -> 4565.239299 | BJ35: 25.83 | BK35: =IF(BJ35<>"",IF($B$10=1,SUMPRODUCT(INDIRECT(ADDRESS(INDEX(ROW($A35),1,1),4+cllStartDate) & ":" & ADDRESS(INDEX(ROW($A35),1,1),4+cllEndDate+2)),INDIRECT(ADDRESS(INDEX(ROW($A$47),1,1),4+cllStartDate) & ":" & ADDRESS(INDEX(ROW($A$47),1,1),4+cllEndDate+2)))*cllDaysPerWeek/7,BJ35*$B$11),"") -> 258.437472 | BL35: =IF(BK35<>"",BK35*(Summary!$C$15*Summary!$C$14*Summary!$C$16)/8.25,"") -> 5720.082715
D36: 2010 | J36: 1.8 | K36: 3 | L36: 5.8 | M36: 4.2 | N36: 0.7 | O36: 2 | P36: 0.1 | Q36: 0.2 | R36: 3.5 | S36: 2.1 | T36: 0.9 | U36: 1.6 | V36: 3.6 | W36: 5.7 | X36: 2.1 | Y36: 5.3 | Z36: 2.3 | AA36: 3.5 | AB36: 6.7 | AC36: 4.8 | AD36: 5 | AE36: 6.1 | AF36: 4.1 | AG36: 4.1 | AH36: 3.8 | AI36: 1.3 | AJ36: 6.2 | AK36: 6.9 | AL36: 6.5 | AM36: 6.1 | AN36: 6.2 | AO36: 7 | AY36: =IF(AX36<>"",IF($B$10=1,SUMPRODUCT(INDIRECT(ADDRESS(INDEX(ROW($A36),1,1),4+cllStartDate) & ":" & ADDRESS(INDEX(ROW($A36),1,1),4+cllEndDate-1)),INDIRECT(ADDRESS(INDEX(ROW($A$47),1,1),4+cllStartDate) & ":" & ADDRESS(INDEX(ROW($A$47),1,1),4+cllEndDate-1)))*cllDaysPerWeek/7,AX36*$B$11),"") ->  | AZ36: =IF(AY36<>"",AY36*(Summary!$C$15*Summary!$C$14*Summary!$C$16)/8.25,"") ->  | BC36: =IF(BB36<>"",IF($B$10=1,SUMPRODUCT(INDIRECT(ADDRESS(INDEX(ROW($A36),1,1),4+cllStartDate) & ":" & ADDRESS(INDEX(ROW($A36),1,1),4+cllEndDate)),INDIRECT(ADDRESS(INDEX(ROW($A$47),1,1),4+cllStartDate) & ":" & ADDRESS(INDEX(ROW($A$47),1,1),4+cllEndDate)))*cllDaysPerWeek/7,BB36*$B$11),"") ->  | BD36: =IF(BC36<>"",BC36*(Summary!$C$15*Summary!$C$14*Summary!$C$16)/8.25,"") ->  | BG36: =IF(BF36<>"",IF($B$10=1,SUMPRODUCT(INDIRECT(ADDRESS(INDEX(ROW($A36),1,1),4+cllStartDate) & ":" & ADDRESS(INDEX(ROW($A36),1,1),4+cllEndDate+1)),INDIRECT(ADDRESS(INDEX(ROW($A$47),1,1),4+cllStartDate) & ":" & ADDRESS(INDEX(ROW($A$47),1,1),4+cllEndDate+1)))*cllDaysPerWeek/7,BF36*$B$11),"") ->  | BH36: =IF(BG36<>"",BG36*(Summary!$C$15*Summary!$C$14*Summary!$C$16)/8.25,"") ->  | BK36: =IF(BJ36<>"",IF($B$10=1,SUMPRODUCT(INDIRECT(ADDRESS(INDEX(ROW($A36),1,1),4+cllStartDate) & ":" & ADDRESS(INDEX(ROW($A36),1,1),4+cllEndDate+2)),INDIRECT(ADDRESS(INDEX(ROW($A$47),1,1),4+cllStartDate) & ":" & ADDRESS(INDEX(ROW($A$47),1,1),4+cllEndDate+2)))*cllDaysPerWeek/7,BJ36*$B$11),"") ->  | BL36: =IF(BK36<>"",BK36*(Summary!$C$15*Summary!$C$14*Summary!$C$16)/8.25,"") -> 
D37: 2011 | J37: 3.6 | K37: 3.9 | L37: 3.8 | M37: 0.5 | N37: 1.7 | O37: 4.2 | P37: 4.4 | Q37: 2.9 | R37: 0.8 | S37: 3.2 | T37: 4 | U37: 2.3 | V37: 2.7 | W37: 3.8 | X37: 5.1 | Y37: 6 | Z37: 6.9 | AA37: 5.2 | AB37: 5.9 | AC37: 6.4 | AD37: 3.7 | AE37: 6.1 | AF37: 6.1 | AG37: 6.5 | AH37: 5.1 | AI37: 6.5 | AJ37: 7 | AK37: 7 | AL37: 6.9 | AM37: 6.6 | AN37: 7 | AO37: 4.6 | AY37: =IF(AX37<>"",IF($B$10=1,SUMPRODUCT(INDIRECT(ADDRESS(INDEX(ROW($A37),1,1),4+cllStartDate) & ":" & ADDRESS(INDEX(ROW($A37),1,1),4+cllEndDate-1)),INDIRECT(ADDRESS(INDEX(ROW($A$47),1,1),4+cllStartDate) & ":" & ADDRESS(INDEX(ROW($A$47),1,1),4+cllEndDate-1)))*cllDaysPerWeek/7,AX37*$B$11),"") ->  | AZ37: =IF(AY37<>"",AY37*(Summary!$C$15*Summary!$C$14*Summary!$C$16)/8.25,"") ->  | BC37: =IF(BB37<>"",IF($B$10=1,SUMPRODUCT(INDIRECT(ADDRESS(INDEX(ROW($A37),1,1),4+cllStartDate) & ":" & ADDRESS(INDEX(ROW($A37),1,1),4+cllEndDate)),INDIRECT(ADDRESS(INDEX(ROW($A$47),1,1),4+cllStartDate) & ":" & ADDRESS(INDEX(ROW($A$47),1,1),4+cllEndDate)))*cllDaysPerWeek/7,BB37*$B$11),"") ->  | BD37: =IF(BC37<>"",BC37*(Summary!$C$15*Summary!$C$14*Summary!$C$16)/8.25,"") ->  | BG37: =IF(BF37<>"",IF($B$10=1,SUMPRODUCT(INDIRECT(ADDRESS(INDEX(ROW($A37),1,1),4+cllStartDate) & ":" & ADDRESS(INDEX(ROW($A37),1,1),4+cllEndDate+1)),INDIRECT(ADDRESS(INDEX(ROW($A$47),1,1),4+cllStartDate) & ":" & ADDRESS(INDEX(ROW($A$47),1,1),4+cllEndDate+1)))*cllDaysPerWeek/7,BF37*$B$11),"") ->  | BH37: =IF(BG37<>"",BG37*(Summary!$C$15*Summary!$C$14*Summary!$C$16)/8.25,"") ->  | BK37: =IF(BJ37<>"",IF($B$10=1,SUMPRODUCT(INDIRECT(ADDRESS(INDEX(ROW($A37),1,1),4+cllStartDate) & ":" & ADDRESS(INDEX(ROW($A37),1,1),4+cllEndDate+2)),INDIRECT(ADDRESS(INDEX(ROW($A$47),1,1),4+cllStartDate) & ":" & ADDRESS(INDEX(ROW($A$47),1,1),4+cllEndDate+2)))*cllDaysPerWeek/7,BJ37*$B$11),"") ->  | BL37: =IF(BK37<>"",BK37*(Summary!$C$15*Summary!$C$14*Summary!$C$16)/8.25,"") -> 
D38: 2012 | J38: 2 | K38: 3.3 | L38: 3.3 | M38: 4.2 | N38: 5.5 | O38: 1.5 | P38: 3.9 | Q38: 6.8 | R38: 6.4 | S38: 6.4 | T38: 7 | U38: 5 | V38: 6.3 | W38: 7 | X38: 6.9 | Y38: 6.8 | Z38: 6.9 | AA38: 6.6 | AB38: 7 | AC38: 7 | AD38: 7 | AE38: 6.6 | AF38: 5.4 | AG38: 5.6 | AH38: 6.3 | AI38: 6.7 | AJ38: 6.5 | AK38: 6.6 | AL38: 5.6 | AM38: 4.7 | AN38: 5.1 | AO38: 6.6 | AP38: 5.4 | AX38: 21.8 | AY38: =IF(AX38<>"",IF($B$10=1,SUMPRODUCT(INDIRECT(ADDRESS(INDEX(ROW($A38),1,1),4+cllStartDate) & ":" & ADDRESS(INDEX(ROW($A38),1,1),4+cllEndDate-1)),INDIRECT(ADDRESS(INDEX(ROW($A$47),1,1),4+cllStartDate) & ":" & ADDRESS(INDEX(ROW($A$47),1,1),4+cllEndDate-1)))*cllDaysPerWeek/7,AX38*$B$11),"") -> 227.0217724 | AZ38: =IF(AY38<>"",AY38*(Summary!$C$15*Summary!$C$14*Summary!$C$16)/8.25,"") -> 5024.748563 | BC38: =IF(BB38<>"",IF($B$10=1,SUMPRODUCT(INDIRECT(ADDRESS(INDEX(ROW($A38),1,1),4+cllStartDate) & ":" & ADDRESS(INDEX(ROW($A38),1,1),4+cllEndDate)),INDIRECT(ADDRESS(INDEX(ROW($A$47),1,1),4+cllStartDate) & ":" & ADDRESS(INDEX(ROW($A$47),1,1),4+cllEndDate)))*cllDaysPerWeek/7,BB38*$B$11),"") ->  | BD38: =IF(BC38<>"",BC38*(Summary!$C$15*Summary!$C$14*Summary!$C$16)/8.25,"") ->  | BG38: =IF(BF38<>"",IF($B$10=1,SUMPRODUCT(INDIRECT(ADDRESS(INDEX(ROW($A38),1,1),4+cllStartDate) & ":" & ADDRESS(INDEX(ROW($A38),1,1),4+cllEndDate+1)),INDIRECT(ADDRESS(INDEX(ROW($A$47),1,1),4+cllStartDate) & ":" & ADDRESS(INDEX(ROW($A$47),1,1),4+cllEndDate+1)))*cllDaysPerWeek/7,BF38*$B$11),"") ->  | BH38: =IF(BG38<>"",BG38*(Summary!$C$15*Summary!$C$14*Summary!$C$16)/8.25,"") ->  | BK38: =IF(BJ38<>"",IF($B$10=1,SUMPRODUCT(INDIRECT(ADDRESS(INDEX(ROW($A38),1,1),4+cllStartDate) & ":" & ADDRESS(INDEX(ROW($A38),1,1),4+cllEndDate+2)),INDIRECT(ADDRESS(INDEX(ROW($A$47),1,1),4+cllStartDate) & ":" & ADDRESS(INDEX(ROW($A$47),1,1),4+cllEndDate+2)))*cllDaysPerWeek/7,BJ38*$B$11),"") ->  | BL38: =IF(BK38<>"",BK38*(Summary!$C$15*Summary!$C$14*Summary!$C$16)/8.25,"") -> 
D39: 2013 | I39: 1.4 | J39: 3.7 | K39: 0.4 | L39: 0.2 | M39: 0.7 | N39: 2.8 | O39: 2.9 | P39: 6.3 | Q39: 2.3 | R39: 0.2 | S39: 2.6 | T39: 4.4 | U39: 4.7 | V39: 5.7 | W39: 6.4 | X39: 6.9 | Y39: 6.7 | Z39: 6.5 | AA39: 5.3 | AB39: 6.7 | AC39: 6.9 | AD39: 7 | AE39: 7 | AF39: 7 | AG39: 6.3 | AH39: 5 | AI39: 5.8 | AL39: 5.9 | AM39: 6.6 | AN39: 4 | AO39: 3.8 | AP39: 6.3 | AQ39: 3.2 | AX39: 20.7 | AY39: =IF(AX39<>"",IF($B$10=1,SUMPRODUCT(INDIRECT(ADDRESS(INDEX(ROW($A39),1,1),4+cllStartDate) & ":" & ADDRESS(INDEX(ROW($A39),1,1),4+cllEndDate-1)),INDIRECT(ADDRESS(INDEX(ROW($A$47),1,1),4+cllStartDate) & ":" & ADDRESS(INDEX(ROW($A$47),1,1),4+cllEndDate-1)))*cllDaysPerWeek/7,AX39*$B$11),"") -> 216.2248473 | AZ39: =IF(AY39<>"",AY39*(Summary!$C$15*Summary!$C$14*Summary!$C$16)/8.25,"") -> 4785.776621 | BB39: 23.9 | BC39: =IF(BB39<>"",IF($B$10=1,SUMPRODUCT(INDIRECT(ADDRESS(INDEX(ROW($A39),1,1),4+cllStartDate) & ":" & ADDRESS(INDEX(ROW($A39),1,1),4+cllEndDate)),INDIRECT(ADDRESS(INDEX(ROW($A$47),1,1),4+cllStartDate) & ":" & ADDRESS(INDEX(ROW($A$47),1,1),4+cllEndDate)))*cllDaysPerWeek/7,BB39*$B$11),"") -> 247.6652418 | BD39: =IF(BC39<>"",BC39*(Summary!$C$15*Summary!$C$14*Summary!$C$16)/8.25,"") -> 5481.657353 | BG39: =IF(BF39<>"",IF($B$10=1,SUMPRODUCT(INDIRECT(ADDRESS(INDEX(ROW($A39),1,1),4+cllStartDate) & ":" & ADDRESS(INDEX(ROW($A39),1,1),4+cllEndDate+1)),INDIRECT(ADDRESS(INDEX(ROW($A$47),1,1),4+cllStartDate) & ":" & ADDRESS(INDEX(ROW($A$47),1,1),4+cllEndDate+1)))*cllDaysPerWeek/7,BF39*$B$11),"") ->  | BH39: =IF(BG39<>"",BG39*(Summary!$C$15*Summary!$C$14*Summary!$C$16)/8.25,"") ->  | BK39: =IF(BJ39<>"",IF($B$10=1,SUMPRODUCT(INDIRECT(ADDRESS(INDEX(ROW($A39),1,1),4+cllStartDate) & ":" & ADDRESS(INDEX(ROW($A39),1,1),4+cllEndDate+2)),INDIRECT(ADDRESS(INDEX(ROW($A$47),1,1),4+cllStartDate) & ":" & ADDRESS(INDEX(ROW($A$47),1,1),4+cllEndDate+2)))*cllDaysPerWeek/7,BJ39*$B$11),"") ->  | BL39: =IF(BK39<>"",BK39*(Summary!$C$15*Summary!$C$14*Summary!$C$16)/8.25,"") -> 
D40: 2014 | J40: 2 | K40: 5 | L40: 4 | M40: 3.1 | N40: 2.8 | O40: 6.2 | P40: 3.8 | Q40: 5.5 | R40: 6.4 | S40: 2.5 | T40: 2.4 | U40: 4.7 | V40: 4.7 | W40: 3.9 | X40: 3.4 | Y40: 6.3 | Z40: 6.7 | AA40: 6.7 | AB40: 2.8 | AC40: 3.9 | AD40: 4.3 | AE40: 4.3 | AF40: 5.1 | AG40: 1.8 | AH40: 5.7 | AI40: 6.6 | AJ40: 2.9 | AK40: 3.2 | AL40: 3.2 | AM40: 5.9 | AN40: 6.2 | AO40: 6.6 | AP40: 6.1 | AQ40: 5.2 | AX40: 24.8 | AY40: =IF(AX40<>"",IF($B$10=1,SUMPRODUCT(INDIRECT(ADDRESS(INDEX(ROW($A40),1,1),4+cllStartDate) & ":" & ADDRESS(INDEX(ROW($A40),1,1),4+cllEndDate-1)),INDIRECT(ADDRESS(INDEX(ROW($A$47),1,1),4+cllStartDate) & ":" & ADDRESS(INDEX(ROW($A$47),1,1),4+cllEndDate-1)))*cllDaysPerWeek/7,AX40*$B$11),"") -> 258.6842344 | AZ40: =IF(AY40<>"",AY40*(Summary!$C$15*Summary!$C$14*Summary!$C$16)/8.25,"") -> 5725.544389 | BB40: 30 | BC40: =IF(BB40<>"",IF($B$10=1,SUMPRODUCT(INDIRECT(ADDRESS(INDEX(ROW($A40),1,1),4+cllStartDate) & ":" & ADDRESS(INDEX(ROW($A40),1,1),4+cllEndDate)),INDIRECT(ADDRESS(INDEX(ROW($A$47),1,1),4+cllStartDate) & ":" & ADDRESS(INDEX(ROW($A$47),1,1),4+cllEndDate)))*cllDaysPerWeek/7,BB40*$B$11),"") -> 309.7748755 | BD40: =IF(BC40<>"",BC40*(Summary!$C$15*Summary!$C$14*Summary!$C$16)/8.25,"") -> 6856.350578 | BG40: =IF(BF40<>"",IF($B$10=1,SUMPRODUCT(INDIRECT(ADDRESS(INDEX(ROW($A40),1,1),4+cllStartDate) & ":" & ADDRESS(INDEX(ROW($A40),1,1),4+cllEndDate+1)),INDIRECT(ADDRESS(INDEX(ROW($A$47),1,1),4+cllStartDate) & ":" & ADDRESS(INDEX(ROW($A$47),1,1),4+cllEndDate+1)))*cllDaysPerWeek/7,BF40*$B$11),"") ->  | BH40: =IF(BG40<>"",BG40*(Summary!$C$15*Summary!$C$14*Summary!$C$16)/8.25,"") ->  | BK40: =IF(BJ40<>"",IF($B$10=1,SUMPRODUCT(INDIRECT(ADDRESS(INDEX(ROW($A40),1,1),4+cllStartDate) & ":" & ADDRESS(INDEX(ROW($A40),1,1),4+cllEndDate+2)),INDIRECT(ADDRESS(INDEX(ROW($A$47),1,1),4+cllStartDate) & ":" & ADDRESS(INDEX(ROW($A$47),1,1),4+cllEndDate+2)))*cllDaysPerWeek/7,BJ40*$B$11),"") ->  | BL40: =IF(BK40<>"",BK40*(Summary!$C$15*Summary!$C$14*Summary!$C$16)/8.25,"") -> 
D41: 2015 | J41: 2.4 | K41: 2.3 | L41: 3.3 | M41: 3.1 | N41: 6.3 | O41: 3.2 | P41: 2.2 | Q41: 0.9 | R41: 0.4 | S41: 1.4 | U41: 1.9 | V41: 1.5 | W41: 4.4 | X41: 3.3 | Y41: 2.9 | Z41: 2.3 | AA41: 3.9 | AB41: 2.5 | AC41: 6.7 | AD41: 5.4 | AE41: 6.7 | AF41: 6.9 | AG41: 4.7 | AH41: 5.9 | AI41: 7 | AJ41: 6.9 | AK41: 6.9 | AL41: 7 | AM41: 5.8 | AN41: 3.6 | AO41: 4.1 | AP41: 5.2 | AQ41: 0.9 | AR41: 0.7 | AX41: 18.7 | AY41: =IF(AX41<>"",IF($B$10=1,SUMPRODUCT(INDIRECT(ADDRESS(INDEX(ROW($A41),1,1),4+cllStartDate) & ":" & ADDRESS(INDEX(ROW($A41),1,1),4+cllEndDate-1)),INDIRECT(ADDRESS(INDEX(ROW($A$47),1,1),4+cllStartDate) & ":" & ADDRESS(INDEX(ROW($A$47),1,1),4+cllEndDate-1)))*cllDaysPerWeek/7,AX41*$B$11),"") -> 195.3623922 | AZ41: =IF(AY41<>"",AY41*(Summary!$C$15*Summary!$C$14*Summary!$C$16)/8.25,"") -> 4324.020946 | BB41: 19.6 | BC41: =IF(BB41<>"",IF($B$10=1,SUMPRODUCT(INDIRECT(ADDRESS(INDEX(ROW($A41),1,1),4+cllStartDate) & ":" & ADDRESS(INDEX(ROW($A41),1,1),4+cllEndDate)),INDIRECT(ADDRESS(INDEX(ROW($A$47),1,1),4+cllStartDate) & ":" & ADDRESS(INDEX(ROW($A$47),1,1),4+cllEndDate)))*cllDaysPerWeek/7,BB41*$B$11),"") -> 204.2050031 | BD41: =IF(BC41<>"",BC41*(Summary!$C$15*Summary!$C$14*Summary!$C$16)/8.25,"") -> 4519.737402 | BF41: 20.3 | BG41: =IF(BF41<>"",IF($B$10=1,SUMPRODUCT(INDIRECT(ADDRESS(INDEX(ROW($A41),1,1),4+cllStartDate) & ":" & ADDRESS(INDEX(ROW($A41),1,1),4+cllEndDate+1)),INDIRECT(ADDRESS(INDEX(ROW($A$47),1,1),4+cllStartDate) & ":" & ADDRESS(INDEX(ROW($A$47),1,1),4+cllEndDate+1)))*cllDaysPerWeek/7,BF41*$B$11),"") -> 210.9503175 | BH41: =IF(BG41<>"",BG41*(Summary!$C$15*Summary!$C$14*Summary!$C$16)/8.25,"") -> 4669.033693 | BK41: =IF(BJ41<>"",IF($B$10=1,SUMPRODUCT(INDIRECT(ADDRESS(INDEX(ROW($A41),1,1),4+cllStartDate) & ":" & ADDRESS(INDEX(ROW($A41),1,1),4+cllEndDate+2)),INDIRECT(ADDRESS(INDEX(ROW($A$47),1,1),4+cllStartDate) & ":" & ADDRESS(INDEX(ROW($A$47),1,1),4+cllEndDate+2)))*cllDaysPerWeek/7,BJ41*$B$11),"") ->  | BL41: =IF(BK41<>"",BK41*(Summary!$C$15*Summary!$C$14*Summary!$C$16)/8.25,"") -> 
D42: 2016 | J42: 3.5 | K42: 3.5 | L42: 5.8 | M42: 4 | N42: 1.2 | O42: 3.4 | P42: 1.8 | Q42: 3.8 | R42: 3.8 | S42: 4.2 | T42: 6.7 | U42: 6.7 | V42: 5 | W42: 3.6 | X42: 3.4 | Y42: 3.4 | Z42: 5.4 | AA42: 5.5 | AB42: 1.8 | AC42: 3.8 | AD42: 4.9 | AE42: 3 | AF42: 3.4 | AG42: 3.1 | AH42: 3.4 | AI42: 5.7 | AJ42: 6.9 | AK42: 3.7 | AL42: 5.8 | AM42: 6.1 | AN42: 5.7 | AO42: 5.2 | AP42: 6.3 | AQ42: 7 | AR42: 5.8 | AX42: 23.3 | AY42: =IF(AX42<>"",IF($B$10=1,SUMPRODUCT(INDIRECT(ADDRESS(INDEX(ROW($A42),1,1),4+cllStartDate) & ":" & ADDRESS(INDEX(ROW($A42),1,1),4+cllEndDate-1)),INDIRECT(ADDRESS(INDEX(ROW($A$47),1,1),4+cllStartDate) & ":" & ADDRESS(INDEX(ROW($A$47),1,1),4+cllEndDate-1)))*cllDaysPerWeek/7,AX42*$B$11),"") -> 243.1696108 | AZ42: =IF(AY42<>"",AY42*(Summary!$C$15*Summary!$C$14*Summary!$C$16)/8.25,"") -> 5382.154051 | BB42: 30.3 | BC42: =IF(BB42<>"",IF($B$10=1,SUMPRODUCT(INDIRECT(ADDRESS(INDEX(ROW($A42),1,1),4+cllStartDate) & ":" & ADDRESS(INDEX(ROW($A42),1,1),4+cllEndDate)),INDIRECT(ADDRESS(INDEX(ROW($A$47),1,1),4+cllStartDate) & ":" & ADDRESS(INDEX(ROW($A$47),1,1),4+cllEndDate)))*cllDaysPerWeek/7,BB42*$B$11),"") -> 311.9454737 | BD42: =IF(BC42<>"",BC42*(Summary!$C$15*Summary!$C$14*Summary!$C$16)/8.25,"") -> 6904.393152 | BF42: 36.1 | BG42: =IF(BF42<>"",IF($B$10=1,SUMPRODUCT(INDIRECT(ADDRESS(INDEX(ROW($A42),1,1),4+cllStartDate) & ":" & ADDRESS(INDEX(ROW($A42),1,1),4+cllEndDate+1)),INDIRECT(ADDRESS(INDEX(ROW($A$47),1,1),4+cllStartDate) & ":" & ADDRESS(INDEX(ROW($A$47),1,1),4+cllEndDate+1)))*cllDaysPerWeek/7,BF42*$B$11),"") -> 367.8352213 | BH42: =IF(BG42<>"",BG42*(Summary!$C$15*Summary!$C$14*Summary!$C$16)/8.25,"") -> 8141.419565 | BK42: =IF(BJ42<>"",IF($B$10=1,SUMPRODUCT(INDIRECT(ADDRESS(INDEX(ROW($A42),1,1),4+cllStartDate) & ":" & ADDRESS(INDEX(ROW($A42),1,1),4+cllEndDate+2)),INDIRECT(ADDRESS(INDEX(ROW($A$47),1,1),4+cllStartDate) & ":" & ADDRESS(INDEX(ROW($A$47),1,1),4+cllEndDate+2)))*cllDaysPerWeek/7,BJ42*$B$11),"") ->  | BL42: =IF(BK42<>"",BK42*(Summary!$C$15*Summary!$C$14*Summary!$C$16)/8.25,"") -> 
D43: 2017 | E43: =IF(TYPE(VLOOKUP($B$6&$D43&E$2,data,$B$7+5,FALSE))=1,VLOOKUP($B$6&$D43&E$2,data,$B$7+5,FALSE),"") ->  | J43: 0.4 | K43: 0.8 | L43: 3.7 | M43: 5.6 | N43: 2.5 | O43: 2.4 | P43: 4.6 | Q43: 3.8 | R43: 2.3 | S43: 6.2 | T43: 7 | U43: 4.7 | V43: 5.4 | W43: 2.4 | X43: 5.5 | Y43: 4.1 | Z43: 6.2 | AA43: 5.6 | AB43: 5.8 | AC43: 6.7 | AD43: 5.9 | AE43: 4.2 | AF43: 6.2 | AG43: 6.7 | AH43: 5.5 | AI43: 5.3 | AJ43: 6.4 | AK43: 3.1 | AL43: 3.6 | AM43: 4.8 | AN43: 5.8 | AO43: 5.5 | AP43: 5.4 | AQ43: 4.7 | AR43: 5.8 | AX43: =IF(COUNT(INDIRECT(ADDRESS(ROW($A41),4+cllStartDate) & ":" & ADDRESS(ROW($A41),4+cllEndDate-1))) = (cllEndDate-cllStartDate),SUM(INDIRECT(ADDRESS(ROW($A41),4+cllStartDate) & ":" & ADDRESS(ROW($A41),4+cllEndDate-1)))*cllDaysPerWeek/7,"") -> 18.7 | AY43: =IF(AX43<>"",IF($B$10=1,SUMPRODUCT(INDIRECT(ADDRESS(INDEX(ROW($A43),1,1),4+cllStartDate) & ":" & ADDRESS(INDEX(ROW($A43),1,1),4+cllEndDate-1)),INDIRECT(ADDRESS(INDEX(ROW($A$47),1,1),4+cllStartDate) & ":" & ADDRESS(INDEX(ROW($A$47),1,1),4+cllEndDate-1)))*cllDaysPerWeek/7,AX43*$B$11),"") -> 224.1755497 | AZ43: =IF(AY43<>"",AY43*(Summary!$C$15*Summary!$C$14*Summary!$C$16)/8.25,"") -> 4961.752167 | BB43: =IF(COUNT(INDIRECT(ADDRESS(ROW($A41),4+cllStartDate) & ":" & ADDRESS(ROW($A41),4+cllEndDate))) = (cllEndDate-cllStartDate+1),SUM(INDIRECT(ADDRESS(ROW($A41),4+cllStartDate) & ":" & ADDRESS(ROW($A41),4+cllEndDate)))*cllDaysPerWeek/7,"") -> 19.6 | BC43: =IF(BB43<>"",IF($B$10=1,SUMPRODUCT(INDIRECT(ADDRESS(INDEX(ROW($A43),1,1),4+cllStartDate) & ":" & ADDRESS(INDEX(ROW($A43),1,1),4+cllEndDate)),INDIRECT(ADDRESS(INDEX(ROW($A$47),1,1),4+cllStartDate) & ":" & ADDRESS(INDEX(ROW($A$47),1,1),4+cllEndDate)))*cllDaysPerWeek/7,BB43*$B$11),"") -> 270.3536292 | BD43: =IF(BC43<>"",BC43*(Summary!$C$15*Summary!$C$14*Summary!$C$16)/8.25,"") -> 5983.826992 | BF43: =IF(COUNT(INDIRECT(ADDRESS(ROW($A41),4+cllStartDate) & ":" & ADDRESS(ROW($A41),4+cllEndDate+1))) = (cllEndDate-cllStartDate+2),SUM(INDIRECT(ADDRESS(ROW($A41),4+cllStartDate) & ":" & ADDRESS(ROW($A41),4+cllEndDate+1)))*cllDaysPerWeek/7,"") -> 20.3 | BG43: =IF(BF43<>"",IF($B$10=1,SUMPRODUCT(INDIRECT(ADDRESS(INDEX(ROW($A43),1,1),4+cllStartDate) & ":" & ADDRESS(INDEX(ROW($A43),1,1),4+cllEndDate+1)),INDIRECT(ADDRESS(INDEX(ROW($A$47),1,1),4+cllStartDate) & ":" & ADDRESS(INDEX(ROW($A$47),1,1),4+cllEndDate+1)))*cllDaysPerWeek/7,BF43*$B$11),"") -> 326.2433767 | BH43: =IF(BG43<>"",BG43*(Summary!$C$15*Summary!$C$14*Summary!$C$16)/8.25,"") -> 7220.853405 | BJ43: =IF(COUNT(INDIRECT(ADDRESS(ROW($A41),4+cllStartDate) & ":" & ADDRESS(ROW($A41),4+cllEndDate+2))) = (cllEndDate-cllStartDate+3),SUM(INDIRECT(ADDRESS(ROW($A41),4+cllStartDate) & ":" & ADDRESS(ROW($A41),4+cllEndDate+2)))*cllDaysPerWeek/7,"") ->  | BK43: =IF(BJ43<>"",IF($B$10=1,SUMPRODUCT(INDIRECT(ADDRESS(INDEX(ROW($A43),1,1),4+cllStartDate) & ":" & ADDRESS(INDEX(ROW($A43),1,1),4+cllEndDate+2)),INDIRECT(ADDRESS(INDEX(ROW($A$47),1,1),4+cllStartDate) & ":" & ADDRESS(INDEX(ROW($A$47),1,1),4+cllEndDate+2)))*cllDaysPerWeek/7,BJ43*$B$11),"") ->  | BL43: =IF(BK43<>"",BK43*(Summary!$C$15*Summary!$C$14*Summary!$C$16)/8.25,"") -> 
D45: Midweek day | E45: =TRANSPOSE(Calculations!G56:G99) -> 59 | F45: 66 | G45: 73 | H45: 80 | I45: 87 | J45: 94 | K45: 101 | L45: 108 | M45: 115 | N45: 122 | O45: 129 | P45: 136 | Q45: 143 | R45: 150 | S45: 157 | T45: 164 | U45: 171 | V45: 178 | W45: 185 | X45: 192 | Y45: 199 | Z45: 206 | AA45: 213 | AB45: 220 | AC45: 227 | AD45: 234 | AE45: 241 | AF45: 248 | AG45: 255 | AH45: 262 | AI45: 269 | AJ45: 276 | AK45: 283 | AL45: 290 | AM45: 297 | AN45: 304 | AO45: 311 | AP45: 318 | AQ45: 325 | AR45: 332 | AS45: 339 | AT45: 346 | AU45: 353 | AV45: 360
D46: P | E46: =ASIN(0.39795*COS(0.2163108+2*ATAN(0.9671396*TAN(0.0086*(E45-186))))) -> -0.1442992171 | F46: -0.0975416715 | G46: -0.04971000988 | H46: -0.001436382569 | I46: 0.04666685123 | J46: 0.09400433892 | K46: 0.1399945211 | L46: 0.1840669658 | M46: 0.2256611527 | N46: 0.2642275435 | O46: 0.2992316698 | P46: 0.3301617674 | Q46: 0.356540119 | R46: 0.3779377115 | S46: 0.3939911008 | T46: 0.4044196437 | U46: 0.4090407244 | V46: 0.4077805226 | W46: 0.4006783908 | X46: 0.3878839762 | Y46: 0.3696475537 | Z46: 0.3463052333 | AA46: 0.3182614204 | AB46: 0.2859710113 | AC46: 0.2499233944 | AD46: 0.2106296191 | AE46: 0.1686133577 | AF46: 0.1244056614 | AG46: 0.07854309825 | AH46: 0.03156861771 | AI46: -0.01596562121 | AJ46: -0.06349426801 | AK46: -0.1104344978 | AL46: -0.1561823513 | AM46: -0.2001107372 | AN46: -0.2415702834 | AO46: -0.279894337 | AP46: -0.3144094075 | AQ46: -0.3444520648 | AR46: -0.3693926047 | AS46: -0.3886645884 | AT46: -0.4017977625 | AU46: -0.4084502482 | AV46: -0.4084348936
D47: Hours | E47: =24-(24/PI())*ACOS((SIN(0.8333*PI()/180)+SIN($B$13*PI()/180)*SIN(E$46))/(COS($B$13*PI()/180)*COS(E$46))) -> 11.21370195 | F47: 11.51815063 | G47: 11.82628248 | H47: 12.13583407 | I47: 12.44480718 | J47: 12.75126032 | K47: 13.05310809 | L47: 13.34793326 | M47: 13.63281972 | N47: 13.90422085 | O47: 14.15788723 | P47: 14.38888586 | Q47: 14.5917471 | R47: 14.76076639 | S47: 14.89046152 | T47: 14.97614056 | U47: 15.01448324 | V47: 15.00400348 | W47: 14.9452693 | X47: 14.84081613 | Y47: 14.6947794 | Z47: 14.51234929 | AA47: 14.29918251 | AB47: 14.06088721 | AC47: 13.80264916 | AD47: 13.52901627 | AE47: 13.24382341 | AF47: 12.95022326 | AG47: 12.6507884 | AH47: 12.34765658 | AI47: 12.04270074 | AJ47: 11.73771375 | AK47: 11.43460265 | AL47: 11.1355896 | AM47: 10.84341336 | AN47: 10.5615184 | AO47: 10.29420629 | AP47: 10.0467082 | AQ47: 9.825123281 | AR47: 9.636163375 | AS47: 9.486665516 | AT47: 9.382888901 | AU47: 9.329698685 | AV47: 9.329821951
D52: Definitions and constants
S53: Lookup regions
D54: Week definitions | K54: Implement constants | O54: Region index | S54: Index | T54: State | U54: Region | V54: Region name | W54: Latitutde
D55: Week | E55: FirstDay | F55: LastDay | G55: Middle day | K55: Implement | L55: Speed | M55: Efficiency | O55: 1 | P55: =OFFSET($T$55:$T$90,MATCH(cllState,$T$55:$T$90,0)-1,2,9) -> NorthWest | S55: 1 | T55: =$O$66 -> 1 | U55: 1 | V55: Northwest | W55: 41.75
D56: 1 | E56: 2006-02-25 | F56: =E56+6 -> 2006-03-03 | G56: =(E56-DATE(2006,1,1))+4 -> 59 | K56: Row crop planter | L56: 5.5 | M56: 0.65 | O56: 2 | P56: NorthCentral | S56: 2 | T56: 1 | U56: 2 | V56: Northeast | W56: 41.75
D57: 2 | E57: =F56+1 -> 2006-03-04 | F57: =E57+6 -> 2006-03-10 | G57: =(E57-DATE(2006,1,1))+4 -> 66 | K57: Grain drill | L57: 5 | M57: 0.7 | O57: 3 | P57: NorthEast | S57: 3 | T57: 1 | U57: 3 | V57: West | W57: 40.5
D58: 3 | E58: 2006-03-11 | F58: 2006-03-17 | G58: 73 | K58: Combine, corn head | L58: 3.3 | M58: 0.7 | O58: 4 | P58: WestCentral | S58: 4 | T58: 1 | U58: 4 | V58: Central | W58: 40.5
D59: 4 | E59: 2006-03-18 | F59: 2006-03-24 | G59: 80 | K59: Combine, fixed grain head | L59: 4 | M59: 0.7 | O59: 5 | P59: Central | S59: 5 | T59: 1 | U59: 5 | V59: East | W59: 40.5
D60: 5 | E60: 2006-03-25 | F60: 2006-03-31 | G60: 87 | K60: Combine, flexible grain head | L60: 3.5 | M60: 0.7 | O60: 6 | P60: EastCentral | S60: 6 | T60: 1 | U60: 6 | V60: West Southwest | W60: 39.3
D61: 6 | E61: 2006-04-01 | F61: 2006-04-07 | G61: 94 | K61: Moldboard plow | L61: 4.5 | M61: 0.85 | O61: 7 | P61: SouthWest | S61: 7 | T61: 1 | U61: 7 | V61: East Southeast | W61: 39.3
D62: 7 | E62: 2006-04-08 | F62: 2006-04-14 | G62: 101 | K62: Heavy-duty disk | L62: 6 | M62: 0.85 | O62: 8 | P62: SouthCentral | S62: 8 | T62: 1 | U62: 8 | V62: Southwest | W62: 38
D63: 8 | E63: 2006-04-15 | F63: 2006-04-21 | G63: 108 | K63: Chisel plow | L63: 5.5 | M63: 0.85 | O63: 9 | P63: SouthEast | S63: 9 | T63: 1 | U63: 9 | V63: Southeast | W63: 38
D64: 9 | E64: 2006-04-22 | F64: 2006-04-28 | G64: 115 | K64: V-ripper | L64: 6 | M64: 0.85 | S64: 10 | T64: =$O$67 -> 2 | U64: =U55 -> 1 | V64: NorthWest | W64: 43
D65: 10 | E65: 2006-04-29 | F65: 2006-05-05 | G65: 122 | K65: Harrow or field roller | L65: 6 | M65: 0.85 | O65: State index | S65: 11 | T65: 2 | U65: =U56 -> 2 | V65: NorthCentral | W65: 43
D66: 11 | E66: 2006-05-06 | F66: 2006-05-12 | G66: 129 | K66: Field cultivator | L66: 7 | M66: 0.85 | O66: 1 | P66: Illinois | Q66: IL | S66: 12 | T66: 2 | U66: 3 | V66: NorthEast | W66: 43
D67: 12 | E67: 2006-05-13 | F67: 2006-05-19 | G67: 136 | O67: 2 | P67: Iowa | Q67: IA | S67: 13 | T67: 2 | U67: 4 | V67: WestCentral | W67: 42
D68: 13 | E68: 2006-05-20 | F68: 2006-05-26 | G68: 143 | O68: 3 | P68: Kansas | Q68: KS | S68: 14 | T68: 2 | U68: 5 | V68: Central | W68: 42
D69: 14 | E69: 2006-05-27 | F69: 2006-06-02 | G69: 150 | O69: 4 | P69: Missouri | Q69: MO | S69: 15 | T69: 2 | U69: 6 | V69: EastCentral | W69: 42
D70: 15 | E70: 2006-06-03 | F70: 2006-06-09 | G70: 157 | S70: 16 | T70: 2 | U70: 7 | V70: SouthWest | W70: 41.25
D71: 16 | E71: 2006-06-10 | F71: 2006-06-16 | G71: 164 | S71: 17 | T71: 2 | U71: 8 | V71: SouthCentral | W71: 41.25
D72: 17 | E72: 2006-06-17 | F72: 2006-06-23 | G72: 171 | S72: 18 | T72: 2 | U72: 9 | V72: SouthEast | W72: 41.25
D73: 18 | E73: 2006-06-24 | F73: 2006-06-30 | G73: 178 | S73: 19 | T73: =$O$68 -> 3 | U73: 1 | V73: NorthWest | W73: 39.25
D74: 19 | E74: 2006-07-01 | F74: 2006-07-07 | G74: 185 | S74: 20 | T74: 3 | U74: 2 | V74: NorthCentral | W74: 39.25
D75: 20 | E75: 2006-07-08 | F75: 2006-07-14 | G75: 192 | S75: 21 | T75: 3 | U75: 3 | V75: NorthEast | W75: 39.25
D76: 21 | E76: 2006-07-15 | F76: 2006-07-21 | G76: 199 | S76: 22 | T76: 3 | U76: 4 | V76: WestCentral | W76: 38.7
D77: 22 | E77: 2006-07-22 | F77: 2006-07-28 | G77: 206 | S77: 23 | T77: 3 | U77: 5 | V77: Central | W77: 38.7
D78: 23 | E78: 2006-07-29 | F78: 2006-08-04 | G78: 213 | S78: 24 | T78: 3 | U78: 6 | V78: EastCentral | W78: 38.7
D79: 24 | E79: 2006-08-05 | F79: 2006-08-11 | G79: 220 | S79: 25 | T79: 3 | U79: 7 | V79: SouthWest | W79: 37.7
D80: 25 | E80: 2006-08-12 | F80: 2006-08-18 | G80: 227 | S80: 26 | T80: 3 | U80: 8 | V80: SouthCentral | W80: 37.7
D81: 26 | E81: 2006-08-19 | F81: 2006-08-25 | G81: 234 | S81: 27 | T81: 3 | U81: 9 | V81: SouthEast | W81: 37.7
D82: 27 | E82: 2006-08-26 | F82: 2006-09-01 | G82: 241 | S82: 28 | T82: =$O$69 -> 4 | U82: 1 | V82: NorthWest | W82: 40
D83: 28 | E83: 2006-09-02 | F83: 2006-09-08 | G83: 248 | S83: 29 | T83: 4 | U83: 2 | V83: NorthCentral | W83: 40
D84: 29 | E84: 2006-09-09 | F84: 2006-09-15 | G84: 255 | S84: 30 | T84: 4 | U84: 3 | V84: NorthEast | W84: 40
D85: 30 | E85: 2006-09-16 | F85: 2006-09-22 | G85: 262 | S85: 31 | T85: 4 | U85: 4 | V85: WestCentral | W85: 38.5
D86: 31 | E86: 2006-09-23 | F86: 2006-09-29 | G86: 269 | S86: 32 | T86: 4 | U86: 5 | V86: Central | W86: 38.5
D87: 32 | E87: 2006-09-30 | F87: 2006-10-06 | G87: 276 | S87: 33 | T87: 4 | U87: 6 | V87: EastCentral | W87: 38.5
D88: 33 | E88: 2006-10-07 | F88: 2006-10-13 | G88: 283 | S88: 34 | T88: 4 | U88: 7 | V88: SouthWest | W88: 37
D89: 34 | E89: 2006-10-14 | F89: 2006-10-20 | G89: 290 | S89: 35 | T89: 4 | U89: 8 | V89: SouthCentral | W89: 37
D90: 35 | E90: 2006-10-21 | F90: 2006-10-27 | G90: 297 | S90: 36 | T90: 4 | U90: 9 | V90: SouthEast | W90: 37
D91: 36 | E91: 2006-10-28 | F91: 2006-11-03 | G91: 304
D92: 37 | E92: 2006-11-04 | F92: 2006-11-10 | G92: 311
D93: 38 | E93: 2006-11-11 | F93: 2006-11-17 | G93: 318
D94: 39 | E94: 2006-11-18 | F94: 2006-11-24 | G94: 325
D95: 40 | E95: =F94+1 -> 2006-11-25 | F95: =E95+6 -> 2006-12-01 | G95: =(E95-DATE(2006,1,1))+4 -> 332
D96: 41 | E96: =F95+1 -> 2006-12-02 | F96: =E96+6 -> 2006-12-08 | G96: =(E96-DATE(2006,1,1))+4 -> 339
D97: 42 | E97: =F96+1 -> 2006-12-09 | F97: =E97+6 -> 2006-12-15 | G97: =(E97-DATE(2006,1,1))+4 -> 346
D98: 43 | E98: =F97+1 -> 2006-12-16 | F98: =E98+6 -> 2006-12-22 | G98: =(E98-DATE(2006,1,1))+4 -> 353
D99: 44 | E99: =F98+1 -> 2006-12-23 | F99: =E99+6 -> 2006-12-29 | G99: =(E99-DATE(2006,1,1))+4 -> 360

Sheet RawData (hidden)
A1: Days Suitable for Field Work | F1: 1 | G1: 2 | H1: 3 | I1: 4 | J1: 5 | K1: 6 | L1: 7 | M1: 8 | N1: 9
A2: Variable | B2: State | C2: Week Ending | D2: Week | E2: State | F2: NW | G2: NC | H2: NE | I2: WC | J2: C | K2: EC | L2: SW | M2: SC | N2: SE
A4: =B4&YEAR(C4)&D4 -> MO19775 | B4: MO | C4: 1977-03-27 | D4: =COUNTIF(Calculations!$E$56:$E$98,"<="&DATE(2006,MONTH(C4),DAY(C4))) -> 5 | E4: 3.8 | F4: 4.3 | G4: 1.4 | H4: 0.7 | I4: 5.1 | J4: 3.9 | K4: 2.9 | L4: 5.6 | M4: 5.6 | N4: 4.5
A5: =B5&YEAR(C5)&D5 -> MO19776 | B5: MO | C5: 1977-04-03 | D5: =COUNTIF(Calculations!$E$56:$E$98,"<="&DATE(2006,MONTH(C5),DAY(C5))) -> 6 | E5: 2.1 | F5: 2.3 | G5: 0.9 | H5: 1 | I5: 4.1 | J5: 2 | K5: 1.4 | L5: 3.2 | M5: 2.2 | N5: 1.6
A6: MO19777 | B6: MO | C6: 1977-04-10 | D6: =COUNTIF(Calculations!$E$56:$E$98,"<="&DATE(2006,MONTH(C6),DAY(C6))) -> 7 | E6: 3.9 | F6: 3 | G6: 3 | H6: 2.4 | I6: 5.5 | J6: 4.6 | K6: 3.4 | L6: 5.4 | M6: 4.4 | N6: 2.8
A7: MO19778 | B7: MO | C7: 1977-04-17 | D7: =COUNTIF(Calculations!$E$56:$E$98,"<="&DATE(2006,MONTH(C7),DAY(C7))) -> 8 | E7: 5.9 | F7: 5.6 | G7: 6 | H7: 5.9 | I7: 5.7 | J7: 6 | K7: 6.1 | L7: 6.3 | M7: 6 | N7: 6
A8: MO19779 | B8: MO | C8: 1977-04-24 | D8: =COUNTIF(Calculations!$E$56:$E$98,"<="&DATE(2006,MONTH(C8),DAY(C8))) -> 9 | E8: 3.5 | F8: 2.9 | G8: 3.2 | H8: 4.3 | I8: 4 | J8: 3.6 | K8: 3.8 | L8: 3.1 | M8: 3.8 | N8: 2.8
A9: MO197710 | B9: MO | C9: 1977-05-01 | D9: =COUNTIF(Calculations!$E$56:$E$98,"<="&DATE(2006,MONTH(C9),DAY(C9))) -> 10 | E9: 5 | F9: 5.3 | G9: 5 | H9: 5.7 | I9: 5.8 | J9: 5.1 | K9: 5.5 | L9: 5 | M9: 4.7 | N9: 2.5
A10: MO197711 | B10: MO | C10: 1977-05-08 | D10: =COUNTIF(Calculations!$E$56:$E$98,"<="&DATE(2006,MONTH(C10),DAY(C10))) -> 11 | E10: 3.2 | F10: 3.8 | G10: 2.4 | H10: 2.2 | I10: 2.2 | J10: 2.1 | K10: 3.6 | L10: 4.3 | M10: 5.2 | N10: 3.8
A11: MO197712 | B11: MO | C11: 1977-05-15 | D11: =COUNTIF(Calculations!$E$56:$E$98,"<="&DATE(2006,MONTH(C11),DAY(C11))) -> 12 | E11: 4.6 | F11: 3.7 | G11: 4.1 | H11: 2.9 | I11: 4.7 | J11: 4.7 | K11: 4.8 | L11: 4.8 | M11: 6 | N11: 6.1
A12: MO197713 | B12: MO | C12: 1977-05-22 | D12: =COUNTIF(Calculations!$E$56:$E$98,"<="&DATE(2006,MONTH(C12),DAY(C12))) -> 13 | E12: 5.5 | F12: 5 | G12: 5.7 | H12: 6.1 | I12: 4.1 | J12: 4.9 | K12: 6 | L12: 5.8 | M12: 6.1 | N12: 6.4
A13: MO197714 | B13: MO | C13: 1977-05-30 | D13: =COUNTIF(Calculations!$E$56:$E$98,"<="&DATE(2006,MONTH(C13),DAY(C13))) -> 14 | E13: 5 | F13: 4 | G13: 5.7 | H13: 6.3 | I13: 4.6 | J13: 5.4 | K13: 5.6 | L13: 6 | M13: 4.9 | N13: 2
A14: MO197715 | B14: MO | C14: 1977-06-05 | D14: =COUNTIF(Calculations!$E$56:$E$98,"<="&DATE(2006,MONTH(C14),DAY(C14))) -> 15 | E14: 4.8 | F14: 4.8 | G14: 5.6 | H14: 6.2 | I14: 2.5 | J14: 4.2 | K14: 5.1 | L14: 5.1 | M14: 5.5 | N14: 4.7
A15: MO197716 | B15: MO | C15: 1977-06-12 | D15: =COUNTIF(Calculations!$E$56:$E$98,"<="&DATE(2006,MONTH(C15),DAY(C15))) -> 16 | E15: 5.9 | F15: 6.1 | G15: 5.1 | H15: 6 | I15: 5.6 | J15: 5.7 | K15: 6.2 | L15: 6.3 | M15: 6.4 | N15: 6.3
A16: MO197717 | B16: MO | C16: 1977-06-19 | D16: =COUNTIF(Calculations!$E$56:$E$98,"<="&DATE(2006,MONTH(C16),DAY(C16))) -> 17 | E16: 5.9 | F16: 6.5 | G16: 6.1 | H16: 6.5 | I16: 6 | J16: 5.4 | K16: 5.9 | L16: 5.6 | M16: 5.8 | N16: 5.7
A17: MO197718 | B17: MO | C17: 1977-06-26 | D17: =COUNTIF(Calculations!$E$56:$E$98,"<="&DATE(2006,MONTH(C17),DAY(C17))) -> 18 | E17: 2.7 | F17: 3.1 | G17: 4.1 | H17: 4.9 | I17: 0.8 | J17: 1.2 | K17: 3 | L17: 2.2 | M17: 3.2 | N17: 3.9
A18: MO197719 | B18: MO | C18: 1977-07-03 | D18: =COUNTIF(Calculations!$E$56:$E$98,"<="&DATE(2006,MONTH(C18),DAY(C18))) -> 19 | E18: 2.4 | F18: 3.2 | G18: 4 | H18: 4.9 | I18: 0.77 | J18: 4.1 | K18: 1.6 | L18: 1.5 | M18: 1.9 | N18: 1.2
A19: MO197720 | B19: MO | C19: 1977-07-10 | D19: =COUNTIF(Calculations!$E$56:$E$98,"<="&DATE(2006,MONTH(C19),DAY(C19))) -> 20 | E19: 5.2 | F19: 4.7 | G19: 5.4 | H19: 6 | I19: 4.1 | J19: 4.9 | K19: 6.3 | L19: 5.1 | M19: 5.6 | N19: 5.7
A20: MO197721 | B20: MO | C20: 1977-07-17 | D20: =COUNTIF(Calculations!$E$56:$E$98,"<="&DATE(2006,MONTH(C20),DAY(C20))) -> 21 | E20: 4.9 | F20: 4.4 | G20: 5 | H20: 5.6 | I20: 3.8 | J20: 4.1 | K20: 4.9 | L20: 5.9 | M20: 6.2 | N20: 4.7
A21: MO197722 | B21: MO | C21: 1977-07-24 | D21: =COUNTIF(Calculations!$E$56:$E$98,"<="&DATE(2006,MONTH(C21),DAY(C21))) -> 22 | E21: 6 | F21: 6.1 | G21: 6.2 | H21: 6.2 | I21: 6 | J21: 6 | K21: 5.6 | L21: 5.8 | M21: 5.6 | N21: 6.3
A22: MO197723 | B22: MO | C22: 1977-07-31 | D22: =COUNTIF(Calculations!$E$56:$E$98,"<="&DATE(2006,MONTH(C22),DAY(C22))) -> 23 | E22: 5.6 | F22: 5.3 | G22: 5.7 | H22: 5.8 | I22: 6.4 | J22: 5.8 | K22: 6.1 | L22: 5 | M22: 6 | N22: 4.6
A23: MO197724 | B23: MO | C23: 1977-08-07 | D23: =COUNTIF(Calculations!$E$56:$E$98,"<="&DATE(2006,MONTH(C23),DAY(C23))) -> 24 | E23: 5.7 | F23: 4.8 | G23: 5 | H23: 5.6 | I23: 6 | J23: 6 | K23: 6.2 | L23: 6 | M23: 6.1 | N23: 6.2
A24: MO197725 | B24: MO | C24: 1977-08-14 | D24: =COUNTIF(Calculations!$E$56:$E$98,"<="&DATE(2006,MONTH(C24),DAY(C24))) -> 25 | E24: 3.2 | F24: 1 | G24: 0.3 | H24: 0.8 | I24: 4.3 | J24: 3.9 | K24: 3.2 | L24: 5.4 | M24: 5.7 | N24: 5.6
A25: MO197726 | B25: MO | C25: 1977-08-21 | D25: =COUNTIF(Calculations!$E$56:$E$98,"<="&DATE(2006,MONTH(C25),DAY(C25))) -> 26 | E25: 4.2 | F25: 2.1 | G25: 2.9 | H25: 4.5 | I25: 5.5 | J25: 5.6 | K25: 5.6 | L25: 3.8 | M25: 4.2 | N25: 3
A26: MO197727 | B26: MO | C26: 1977-08-28 | D26: =COUNTIF(Calculations!$E$56:$E$98,"<="&DATE(2006,MONTH(C26),DAY(C26))) -> 27 | E26: 5.4 | F26: 4.5 | G26: 5.4 | H26: 4.7 | I26: 6 | J26: 6 | K26: 4.8 | L26: 5.7 | M26: 5.7 | N26: 5
A27: MO197728 | B27: MO | C27: 1977-09-04 | D27: =COUNTIF(Calculations!$E$56:$E$98,"<="&DATE(2006,MONTH(C27),DAY(C27))) -> 28 | E27: 4 | F27: 1.3 | G27: 2.8 | H27: 3.1 | I27: 4.4 | J27: 4.8 | K27: 5.2 | L27: 4.8 | M27: 5.9 | N27: 4.5
A28: MO197729 | B28: MO | C28: 1977-09-11 | D28: =COUNTIF(Calculations!$E$56:$E$98,"<="&DATE(2006,MONTH(C28),DAY(C28))) -> 29 | E28: 4.5 | F28: 2.6 | G28: 3.9 | H28: 4.1 | I28: 5.7 | J28: 5.3 | K28: 5.1 | L28: 4.5 | M28: 4.8 | N28: 4.8
A29: MO197730 | B29: MO | C29: 1977-09-18 | D29: =COUNTIF(Calculations!$E$56:$E$98,"<="&DATE(2006,MONTH(C29),DAY(C29))) -> 30 | E29: 1.1 | F29: 0.5 | G29: 0.5 | H29: 0.5 | I29: 1.1 | J29: 0.7 | K29: 1.9 | L29: 0.7 | M29: 2.4 | N29: 2.2
A30: MO197731 | B30: MO | C30: 1977-09-25 | D30: =COUNTIF(Calculations!$E$56:$E$98,"<="&DATE(2006,MONTH(C30),DAY(C30))) -> 31 | E30: 2.6 | F30: 1.9 | G30: 1.8 | H30: 1.2 | I30: 2.5 | J30: 2.5 | K30: 3.1 | L30: 2.5 | M30: 3.9 | N30: 4.3
A31: MO197732 | B31: MO | C31: 1977-10-02 | D31: =COUNTIF(Calculations!$E$56:$E$98,"<="&DATE(2006,MONTH(C31),DAY(C31))) -> 32 | E31: 3 | F31: 3.8 | G31: 3.9 | H31: 3.7 | I31: 3.1 | J31: 3.8 | K31: 3 | L31: 1.7 | M31: 1.9 | N31: 0.9
A32: MO197733 | B32: MO | C32: 1977-10-09 | D32: =COUNTIF(Calculations!$E$56:$E$98,"<="&DATE(2006,MONTH(C32),DAY(C32))) -> 33 | E32: 2.7 | F32: 2.7 | G32: 1.9 | H32: 1.5 | I32: 2.5 | J32: 2.5 | K32: 2.6 | L32: 3.5 | M32: 4.1 | N32: 3.3
A33: MO197734 | B33: MO | C33: 1977-10-16 | D33: =COUNTIF(Calculations!$E$56:$E$98,"<="&DATE(2006,MONTH(C33),DAY(C33))) -> 34 | E33: 2.9 | F33: 2.1 | G33: 1.2 | H33: 1.1 | I33: 3.5 | J33: 2.7 | K33: 3.9 | L33: 4 | M33: 4.3 | N33: 4.7
A34: MO197735 | B34: MO | C34: 1977-10-23 | D34: =COUNTIF(Calculations!$E$56:$E$98,"<="&DATE(2006,MONTH(C34),DAY(C34))) -> 35 | E34: 5.8 | F34: 5.3 | G34: 4.2 | H34: 4.8 | I34: 5.9 | J34: 5.7 | K34: 5.9 | L34: 6 | M34: 6.2 | N34: 6.2
A35: MO197736 | B35: MO | C35: 1977-10-30 | D35: =COUNTIF(Calculations!$E$56:$E$98,"<="&DATE(2006,MONTH(C35),DAY(C35))) -> 36 | E35: 1.6 | F35: 0.4 | G35: 0.4 | H35: 0.6 | I35: 1.8 | J35: 1.3 | K35: 2.6 | L35: 4.6 | M35: 4.3 | N35: 3.1
A36: MO197737 | B36: MO | C36: 1977-11-06 | D36: =COUNTIF(Calculations!$E$56:$E$98,"<="&DATE(2006,MONTH(C36),DAY(C36))) -> 37 | E36: 0.5 | F36: 0.1 | G36: 0.1 | H36: 0 | I36: 0.3 | J36: 0.3 | K36: 0.5 | L36: 1.4 | M36: 0.8 | N36: 2.2
A37: MO197738 | B37: MO | C37: 1977-11-13 | D37: =COUNTIF(Calculations!$E$56:$E$98,"<="&DATE(2006,MONTH(C37),DAY(C37))) -> 38 | E37: 1 | F37: 0.1 | G37: 0.4 | H37: 0.1 | I37: 0.3 | J37: 0.6 | K37: 1.3 | L37: 1.3 | M37: 2.7 | N37: 3.7
A38: MO197739 | B38: MO | C38: 1977-11-20 | D38: =COUNTIF(Calculations!$E$56:$E$98,"<="&DATE(2006,MONTH(C38),DAY(C38))) -> 39 | E38: 3.3 | F38: 2.6 | G38: 3.1 | H38: 2.3 | I38: 3.8 | J38: 3.5 | K38: 3.1 | L38: 4.2 | M38: 3.8 | N38: 3.6
A39: MO197740 | B39: MO | C39: 1977-11-27 | D39: =COUNTIF(Calculations!$E$56:$E$98,"<="&DATE(2006,MONTH(C39),DAY(C39))) -> 40 | E39: 3.8 | F39: 4.6 | G39: 3.4 | H39: 3.2 | I39: 3.8 | J39: 3.7 | K39: 2.3 | L39: 6 | M39: 4 | N39: 3
A40: MO197741 | B40: MO | C40: 1977-12-04 | D40: =COUNTIF(Calculations!$E$56:$E$98,"<="&DATE(2006,MONTH(C40),DAY(C40))) -> 41 | E40: 2.5 | F40: 4.6 | G40: 3.5 | H40: 3.3 | I40: 3 | J40: 1.6 | K40: 0.6 | L40: 2.1 | M40: 2.4 | N40: 0.7
A41: MO197742 | B41: MO | C41: 1977-12-11 | D41: =COUNTIF(Calculations!$E$56:$E$98,"<="&DATE(2006,MONTH(C41),DAY(C41))) -> 42 | E41: 0.8 | F41: 1.6 | G41: 0.5 | H41: 0 | I41: 1.4 | J41: 0.3 | K41: 0.6 | L41: 1.2 | M41: 1.7 | N41: 0.7
A42: MO19786 | B42: MO | C42: 1978-04-02 | D42: =COUNTIF(Calculations!$E$56:$E$98,"<="&DATE(2006,MONTH(C42),DAY(C42))) -> 6 | E42: 1 | F42: 0 | G42: 0.1 | H42: 0.1 | I42: 0.5 | J42: 0.5 | K42: 0.8 | L42: 2.4 | M42: 2.3 | N42: 3.3
A43: MO19787 | B43: MO | C43: 1978-04-09 | D43: =COUNTIF(Calculations!$E$56:$E$98,"<="&DATE(2006,MONTH(C43),DAY(C43))) -> 7 | E43: 1.4 | F43: 0.8 | G43: 0 | H43: 0 | I43: 0.6 | J43: 0.9 | K43: 1.8 | L43: 1.8 | M43: 3.5 | N43: 4.7
A44: MO19788 | B44: MO | C44: 1978-04-16 | D44: =COUNTIF(Calculations!$E$56:$E$98,"<="&DATE(2006,MONTH(C44),DAY(C44))) -> 8 | E44: 1.6 | F44: 0.6 | G44: 0.2 | H44: 0 | I44: 2.8 | J44: 0.8 | K44: 3.4 | L44: 1.9 | M44: 3.3 | N44: 3.2
A45: MO19789 | B45: MO | C45: 1978-04-23 | D45: =COUNTIF(Calculations!$E$56:$E$98,"<="&DATE(2006,MONTH(C45),DAY(C45))) -> 9 | E45: 1 | F45: 0.1 | G45: 0 | H45: 0 | I45: 0.1 | J45: 0.4 | K45: 1.5 | L45: 1.8 | M45: 3.5 | N45: 2.2
A46: MO197810 | B46: MO | C46: 1978-04-30 | D46: =COUNTIF(Calculations!$E$56:$E$98,"<="&DATE(2006,MONTH(C46),DAY(C46))) -> 10 | E46: 2.2 | F46: 0.6 | G46: 0.6 | H46: 0.2 | I46: 1.8 | J46: 1.5 | K46: 3.3 | L46: 4.4 | M46: 5.5 | N46: 3.9
A47: MO197811 | B47: MO | C47: 1978-05-07 | D47: =COUNTIF(Calculations!$E$56:$E$98,"<="&DATE(2006,MONTH(C47),DAY(C47))) -> 11 | E47: 1.4 | F47: 1.2 | G47: 0.8 | H47: 1.3 | I47: 1.2 | J47: 0.9 | K47: 2.5 | L47: 1.1 | M47: 3.1 | N47: 1.8
A48: MO197812 | B48: MO | C48: 1978-05-14 | D48: =COUNTIF(Calculations!$E$56:$E$98,"<="&DATE(2006,MONTH(C48),DAY(C48))) -> 12 | E48: 1.3 | F48: 0.6 | G48: 0.3 | H48: 0.3 | I48: 1.2 | J48: 0.6 | K48: 1.9 | L48: 2.5 | M48: 3 | N48: 2.8
A49: MO197813 | B49: MO | C49: 1978-05-21 | D49: =COUNTIF(Calculations!$E$56:$E$98,"<="&DATE(2006,MONTH(C49),DAY(C49))) -> 13 | E49: 2.7 | F49: 2.3 | G49: 2 | H49: 0.6 | I49: 2.6 | J49: 2.4 | K49: 2.2 | L49: 3.5 | M49: 5 | N49: 4.5
A50: MO197814 | B50: MO | C50: 1978-05-28 | D50: =COUNTIF(Calculations!$E$56:$E$98,"<="&DATE(2006,MONTH(C50),DAY(C50))) -> 14 | E50: 2.4 | F50: 1.8 | G50: 2.1 | H50: 2.1 | I50: 1.3 | J50: 1.4 | K50: 3.5 | L50: 2.6 | M50: 3.8 | N50: 4.4
A51: MO197815 | B51: MO | C51: 1978-06-04 | D51: =COUNTIF(Calculations!$E$56:$E$98,"<="&DATE(2006,MONTH(C51),DAY(C51))) -> 15 | E51: 2.9 | F51: 1.4 | G51: 2.7 | H51: 2.4 | I51: 3 | J51: 2.4 | K51: 3.5 | L51: 4.8 | M51: 4.3 | N51: 3.2
A52: MO197816 | B52: MO | C52: 1978-06-11 | D52: =COUNTIF(Calculations!$E$56:$E$98,"<="&DATE(2006,MONTH(C52),DAY(C52))) -> 16 | E52: 4.3 | F52: 4.4 | G52: 5.4 | H52: 5.1 | I52: 5.3 | J52: 4.6 | K52: 4.8 | L52: 3.1 | M52: 2.9 | N52: 2.5
A53: MO197817 | B53: MO | C53: 1978-06-18 | D53: =COUNTIF(Calculations!$E$56:$E$98,"<="&DATE(2006,MONTH(C53),DAY(C53))) -> 17 | E53: 6.2 | F53: 6.5 | G53: 6 | H53: 6 | I53: 6.5 | J53: 6.2 | K53: 6.2 | L53: 6 | M53: 6.2 | N53: 6
A54: MO197818 | B54: MO | C54: 1978-06-25 | D54: =COUNTIF(Calculations!$E$56:$E$98,"<="&DATE(2006,MONTH(C54),DAY(C54))) -> 18 | E54: 4.5 | F54: 4.9 | G54: 5.2 | H54: 4.5 | I54: 3.5 | J54: 4.4 | K54: 5.6 | L54: 3.3 | M54: 4.7 | N54: 4.5
A55: MO197819 | B55: MO | C55: 1978-07-02 | D55: =COUNTIF(Calculations!$E$56:$E$98,"<="&DATE(2006,MONTH(C55),DAY(C55))) -> 19 | E55: 5.5 | F55: 4.2 | G55: 4.9 | H55: 4.2 | I55: 6.3 | J55: 6.1 | K55: 5.5 | L55: 6.1 | M55: 6.1 | N55: 6.3
A56: MO197820 | B56: MO | C56: 1978-07-09 | D56: =COUNTIF(Calculations!$E$56:$E$98,"<="&DATE(2006,MONTH(C56),DAY(C56))) -> 20 | E56: 5.7 | F56: 5.1 | G56: 5.1 | H56: 4.6 | I56: 6.5 | J56: 5.9 | K56: 5.8 | L56: 6.4 | M56: 6.1 | N56: 6.1
A57: MO197821 | B57: MO | C57: 1978-07-16 | D57: =COUNTIF(Calculations!$E$56:$E$98,"<="&DATE(2006,MONTH(C57),DAY(C57))) -> 21 | E57: 3 | F57: 3.3 | G57: 2.4 | H57: 2.7 | I57: 4 | J57: 2.5 | K57: 2.6 | L57: 6.2 | M57: 2.9 | N57: 0.9
A58: MO197822 | B58: MO | C58: 1978-07-23 | D58: =COUNTIF(Calculations!$E$56:$E$98,"<="&DATE(2006,MONTH(C58),DAY(C58))) -> 22 | E58: 4.4 | F58: 2 | G58: 2.4 | H58: 3.6 | I58: 5.3 | J58: 4.9 | K58: 5.2 | L58: 5.5 | M58: 5.8 | N58: 5.6
A59: MO197823 | B59: MO | C59: 1978-07-30 | D59: =COUNTIF(Calculations!$E$56:$E$98,"<="&DATE(2006,MONTH(C59),DAY(C59))) -> 23 | E59: 5.5 | F59: 5.6 | G59: 5.9 | H59: 6 | I59: 6.4 | J59: 5.5 | K59: 3.8 | L59: 4.8 | M59: 4.9 | N59: 5.8
A60: MO197824 | B60: MO | C60: 1978-08-06 | D60: =COUNTIF(Calculations!$E$56:$E$98,"<="&DATE(2006,MONTH(C60),DAY(C60))) -> 24 | E60: 4.2 | F60: 3 | G60: 2.9 | H60: 4.1 | I60: 4.1 | J60: 5.5 | K60: 3.7 | L60: 4.5 | M60: 4.9 | N60: 4.6
A61: MO197825 | B61: MO | C61: 1978-08-13 | D61: =COUNTIF(Calculations!$E$56:$E$98,"<="&DATE(2006,MONTH(C61),DAY(C61))) -> 25 | E61: 5.4 | F61: 4.6 | G61: 4.5 | H61: 5.4 | I61: 6 | J61: 5.7 | K61: 5.7 | L61: 5.5 | M61: 6 | N61: 5.8
A62: MO197826 | B62: MO | C62: 1978-08-20 | D62: =COUNTIF(Calculations!$E$56:$E$98,"<="&DATE(2006,MONTH(C62),DAY(C62))) -> 26 | E62: 5.4 | F62: 4.9 | G62: 5 | H62: 4.8 | I62: 5.4 | J62: 5.6 | K62: 5.9 | L62: 5.3 | M62: 6.1 | N62: 6
A63: MO197827 | B63: MO | C63: 1978-08-27 | D63: =COUNTIF(Calculations!$E$56:$E$98,"<="&DATE(2006,MONTH(C63),DAY(C63))) -> 27 | E63: 6 | F63: 4.5 | G63: 6 | H63: 6.5 | I63: 6.4 | J63: 5.9 | K63: 6.4 | L63: 6.1 | M63: 6.2 | N63: 6.4
A64: MO197828 | B64: MO | C64: 1978-09-03 | D64: =COUNTIF(Calculations!$E$56:$E$98,"<="&DATE(2006,MONTH(C64),DAY(C64))) -> 28 | E64: 5.1 | F64: 4.8 | G64: 5.7 | H64: 6.3 | I64: 5.2 | J64: 5.6 | K64: 5.3 | L64: 5.4 | M64: 4.7 | N64: 1.8
A65: MO197829 | B65: MO | C65: 1978-09-10 | D65: =COUNTIF(Calculations!$E$56:$E$98,"<="&DATE(2006,MONTH(C65),DAY(C65))) -> 29 | E65: 6.2 | F65: 6.3 | G65: 6.2 | H65: 6.5 | I65: 6.4 | J65: 6.2 | K65: 6.4 | L65: 5.6 | M65: 6.3 | N65: 5.5
A66: MO197830 | B66: MO | C66: 1978-09-17 | D66: =COUNTIF(Calculations!$E$56:$E$98,"<="&DATE(2006,MONTH(C66),DAY(C66))) -> 30 | E66: 5.4 | F66: 5.2 | G66: 6 | H66: 6.4 | I66: 5.8 | J66: 5.4 | K66: 6 | L66: 4.9 | M66: 5 | N66: 3.6
A67: MO197831 | B67: MO | C67: 1978-09-24 | D67: =COUNTIF(Calculations!$E$56:$E$98,"<="&DATE(2006,MONTH(C67),DAY(C67))) -> 31 | E67: 4.2 | F67: 1.2 | G67: 1.9 | H67: 3.2 | I67: 5.9 | J67: 5.2 | K67: 4.8 | L67: 4.8 | M67: 5.3 | N67: 6.1
A68: MO197832 | B68: MO | C68: 1978-10-01 | D68: =COUNTIF(Calculations!$E$56:$E$98,"<="&DATE(2006,MONTH(C68),DAY(C68))) -> 32 | E68: 6.1 | F68: 5.3 | G68: 5.8 | H68: 6.5 | I68: 6.4 | J68: 6.2 | K68: 6.3 | L68: 6 | M68: 6.3 | N68: 6.3
A69: =B69&YEAR(C69)&D69 -> MO197833 | B69: MO | C69: 1978-10-08 | D69: =COUNTIF(Calculations!$E$56:$E$98,"<="&DATE(2006,MONTH(C69),DAY(C69))) -> 33 | E69: 5.2 | F69: 5.1 | G69: 4.7 | H69: 4.1 | I69: 6.1 | J69: 5.2 | K69: 5 | L69: 5.7 | M69: 5.6 | N69: 5.3
A70: MO197834 | B70: MO | C70: 1978-10-15 | D70: =COUNTIF(Calculations!$E$56:$E$98,"<="&DATE(2006,MONTH(C70),DAY(C70))) -> 34 | E70: 3.8 | F70: 4.8 | G70: 3 | H70: 2.6 | I70: 4.7 | J70: 3.7 | K70: 3.4 | L70: 4.8 | M70: 4.1 | N70: 3.3
A71: MO197835 | B71: MO | C71: 1978-10-22 | D71: =COUNTIF(Calculations!$E$56:$E$98,"<="&DATE(2006,MONTH(C71),DAY(C71))) -> 35 | E71: 6.1 | F71: 6 | G71: 6 | H71: 6.1 | I71: 6.1 | J71: 6 | K71: 5.9 | L71: 6.2 | M71: 5.8 | N71: 6.2
A72: MO197836 | B72: MO | C72: 1978-10-29 | D72: =COUNTIF(Calculations!$E$56:$E$98,"<="&DATE(2006,MONTH(C72),DAY(C72))) -> 36 | E72: 5.2 | F72: 5.2 | G72: 5 | H72: 4.7 | I72: 6.1 | J72: 5.3 | K72: 4.7 | L72: 6.1 | M72: 5.4 | N72: 3.8
A73: MO19796 | B73: MO | C73: 1979-04-01 | D73: =COUNTIF(Calculations!$E$56:$E$98,"<="&DATE(2006,MONTH(C73),DAY(C73))) -> 6 | E73: 0.4 | F73: 0.4 | G73: 0 | H73: 0 | I73: 0.6 | J73: 0.3 | K73: 0 | L73: 1.6 | M73: 0.5 | N73: 0.6
A74: MO19797 | B74: MO | C74: 1979-04-08 | D74: =COUNTIF(Calculations!$E$56:$E$98,"<="&DATE(2006,MONTH(C74),DAY(C74))) -> 7 | E74: 0.4 | F74: 0.1 | G74: 0 | H74: 0.1 | I74: 0.4 | J74: 0.4 | K74: 0 | L74: 1.7 | M74: 0.6 | N74: 0.2
A75: MO19798 | B75: MO | C75: 1979-04-15 | D75: =COUNTIF(Calculations!$E$56:$E$98,"<="&DATE(2006,MONTH(C75),DAY(C75))) -> 8 | E75: 0.4 | F75: 0.4 | G75: 0.2 | H75: 0.3 | I75: 0.4 | J75: 0.6 | K75: 0.2 | L75: 0.9 | M75: 0.4 | N75: 0.4
A76: MO19799 | B76: MO | C76: 1979-04-22 | D76: =COUNTIF(Calculations!$E$56:$E$98,"<="&DATE(2006,MONTH(C76),DAY(C76))) -> 9 | E76: 2 | F76: 2 | G76: 0.9 | H76: 0.6 | I76: 1.7 | J76: 1.9 | K76: 1 | L76: 3.9 | M76: 3.2 | N76: 2.7
A77: MO197910 | B77: MO | C77: 1979-04-29 | D77: =COUNTIF(Calculations!$E$56:$E$98,"<="&DATE(2006,MONTH(C77),DAY(C77))) -> 10 | E77: 1.3 | F77: 1.6 | G77: 0.8 | H77: 0.2 | I77: 3.5 | J77: 1.1 | K77: 0.4 | L77: 2.6 | M77: 1 | N77: 0.3
A78: MO197911 | B78: MO | C78: 1979-05-06 | D78: =COUNTIF(Calculations!$E$56:$E$98,"<="&DATE(2006,MONTH(C78),DAY(C78))) -> 11 | E78: 1.4 | F78: 0.8 | G78: 1 | H78: 0.9 | I78: 1.7 | J78: 1.5 | K78: 1 | L78: 2.5 | M78: 2 | N78: 1.5
A79: MO197912 | B79: MO | C79: 1979-05-13 | D79: =COUNTIF(Calculations!$E$56:$E$98,"<="&DATE(2006,MONTH(C79),DAY(C79))) -> 12 | E79: 3.9 | F79: 4.2 | G79: 4.2 | H79: 4.5 | I79: 4.6 | J79: 4.2 | K79: 3.6 | L79: 4 | M79: 3.2 | N79: 2.1
A80: MO197913 | B80: MO | C80: 1979-05-20 | D80: =COUNTIF(Calculations!$E$56:$E$98,"<="&DATE(2006,MONTH(C80),DAY(C80))) -> 13 | E80: 5 | F80: 6 | G80: 5.1 | H80: 5.6 | I80: 4.9 | J80: 4.7 | K80: 5.1 | L80: 5.1 | M80: 4.4 | N80: 4
A81: MO197914 | B81: MO | C81: 1979-05-27 | D81: =COUNTIF(Calculations!$E$56:$E$98,"<="&DATE(2006,MONTH(C81),DAY(C81))) -> 14 | E81: 4.3 | F81: 6.2 | G81: 5.9 | H81: 6 | I81: 3.9 | J81: 5 | K81: 4.1 | L81: 1.8 | M81: 2.9 | N81: 1
A82: MO197915 | B82: MO | C82: 1979-06-03 | D82: =COUNTIF(Calculations!$E$56:$E$98,"<="&DATE(2006,MONTH(C82),DAY(C82))) -> 15 | E82: 5 | F82: 6.3 | G82: 5.7 | H82: 5.5 | I82: 4.6 | J82: 5.1 | K82: 5.5 | L82: 3.1 | M82: 4.4 | N82: 3.5
A83: MO197916 | B83: MO | C83: 1979-06-10 | D83: =COUNTIF(Calculations!$E$56:$E$98,"<="&DATE(2006,MONTH(C83),DAY(C83))) -> 16 | E83: 4.3 | F83: 4.8 | G83: 4.6 | H83: 6 | I83: 2.3 | J83: 4.8 | K83: 5.1 | L83: 1.8 | M83: 2.9 | N83: 4.5
A84: MO197917 | B84: MO | C84: 1979-06-17 | D84: =COUNTIF(Calculations!$E$56:$E$98,"<="&DATE(2006,MONTH(C84),DAY(C84))) -> 17 | E84: 4.7 | F84: 4.7 | G84: 2.4 | H84: 4.3 | I84: 3.7 | J84: 4.9 | K84: 5.9 | L84: 5.2 | M84: 5.3 | N84: 6.4
A85: MO197918 | B85: MO | C85: 1979-06-24 | D85: =COUNTIF(Calculations!$E$56:$E$98,"<="&DATE(2006,MONTH(C85),DAY(C85))) -> 18 | E85: 5.8 | F85: 6.2 | G85: 5.4 | H85: 5.9 | I85: 5.3 | J85: 5.8 | K85: 6.2 | L85: 5.7 | M85: 5.5 | N85: 6.6
A86: MO197919 | B86: MO | C86: 1979-07-01 | D86: =COUNTIF(Calculations!$E$56:$E$98,"<="&DATE(2006,MONTH(C86),DAY(C86))) -> 19 | E86: 4.2 | F86: 3 | G86: 2.8 | H86: 4.8 | I86: 3.5 | J86: 4.8 | K86: 5 | L86: 2.9 | M86: 5.5 | N86: 5.9
A87: MO197920 | B87: MO | C87: 1979-07-08 | D87: =COUNTIF(Calculations!$E$56:$E$98,"<="&DATE(2006,MONTH(C87),DAY(C87))) -> 20 | E87: 4.1 | F87: 3.5 | G87: 4 | H87: 5.3 | I87: 3.4 | J87: 4.4 | K87: 4.7 | L87: 3.5 | M87: 3.8 | N87: 4.8
A88: MO197921 | B88: MO | C88: 1979-07-15 | D88: =COUNTIF(Calculations!$E$56:$E$98,"<="&DATE(2006,MONTH(C88),DAY(C88))) -> 21 | E88: 4.7 | F88: 4.3 | G88: 5.6 | H88: 6.1 | I88: 3.4 | J88: 5 | K88: 5.6 | L88: 5.3 | M88: 4.3 | N88: 3
A89: MO197922 | B89: MO | C89: 1979-07-22 | D89: =COUNTIF(Calculations!$E$56:$E$98,"<="&DATE(2006,MONTH(C89),DAY(C89))) -> 22 | E89: 5.7 | F89: 4.9 | G89: 6 | H89: 6.1 | I89: 5.2 | J89: 6.1 | K89: 6.4 | L89: 5.5 | M89: 5.5 | N89: 6.1
A90: MO197923 | B90: MO | C90: 1979-07-29 | D90: =COUNTIF(Calculations!$E$56:$E$98,"<="&DATE(2006,MONTH(C90),DAY(C90))) -> 23 | E90: 3.9 | F90: 3 | G90: 3.4 | H90: 3.1 | I90: 4.7 | J90: 5 | K90: 3.5 | L90: 5.2 | M90: 3.8 | N90: 3.3
A91: MO197924 | B91: MO | C91: 1979-08-05 | D91: =COUNTIF(Calculations!$E$56:$E$98,"<="&DATE(2006,MONTH(C91),DAY(C91))) -> 24 | E91: 2.9 | F91: 2.5 | G91: 3.1 | H91: 2.8 | I91: 3.9 | J91: 2.9 | K91: 1.6 | L91: 3.8 | M91: 2.3 | N91: 3.7
A92: MO197925 | B92: MO | C92: 1979-08-12 | D92: =COUNTIF(Calculations!$E$56:$E$98,"<="&DATE(2006,MONTH(C92),DAY(C92))) -> 25 | E92: 6.2 | F92: 6.3 | G92: 6.2 | H92: 6.2 | I92: 5.9 | J92: 6.2 | K92: 5.9 | L92: 5.8 | M92: 6.2 | N92: 6.5
A93: MO197926 | B93: MO | C93: 1979-08-19 | D93: =COUNTIF(Calculations!$E$56:$E$98,"<="&DATE(2006,MONTH(C93),DAY(C93))) -> 26 | E93: 4.7 | F93: 3.6 | G93: 4.9 | H93: 5.1 | I93: 4.9 | J93: 4.4 | K93: 4.3 | L93: 5 | M93: 5 | N93: 5.8
A94: MO197927 | B94: MO | C94: 1979-08-26 | D94: =COUNTIF(Calculations!$E$56:$E$98,"<="&DATE(2006,MONTH(C94),DAY(C94))) -> 27 | E94: 5.3 | F94: 4.9 | G94: 4.8 | H94: 4 | I94: 5.6 | J94: 5.7 | K94: 5.2 | L94: 5.5 | M94: 5.6 | N94: 6.1
A95: MO197928 | B95: MO | C95: 1979-09-02 | D95: =COUNTIF(Calculations!$E$56:$E$98,"<="&DATE(2006,MONTH(C95),DAY(C95))) -> 28 | E95: 3.8 | F95: 3.1 | G95: 3.6 | H95: 3.7 | I95: 3.9 | J95: 3.4 | K95: 4.9 | L95: 4.5 | M95: 4.5 | N95: 3.3
A96: MO197929 | B96: MO | C96: 1979-09-09 | D96: =COUNTIF(Calculations!$E$56:$E$98,"<="&DATE(2006,MONTH(C96),DAY(C96))) -> 29 | E96: 4.6 | F96: 3 | G96: 4 | H96: 5.7 | I96: 3.9 | J96: 4.3 | K96: 5.7 | L96: 5 | M96: 5.5 | N96: 5.8
A97: MO197930 | B97: MO | C97: 1979-09-16 | D97: =COUNTIF(Calculations!$E$56:$E$98,"<="&DATE(2006,MONTH(C97),DAY(C97))) -> 30 | E97: 5.8 | F97: 5.2 | G97: 5.7 | H97: 6.5 | I97: 5.9 | J97: 6.1 | K97: 5.9 | L97: 6.3 | M97: 5.7 | N97: 5.3
A98: MO197931 | B98: MO | C98: 1979-09-23 | D98: =COUNTIF(Calculations!$E$56:$E$98,"<="&DATE(2006,MONTH(C98),DAY(C98))) -> 31 | E98: 6 | F98: 6.3 | G98: 5.8 | H98: 6.5 | I98: 6.2 | J98: 5.9 | K98: 6.3 | L98: 5.8 | M98: 5.9 | N98: 5.4
A99: MO197932 | B99: MO | C99: 1979-09-30 | D99: =COUNTIF(Calculations!$E$56:$E$98,"<="&DATE(2006,MONTH(C99),DAY(C99))) -> 32 | E99: 6.2 | F99: 6.6 | G99: 6.4 | H99: 6.4 | I99: 6.4 | J99: 6.4 | K99: 6.2 | L99: 6.3 | M99: 6.3 | N99: 4.4
A100: MO197933 | B100: MO | C100: 1979-10-07 | D100: =COUNTIF(Calculations!$E$56:$E$98,"<="&DATE(2006,MONTH(C100),DAY(C100))) -> 33 | E100: 6.2 | F100: 6.5 | G100: 6.1 | H100: 6.4 | I100: 6.7 | J100: 6.5 | K100: 6 | L100: 6.1 | M100: 5.9 | N100: 5.5
A101: MO197934 | B101: MO | C101: 1979-10-14 | D101: =COUNTIF(Calculations!$E$56:$E$98,"<="&DATE(2006,MONTH(C101),DAY(C101))) -> 34 | E101: 6.2 | F101: 6.8 | G101: 6.3 | H101: 6.5 | I101: 6.7 | J101: 6.3 | K101: 6 | L101: 6.1 | M101: 5.1 | N101: 5.6
A102: MO197935 | B102: MO | C102: 1979-10-21 | D102: =COUNTIF(Calculations!$E$56:$E$98,"<="&DATE(2006,MONTH(C102),DAY(C102))) -> 35 | E102: 5.5 | F102: 5.7 | G102: 5.6 | H102: 5.8 | I102: 5.3 | J102: 5.5 | K102: 4.5 | L102: 5.8 | M102: 5.5 | N102: 5.7
A103: MO197936 | B103: MO | C103: 1979-10-28 | D103: =COUNTIF(Calculations!$E$56:$E$98,"<="&DATE(2006,MONTH(C103),DAY(C103))) -> 36 | E103: 4.3 | F103: 2.3 | G103: 3.9 | H103: 4.7 | I103: 4.1 | J103: 4.6 | K103: 4.8 | L103: 5.5 | M103: 5.4 | N103: 4.4
A104: MO197937 | B104: MO | C104: 1979-11-04 | D104: =COUNTIF(Calculations!$E$56:$E$98,"<="&DATE(2006,MONTH(C104),DAY(C104))) -> 37 | E104: 4.1 | F104: 3.2 | G104: 4.1 | H104: 4 | I104: 3.4 | J104: 4.3 | K104: 5.2 | L104: 4.4 | M104: 4.9 | N104: 3.3
A105: MO197938 | B105: MO | C105: 1979-11-11 | D105: =COUNTIF(Calculations!$E$56:$E$98,"<="&DATE(2006,MONTH(C105),DAY(C105))) -> 38 | E105: 3.7 | F105: 2.8 | G105: 3.7 | H105: 4.2 | I105: 3.2 | J105: 3.9 | K105: 4.9 | L105: 3.6 | M105: 3.7 | N105: 3.7
A106: MO197939 | B106: MO | C106: 1979-11-18 | D106: =COUNTIF(Calculations!$E$56:$E$98,"<="&DATE(2006,MONTH(C106),DAY(C106))) -> 39 | E106: 5.3 | F106: 5.1 | G106: 5.3 | H106: 6.4 | I106: 4.5 | J106: 5.4 | K106: 5.2 | L106: 6 | M106: 5.5 | N106: 4.7
A107: MO197940 | B107: MO | C107: 1979-11-25 | D107: =COUNTIF(Calculations!$E$56:$E$98,"<="&DATE(2006,MONTH(C107),DAY(C107))) -> 40 | E107: 2.6 | F107: 2.7 | G107: 1.7 | H107: 2.9 | I107: 1.9 | J107: 3 | K107: 3.6 | L107: 2.7 | M107: 2.7 | N107: 2.5
A108: MO19807 | B108: MO | C108: 1980-04-13 | D108: =COUNTIF(Calculations!$E$56:$E$98,"<="&DATE(2006,MONTH(C108),DAY(C108))) -> 7 | E108: 1.4 | F108: 1 | G108: 0.6 | H108: 0.5 | I108: 0.2 | J108: 0.9 | K108: 1.4 | L108: 3.1 | M108: 3.6 | N108: 1.7
A109: MO19808 | B109: MO | C109: 1980-04-20 | D109: =COUNTIF(Calculations!$E$56:$E$98,"<="&DATE(2006,MONTH(C109),DAY(C109))) -> 8 | E109: 1.6 | F109: 2.3 | G109: 1 | H109: 0.2 | I109: 2.4 | J109: 0.6 | K109: 0.5 | L109: 4.1 | M109: 2.3 | N109: 2.1
A110: MO19809 | B110: MO | C110: 1980-04-27 | D110: =COUNTIF(Calculations!$E$56:$E$98,"<="&DATE(2006,MONTH(C110),DAY(C110))) -> 9 | E110: 5.1 | F110: 5.9 | G110: 4.9 | H110: 3.7 | I110: 6.1 | J110: 5 | K110: 3.7 | L110: 6.1 | M110: 4.9 | N110: 5.1
A111: MO198010 | B111: MO | C111: 1980-05-04 | D111: =COUNTIF(Calculations!$E$56:$E$98,"<="&DATE(2006,MONTH(C111),DAY(C111))) -> 10 | E111: 6.1 | F111: 6.6 | G111: 6.2 | H111: 6.3 | I111: 6.5 | J111: 5.9 | K111: 2.9 | L111: 5.5 | M111: 6.3 | N111: 5.7
A112: MO198011 | B112: MO | C112: 1980-05-11 | D112: =COUNTIF(Calculations!$E$56:$E$98,"<="&DATE(2006,MONTH(C112),DAY(C112))) -> 11 | E112: 6.4 | F112: 6.8 | G112: 6.6 | H112: 6.6 | I112: 6.6 | J112: 6.5 | K112: 6.5 | L112: 5.9 | M112: 6 | N112: 6.5
A113: MO198012 | B113: MO | C113: 1980-05-18 | D113: =COUNTIF(Calculations!$E$56:$E$98,"<="&DATE(2006,MONTH(C113),DAY(C113))) -> 12 | E113: 4.1 | F113: 5.5 | G113: 4.5 | H113: 4.5 | I113: 4.6 | J113: 3.6 | K113: 4.6 | L113: 2.9 | M113: 3.2 | N113: 3.5
A114: MO198013 | B114: MO | C114: 1980-05-25 | D114: =COUNTIF(Calculations!$E$56:$E$98,"<="&DATE(2006,MONTH(C114),DAY(C114))) -> 13 | E114: 4.5 | F114: 4.9 | G114: 3.7 | H114: 4.1 | I114: 6.5 | J114: 5.4 | K114: 5 | L114: 3 | M114: 3.4 | N114: 3.1
A115: MO198014 | B115: MO | C115: 1980-06-01 | D115: =COUNTIF(Calculations!$E$56:$E$98,"<="&DATE(2006,MONTH(C115),DAY(C115))) -> 14 | E115: 5.5 | F115: 5.3 | G115: 6 | H115: 4.6 | I115: 4.6 | J115: 6.1 | K115: 5.9 | L115: 5.4 | M115: 6.1 | N115: 4.8
A116: MO198015 | B116: MO | C116: 1980-06-08 | D116: =COUNTIF(Calculations!$E$56:$E$98,"<="&DATE(2006,MONTH(C116),DAY(C116))) -> 15 | E116: 3.8 | F116: 2.6 | G116: 1.3 | H116: 0.9 | I116: 4.1 | J116: 4.6 | K116: 4.7 | L116: 5.8 | M116: 5.7 | N116: 5.5
A117: MO198016 | B117: MO | C117: 1980-06-15 | D117: =COUNTIF(Calculations!$E$56:$E$98,"<="&DATE(2006,MONTH(C117),DAY(C117))) -> 16 | E117: 6 | F117: 6.3 | G117: 5 | H117: 4.6 | I117: 6.6 | J117: 6.5 | K117: 6.5 | L117: 6.6 | M117: 5.7 | N117: 6.2
A118: MO198017 | B118: MO | C118: 1980-06-22 | D118: =COUNTIF(Calculations!$E$56:$E$98,"<="&DATE(2006,MONTH(C118),DAY(C118))) -> 17 | E118: 5.9 | F118: 6.4 | G118: 5.5 | H118: 5.9 | I118: 5.8 | J118: 6.4 | K118: 6.4 | L118: 4 | M118: 5.6 | N118: 6.2
A119: MO198018 | B119: MO | C119: 1980-06-29 | D119: =COUNTIF(Calculations!$E$56:$E$98,"<="&DATE(2006,MONTH(C119),DAY(C119))) -> 18 | E119: 5.2 | F119: 4.1 | G119: 5.6 | H119: 6.1 | I119: 5.5 | J119: 5.9 | K119: 5.7 | L119: 4.4 | M119: 5.1 | N119: 4.3
A120: MO198019 | B120: MO | C120: 1980-07-06 | D120: =COUNTIF(Calculations!$E$56:$E$98,"<="&DATE(2006,MONTH(C120),DAY(C120))) -> 19 | E120: 4.5 | F120: 3.7 | G120: 3.6 | H120: 3.8 | I120: 5.1 | J120: 5.1 | K120: 4.4 | L120: 6 | M120: 4.2 | N120: 4.5
A121: MO198020 | B121: MO | C121: 1980-07-13 | D121: =COUNTIF(Calculations!$E$56:$E$98,"<="&DATE(2006,MONTH(C121),DAY(C121))) -> 20 | E121: 6.1 | F121: 6.5 | G121: 6.2 | H121: 6.6 | I121: 5.9 | J121: 6.4 | K121: 5.8 | L121: 6.4 | M121: 5.2 | N121: 6
A122: MO198021 | B122: MO | C122: 1980-07-20 | D122: =COUNTIF(Calculations!$E$56:$E$98,"<="&DATE(2006,MONTH(C122),DAY(C122))) -> 21 | E122: 6.2 | F122: 6.7 | G122: 6.1 | H122: 6.6 | I122: 6.3 | J122: 6.6 | K122: 6.5 | L122: 5.5 | M122: 5 | N122: 6.4
A123: MO198022 | B123: MO | C123: 1980-07-27 | D123: =COUNTIF(Calculations!$E$56:$E$98,"<="&DATE(2006,MONTH(C123),DAY(C123))) -> 22 | E123: 6.2 | F123: 6.6 | G123: 6 | H123: 6.3 | I123: 6.3 | J123: 6.3 | K123: 5.7 | L123: 6 | M123: 5.9 | N123: 6.5
A124: MO198023 | B124: MO | C124: 1980-08-03 | D124: =COUNTIF(Calculations!$E$56:$E$98,"<="&DATE(2006,MONTH(C124),DAY(C124))) -> 23 | E124: 6.1 | F124: 6.8 | G124: 6.3 | H124: 6.8 | I124: 6.7 | J124: 6.1 | K124: 5.9 | L124: 4.3 | M124: 5.5 | N124: 4.4
A125: MO198024 | B125: MO | C125: 1980-08-10 | D125: =COUNTIF(Calculations!$E$56:$E$98,"<="&DATE(2006,MONTH(C125),DAY(C125))) -> 24 | E125: 5.5 | F125: 5.9 | G125: 5.4 | H125: 5.3 | I125: 4.2 | J125: 4.7 | K125: 6 | L125: 6.1 | M125: 6.2 | N125: 6.3
A126: MO198025 | B126: MO | C126: 1980-08-17 | D126: =COUNTIF(Calculations!$E$56:$E$98,"<="&DATE(2006,MONTH(C126),DAY(C126))) -> 25 | E126: 5.4 | F126: 5.3 | G126: 4.6 | H126: 5.3 | I126: 5.7 | J126: 5.4 | K126: 5.6 | L126: 6.3 | M126: 4.9 | N126: 6
A127: MO198026 | B127: MO | C127: 1980-08-24 | D127: =COUNTIF(Calculations!$E$56:$E$98,"<="&DATE(2006,MONTH(C127),DAY(C127))) -> 26 | E127: 5.4 | F127: 5.4 | G127: 4.5 | H127: 4.6 | I127: 5.2 | J127: 5.3 | K127: 5.7 | L127: 5.6 | M127: 6.4 | N127: 6.5
A128: MO198027 | B128: MO | C128: 1980-08-31 | D128: =COUNTIF(Calculations!$E$56:$E$98,"<="&DATE(2006,MONTH(C128),DAY(C128))) -> 27 | E128: 6.2 | F128: 6.8 | G128: 6.3 | H128: 6.6 | I128: 6.2 | J128: 5.9 | K128: 5.8 | L128: 6.4 | M128: 5.1 | N128: 6.5
A129: MO198028 | B129: MO | C129: 1980-09-07 | D129: =COUNTIF(Calculations!$E$56:$E$98,"<="&DATE(2006,MONTH(C129),DAY(C129))) -> 28 | E129: 4.6 | F129: 3.5 | G129: 2.4 | H129: 3 | I129: 4.8 | J129: 4.9 | K129: 5.4 | L129: 6.5 | M129: 5.6 | N129: 6.1
A130: MO198029 | B130: MO | C130: 1980-09-14 | D130: =COUNTIF(Calculations!$E$56:$E$98,"<="&DATE(2006,MONTH(C130),DAY(C130))) -> 29 | E130: 5.8 | F130: 6.3 | G130: 4.8 | H130: 4.9 | I130: 6.3 | J130: 6 | K130: 6.1 | L130: 6.2 | M130: 5.1 | N130: 6.6
A131: MO198030 | B131: MO | C131: 1980-09-21 | D131: =COUNTIF(Calculations!$E$56:$E$98,"<="&DATE(2006,MONTH(C131),DAY(C131))) -> 30 | E131: 4.6 | F131: 4 | G131: 2.6 | H131: 2.8 | I131: 5.8 | J131: 4.9 | K131: 5 | L131: 6.3 | M131: 5.7 | N131: 4.6
A132: MO198031 | B132: MO | C132: 1980-09-28 | D132: =COUNTIF(Calculations!$E$56:$E$98,"<="&DATE(2006,MONTH(C132),DAY(C132))) -> 31 | E132: 5.7 | F132: 6.2 | G132: 5.4 | H132: 5.1 | I132: 6.7 | J132: 6.4 | K132: 5.8 | L132: 5.7 | M132: 5.1 | N132: 3.7
A133: =B133&YEAR(C133)&D133 -> MO198032 | B133: MO | C133: 1980-10-05 | D133: =COUNTIF(Calculations!$E$56:$E$98,"<="&DATE(2006,MONTH(C133),DAY(C133))) -> 32 | E133: 6.4 | F133: 6.6 | G133: 6.3 | H133: 6.6 | I133: 6.7 | J133: 6.6 | K133: 6.1 | L133: 6.4 | M133: 6.3 | N133: 5.6
A134: MO198033 | B134: MO | C134: 1980-10-12 | D134: =COUNTIF(Calculations!$E$56:$E$98,"<="&DATE(2006,MONTH(C134),DAY(C134))) -> 33 | E134: 6.3 | F134: 6.8 | G134: 6.4 | H134: 6.4 | I134: 6.7 | J134: 6.5 | K134: 6.1 | L134: 5.8 | M134: 5.3 | N134: 6.1
A135: MO198034 | B135: MO | C135: 1980-10-19 | D135: =COUNTIF(Calculations!$E$56:$E$98,"<="&DATE(2006,MONTH(C135),DAY(C135))) -> 34 | E135: 4.4 | F135: 4.1 | G135: 3.6 | H135: 4.6 | I135: 4.2 | J135: 4 | K135: 5 | L135: 4.6 | M135: 5.5 | N135: 4.6
A136: MO198035 | B136: MO | C136: 1980-10-26 | D136: =COUNTIF(Calculations!$E$56:$E$98,"<="&DATE(2006,MONTH(C136),DAY(C136))) -> 35 | E136: 5.2 | F136: 5 | G136: 5.3 | H136: 5.5 | I136: 5.6 | J136: 5.2 | K136: 4.6 | L136: 4.8 | M136: 5.8 | N136: 4.8
A137: MO198036 | B137: MO | C137: 1980-11-02 | D137: =COUNTIF(Calculations!$E$56:$E$98,"<="&DATE(2006,MONTH(C137),DAY(C137))) -> 36 | E137: 3.4 | F137: 1.8 | G137: 2.2 | H137: 3.3 | I137: 3.2 | J137: 3.2 | K137: 3.7 | L137: 5.3 | M137: 5.5 | N137: 2.8
A138: MO198037 | B138: MO | C138: 1980-11-09 | D138: =COUNTIF(Calculations!$E$56:$E$98,"<="&DATE(2006,MONTH(C138),DAY(C138))) -> 37 | E138: 6.2 | F138: 6.1 | G138: 5.8 | H138: 6.2 | I138: 6.4 | J138: 6.2 | K138: 6.3 | L138: 6.3 | M138: 6.3 | N138: 6.2
A139: MO198038 | B139: MO | C139: 1980-11-16 | D139: =COUNTIF(Calculations!$E$56:$E$98,"<="&DATE(2006,MONTH(C139),DAY(C139))) -> 38 | E139: 5.7 | F139: 5.1 | G139: 5.2 | H139: 5.6 | I139: 6 | J139: 5.8 | K139: 5.6 | L139: 6.1 | M139: 6.3 | N139: 5.8
A140: MO19816 | B140: MO | C140: 1981-04-05 | D140: =COUNTIF(Calculations!$E$56:$E$98,"<="&DATE(2006,MONTH(C140),DAY(C140))) -> 6 | E140: 5.9 | F140: 6.2 | G140: 6.4 | H140: 6.3 | I140: 6.3 | J140: 6 | K140: 5.3 | L140: 6.3 | M140: 5.7 | N140: 4.4
A141: MO19817 | B141: MO | C141: 1981-04-12 | D141: =COUNTIF(Calculations!$E$56:$E$98,"<="&DATE(2006,MONTH(C141),DAY(C141))) -> 7 | E141: 6 | F141: 6.2 | G141: 6.2 | H141: 6.3 | I141: 6.4 | J141: 6.3 | K141: 5.1 | L141: 6.3 | M141: 6.6 | N141: 3.9
A142: MO19818 | B142: MO | C142: 1981-04-19 | D142: =COUNTIF(Calculations!$E$56:$E$98,"<="&DATE(2006,MONTH(C142),DAY(C142))) -> 8 | E142: 4.2 | F142: 3.4 | G142: 1.4 | H142: 0.9 | I142: 6 | J142: 4.8 | K142: 3.7 | L142: 5.8 | M142: 6.1 | N142: 6.3
A143: MO19819 | B143: MO | C143: 1981-04-26 | D143: =COUNTIF(Calculations!$E$56:$E$98,"<="&DATE(2006,MONTH(C143),DAY(C143))) -> 9 | E143: 1.8 | F143: 2.2 | G143: 0.6 | H143: 0.2 | I143: 3.2 | J143: 1.9 | K143: 1.6 | L143: 2.8 | M143: 2.3 | N143: 1.5
A144: MO198110 | B144: MO | C144: 1981-05-03 | D144: =COUNTIF(Calculations!$E$56:$E$98,"<="&DATE(2006,MONTH(C144),DAY(C144))) -> 10 | E144: 4.8 | F144: 5.5 | G144: 4.5 | H144: 3.1 | I144: 6.3 | J144: 4.8 | K144: 4.7 | L144: 5.1 | M144: 5.3 | N144: 3.1
A145: MO198111 | B145: MO | C145: 1981-05-10 | D145: =COUNTIF(Calculations!$E$56:$E$98,"<="&DATE(2006,MONTH(C145),DAY(C145))) -> 11 | E145: 4.5 | F145: 5 | G145: 3.4 | H145: 3.5 | I145: 5.2 | J145: 4.9 | K145: 4.4 | L145: 5.9 | M145: 3.1 | N145: 5
A146: MO198112 | B146: MO | C146: 1981-05-17 | D146: =COUNTIF(Calculations!$E$56:$E$98,"<="&DATE(2006,MONTH(C146),DAY(C146))) -> 12 | E146: 1.6 | F146: 1 | G146: 0.1 | H146: 2.6 | I146: 0.8 | J146: 0.5 | K146: 2.6 | L146: 2 | M146: 1.2 | N146: 1.4
A147: MO198113 | B147: MO | C147: 1981-05-24 | D147: =COUNTIF(Calculations!$E$56:$E$98,"<="&DATE(2006,MONTH(C147),DAY(C147))) -> 13 | E147: 1 | F147: 0.6 | G147: 0.2 | H147: 0.1 | I147: 1.3 | J147: 0.4 | K147: 0.4 | L147: 2.6 | M147: 2.9 | N147: 1.3
A148: MO198114 | B148: MO | C148: 1981-05-31 | D148: =COUNTIF(Calculations!$E$56:$E$98,"<="&DATE(2006,MONTH(C148),DAY(C148))) -> 14 | E148: 2.2 | F148: 2.3 | G148: 1.7 | H148: 0.7 | I148: 2.9 | J148: 2.4 | K148: 1 | L148: 4.7 | M148: 2.7 | N148: 1.2
A149: MO198115 | B149: MO | C149: 1981-06-07 | D149: =COUNTIF(Calculations!$E$56:$E$98,"<="&DATE(2006,MONTH(C149),DAY(C149))) -> 15 | E149: 2.3 | F149: 2.9 | G149: 3.7 | H149: 2.4 | I149: 2.1 | J149: 1.7 | K149: 0.9 | L149: 3.8 | M149: 1.9 | N149: 0.6
A150: MO198116 | B150: MO | C150: 1981-06-14 | D150: =COUNTIF(Calculations!$E$56:$E$98,"<="&DATE(2006,MONTH(C150),DAY(C150))) -> 16 | E150: 2.6 | F150: 3.9 | G150: 3.5 | H150: 2.9 | I150: 2 | J150: 1.6 | K150: 1.7 | L150: 2.3 | M150: 3.2 | N150: 1.8
A151: MO198117 | B151: MO | C151: 1981-06-21 | D151: =COUNTIF(Calculations!$E$56:$E$98,"<="&DATE(2006,MONTH(C151),DAY(C151))) -> 17 | E151: 2.5 | F151: 3 | G151: 2.1 | H151: 1.6 | I151: 1.3 | J151: 1.9 | K151: 3.1 | L151: 3.2 | M151: 3.8 | N151: 3.3
A152: MO198118 | B152: MO | C152: 1981-06-28 | D152: =COUNTIF(Calculations!$E$56:$E$98,"<="&DATE(2006,MONTH(C152),DAY(C152))) -> 18 | E152: 2.4 | F152: 4.5 | G152: 1.8 | H152: 0.9 | I152: 0.7 | J152: 1.2 | K152: 1.8 | L152: 3.4 | M152: 3.2 | N152: 4.8
A153: MO198119 | B153: MO | C153: 1981-07-05 | D153: =COUNTIF(Calculations!$E$56:$E$98,"<="&DATE(2006,MONTH(C153),DAY(C153))) -> 19 | E153: 2.4 | F153: 3.8 | G153: 1.5 | H153: 1.5 | I153: 0.6 | J153: 1.4 | K153: 2.6 | L153: 3.1 | M153: 4.2 | N153: 3.7
A154: MO198120 | B154: MO | C154: 1981-07-12 | D154: =COUNTIF(Calculations!$E$56:$E$98,"<="&DATE(2006,MONTH(C154),DAY(C154))) -> 20 | E154: 3.7 | F154: 5.4 | G154: 3.1 | H154: 2.3 | I154: 3.5 | J154: 3.4 | K154: 3 | L154: 4.3 | M154: 4.5 | N154: 3.6
A155: MO198121 | B155: MO | C155: 1981-07-19 | D155: =COUNTIF(Calculations!$E$56:$E$98,"<="&DATE(2006,MONTH(C155),DAY(C155))) -> 21 | E155: 4.7 | F155: 5.9 | G155: 4.4 | H155: 3.4 | I155: 5.3 | J155: 4.1 | K155: 3.8 | L155: 5.4 | M155: 4.7 | N155: 5.6
A156: MO198122 | B156: MO | C156: 1981-07-26 | D156: =COUNTIF(Calculations!$E$56:$E$98,"<="&DATE(2006,MONTH(C156),DAY(C156))) -> 22 | E156: 2.1 | F156: 2.5 | G156: 1.7 | H156: 0.8 | I156: 2.9 | J156: 0.9 | K156: 1 | L156: 4.6 | M156: 3.6 | N156: 1.6
A157: MO198123 | B157: MO | C157: 1981-08-02 | D157: =COUNTIF(Calculations!$E$56:$E$98,"<="&DATE(2006,MONTH(C157),DAY(C157))) -> 23 | E157: 1.9 | F157: 0.6 | G157: 0.7 | H157: 0.3 | I157: 2.4 | J157: 1.2 | K157: 1.9 | L157: 4.6 | M157: 4.8 | N157: 1.8
A158: MO198124 | B158: MO | C158: 1981-08-09 | D158: =COUNTIF(Calculations!$E$56:$E$98,"<="&DATE(2006,MONTH(C158),DAY(C158))) -> 24 | E158: 3 | F158: 0.7 | G158: 1.9 | H158: 2.2 | I158: 3.2 | J158: 3.5 | K158: 3.4 | L158: 4.4 | M158: 4.3 | N158: 4.5
A159: MO198125 | B159: MO | C159: 1981-08-16 | D159: =COUNTIF(Calculations!$E$56:$E$98,"<="&DATE(2006,MONTH(C159),DAY(C159))) -> 25 | E159: 4.7 | F159: 3.4 | G159: 4.2 | H159: 4.1 | I159: 4.5 | J159: 4.4 | K159: 5.4 | L159: 6.4 | M159: 5.9 | N159: 4.8
A160: MO198126 | B160: MO | C160: 1981-08-23 | D160: =COUNTIF(Calculations!$E$56:$E$98,"<="&DATE(2006,MONTH(C160),DAY(C160))) -> 26 | E160: 5.9 | F160: 6.2 | G160: 5.8 | H160: 5.8 | I160: 6 | J160: 6.1 | K160: 5.8 | L160: 5.8 | M160: 5.6 | N160: 5.3
A161: MO198127 | B161: MO | C161: 1981-08-30 | D161: =COUNTIF(Calculations!$E$56:$E$98,"<="&DATE(2006,MONTH(C161),DAY(C161))) -> 27 | E161: 3.9 | F161: 2.2 | G161: 4.2 | H161: 5 | I161: 3.3 | J161: 4.4 | K161: 4.3 | L161: 4 | M161: 4.3 | N161: 4.2
A162: MO198128 | B162: MO | C162: 1981-09-06 | D162: =COUNTIF(Calculations!$E$56:$E$98,"<="&DATE(2006,MONTH(C162),DAY(C162))) -> 28 | E162: 4.7 | F162: 4.7 | G162: 5 | H162: 4.8 | I162: 3.9 | J162: 5 | K162: 3.2 | L162: 5.3 | M162: 5.1 | N162: 4.4
A163: MO198129 | B163: MO | C163: 1981-09-13 | D163: =COUNTIF(Calculations!$E$56:$E$98,"<="&DATE(2006,MONTH(C163),DAY(C163))) -> 29 | E163: 5.4 | F163: 4.5 | G163: 4.8 | H163: 5.1 | I163: 5.2 | J163: 5.5 | K163: 5.1 | L163: 6.8 | M163: 6.2 | N163: 6.2
A164: MO198130 | B164: MO | C164: 1981-09-20 | D164: =COUNTIF(Calculations!$E$56:$E$98,"<="&DATE(2006,MONTH(C164),DAY(C164))) -> 30 | E164: 5.8 | F164: 6 | G164: 5.8 | H164: 5.7 | I164: 6.2 | J164: 5.9 | K164: 5.2 | L164: 6.1 | M164: 5.8 | N164: 4.6
A165: MO198131 | B165: MO | C165: 1981-09-27 | D165: =COUNTIF(Calculations!$E$56:$E$98,"<="&DATE(2006,MONTH(C165),DAY(C165))) -> 31 | E165: 6 | F165: 5.3 | G165: 5.3 | H165: 5.9 | I165: 6.1 | J165: 6.3 | K165: 6.3 | L165: 6.5 | M165: 6.4 | N165: 6.5
A166: MO198132 | B166: MO | C166: 1981-10-04 | D166: =COUNTIF(Calculations!$E$56:$E$98,"<="&DATE(2006,MONTH(C166),DAY(C166))) -> 32 | E166: 6.1 | F166: 6.3 | G166: 5.8 | H166: 5.6 | I166: 6.2 | J166: 6.5 | K166: 5.8 | L166: 6.6 | M166: 5.8 | N166: 6.5
A167: MO198133 | B167: MO | C167: 1981-10-11 | D167: =COUNTIF(Calculations!$E$56:$E$98,"<="&DATE(2006,MONTH(C167),DAY(C167))) -> 33 | E167: 6 | F167: 5.6 | G167: 6 | H167: 5.9 | I167: 5.8 | J167: 6.2 | K167: 5.9 | L167: 6.8 | M167: 6.3 | N167: 5.9
A168: MO198134 | B168: MO | C168: 1981-10-18 | D168: =COUNTIF(Calculations!$E$56:$E$98,"<="&DATE(2006,MONTH(C168),DAY(C168))) -> 34 | E168: 2 | F168: 1.5 | G168: 1.6 | H168: 2 | I168: 0.6 | J168: 2.5 | K168: 2.8 | L168: 0.9 | M168: 2.6 | N168: 3.2
A169: MO198135 | B169: MO | C169: 1981-10-25 | D169: =COUNTIF(Calculations!$E$56:$E$98,"<="&DATE(2006,MONTH(C169),DAY(C169))) -> 35 | E169: 3.6 | F169: 5.3 | G169: 4.4 | H169: 4.2 | I169: 2.8 | J169: 3.2 | K169: 3 | L169: 2.1 | M169: 2.6 | N169: 3.9
A170: MO198136 | B170: MO | C170: 1981-11-01 | D170: =COUNTIF(Calculations!$E$56:$E$98,"<="&DATE(2006,MONTH(C170),DAY(C170))) -> 36 | E170: 5.1 | F170: 6.5 | G170: 5.3 | H170: 5.8 | I170: 4.5 | J170: 5.1 | K170: 4.6 | L170: 5.1 | M170: 5.1 | N170: 3.4
A171: MO198137 | B171: MO | C171: 1981-11-08 | D171: =COUNTIF(Calculations!$E$56:$E$98,"<="&DATE(2006,MONTH(C171),DAY(C171))) -> 37 | E171: 1.2 | F171: 0.7 | G171: 0.5 | H171: 0.3 | I171: 0.9 | J171: 1.4 | K171: 0.4 | L171: 1.8 | M171: 3.1 | N171: 1.7
A172: MO198138 | B172: MO | C172: 1981-11-15 | D172: =COUNTIF(Calculations!$E$56:$E$98,"<="&DATE(2006,MONTH(C172),DAY(C172))) -> 38 | E172: 4.2 | F172: 5.4 | G172: 4 | H172: 4.2 | I172: 1.3 | J172: 3.6 | K172: 3.2 | L172: 4.8 | M172: 5.6 | N172: 6.2
A173: MO198139 | B173: MO | C173: 1981-11-22 | D173: =COUNTIF(Calculations!$E$56:$E$98,"<="&DATE(2006,MONTH(C173),DAY(C173))) -> 39 | E173: 4.2 | F173: 4.4 | G173: 4 | H173: 3 | I173: 2.9 | J173: 4.4 | K173: 3.6 | L173: 4.9 | M173: 5.4 | N173: 4.7
A174: MO198140 | B174: MO | C174: 1981-11-29 | D174: =COUNTIF(Calculations!$E$56:$E$98,"<="&DATE(2006,MONTH(C174),DAY(C174))) -> 40 | E174: 4.3 | F174: 5.3 | G174: 4.6 | H174: 2.7 | I174: 4 | J174: 4.1 | K174: 2.7 | L174: 5.5 | M174: 6 | N174: 3.3
A175: MO19828 | B175: MO | C175: 1982-04-18 | D175: =COUNTIF(Calculations!$E$56:$E$98,"<="&DATE(2006,MONTH(C175),DAY(C175))) -> 8 | E175: 3.7 | F175: 4.2 | G175: 3.1 | H175: 2.2 | I175: 4 | J175: 4.4 | K175: 4 | L175: 6.4 | M175: 5.2 | N175: 3.6
A176: MO19829 | B176: MO | C176: 1982-04-25 | D176: =COUNTIF(Calculations!$E$56:$E$98,"<="&DATE(2006,MONTH(C176),DAY(C176))) -> 9 | E176: 4.3 | F176: 5.8 | G176: 3.4 | H176: 2.7 | I176: 5.9 | J176: 5.1 | K176: 4.2 | L176: 5.9 | M176: 5.6 | N176: 3
A177: MO198210 | B177: MO | C177: 1982-05-02 | D177: =COUNTIF(Calculations!$E$56:$E$98,"<="&DATE(2006,MONTH(C177),DAY(C177))) -> 10 | E177: 3.7 | F177: 4.1 | G177: 5.6 | H177: 5.2 | I177: 2.6 | J177: 4.3 | K177: 3.9 | L177: 2.4 | M177: 3.5 | N177: 1.6
A178: MO198211 | B178: MO | C178: 1982-05-09 | D178: =COUNTIF(Calculations!$E$56:$E$98,"<="&DATE(2006,MONTH(C178),DAY(C178))) -> 11 | E178: 4 | F178: 3.4 | G178: 4.1 | H178: 4 | I178: 3.1 | J178: 4.2 | K178: 5.3 | L178: 4.1 | M178: 5 | N178: 4.5
A179: MO198212 | B179: MO | C179: 1982-05-16 | D179: =COUNTIF(Calculations!$E$56:$E$98,"<="&DATE(2006,MONTH(C179),DAY(C179))) -> 12 | E179: 3.7 | F179: 2.1 | G179: 3.4 | H179: 4.5 | I179: 2 | J179: 4.2 | K179: 5.8 | L179: 3.3 | M179: 5.5 | N179: 5
A180: MO198213 | B180: MO | C180: 1982-05-23 | D180: =COUNTIF(Calculations!$E$56:$E$98,"<="&DATE(2006,MONTH(C180),DAY(C180))) -> 13 | E180: 2.7 | F180: 0.8 | G180: 0.6 | H180: 3.2 | I180: 1.4 | J180: 2.5 | K180: 5.3 | L180: 3.6 | M180: 4.3 | N180: 5.3
A181: MO198214 | B181: MO | C181: 1982-05-30 | D181: =COUNTIF(Calculations!$E$56:$E$98,"<="&DATE(2006,MONTH(C181),DAY(C181))) -> 14 | E181: 1.5 | F181: 0.2 | G181: 0.2 | H181: 0.5 | I181: 0.4 | J181: 0.9 | K181: 3.7 | L181: 2 | M181: 3.6 | N181: 4.3
A182: MO198215 | B182: MO | C182: 1982-06-06 | D182: =COUNTIF(Calculations!$E$56:$E$98,"<="&DATE(2006,MONTH(C182),DAY(C182))) -> 15 | E182: 0.9 | F182: 0.5 | G182: 0.1 | H182: 0 | I182: 0.1 | J182: 0.3 | K182: 1.3 | L182: 1.1 | M182: 1.8 | N182: 3.1
A183: MO198216 | B183: MO | C183: 1982-06-13 | D183: =COUNTIF(Calculations!$E$56:$E$98,"<="&DATE(2006,MONTH(C183),DAY(C183))) -> 16 | E183: 1.3 | F183: 0.7 | G183: 0.2 | H183: 0.2 | I183: 0.6 | J183: 0.6 | K183: 0.5 | L183: 3.1 | M183: 2.9 | N183: 4.3
A184: MO198217 | B184: MO | C184: 1982-06-20 | D184: =COUNTIF(Calculations!$E$56:$E$98,"<="&DATE(2006,MONTH(C184),DAY(C184))) -> 17 | E184: 1.6 | F184: 1.1 | G184: 0.8 | H184: 0.9 | I184: 1.2 | J184: 1.1 | K184: 1.4 | L184: 2.6 | M184: 3.4 | N184: 3.3
A185: MO198218 | B185: MO | C185: 1982-06-27 | D185: =COUNTIF(Calculations!$E$56:$E$98,"<="&DATE(2006,MONTH(C185),DAY(C185))) -> 18 | E185: 4.6 | F185: 5.5 | G185: 4.8 | H185: 4.3 | I185: 3.6 | J185: 3.7 | K185: 4.5 | L185: 3.7 | M185: 4.2 | N185: 5.3
A186: MO198219 | B186: MO | C186: 1982-07-04 | D186: =COUNTIF(Calculations!$E$56:$E$98,"<="&DATE(2006,MONTH(C186),DAY(C186))) -> 19 | E186: 3.8 | F186: 3.3 | G186: 4 | H186: 2.4 | I186: 4 | J186: 3.8 | K186: 4.2 | L186: 4.5 | M186: 4.5 | N186: 4.6
A187: MO198220 | B187: MO | C187: 1982-07-11 | D187: =COUNTIF(Calculations!$E$56:$E$98,"<="&DATE(2006,MONTH(C187),DAY(C187))) -> 20 | E187: 4.6 | F187: 4.7 | G187: 4.9 | H187: 3.5 | I187: 5.6 | J187: 5.7 | K187: 3.8 | L187: 6.1 | M187: 5.1 | N187: 4.1
A188: MO198221 | B188: MO | C188: 1982-07-18 | D188: =COUNTIF(Calculations!$E$56:$E$98,"<="&DATE(2006,MONTH(C188),DAY(C188))) -> 21 | E188: 4.2 | F188: 4.1 | G188: 3.8 | H188: 2.5 | I188: 3.8 | J188: 4.6 | K188: 4.3 | L188: 5.8 | M188: 6 | N188: 5.5
A189: MO198222 | B189: MO | C189: 1982-07-25 | D189: =COUNTIF(Calculations!$E$56:$E$98,"<="&DATE(2006,MONTH(C189),DAY(C189))) -> 22 | E189: 4.6 | F189: 3.9 | G189: 4 | H189: 2.2 | I189: 5.6 | J189: 6 | K189: 4.7 | L189: 6.4 | M189: 5.3 | N189: 5.8
A190: MO198223 | B190: MO | C190: 1982-08-01 | D190: =COUNTIF(Calculations!$E$56:$E$98,"<="&DATE(2006,MONTH(C190),DAY(C190))) -> 23 | E190: 5.9 | F190: 6.1 | G190: 6 | H190: 5.2 | I190: 6.5 | J190: 6.2 | K190: 5.8 | L190: 5.8 | M190: 6.6 | N190: 5.9
A191: MO198224 | B191: MO | C191: 1982-08-08 | D191: =COUNTIF(Calculations!$E$56:$E$98,"<="&DATE(2006,MONTH(C191),DAY(C191))) -> 24 | E191: 6 | F191: 5.9 | G191: 5.8 | H191: 5.4 | I191: 5.7 | J191: 6.2 | K191: 6 | L191: 5.6 | M191: 6.3 | N191: 6.5
A192: MO198225 | B192: MO | C192: 1982-08-15 | D192: =COUNTIF(Calculations!$E$56:$E$98,"<="&DATE(2006,MONTH(C192),DAY(C192))) -> 25 | E192: 3.4 | F192: 2.3 | G192: 3.2 | H192: 3.4 | I192: 2.5 | J192: 3.2 | K192: 4.3 | L192: 3.9 | M192: 4.3 | N192: 4.9
A193: MO198226 | B193: MO | C193: 1982-08-22 | D193: =COUNTIF(Calculations!$E$56:$E$98,"<="&DATE(2006,MONTH(C193),DAY(C193))) -> 26 | E193: 3.9 | F193: 2.6 | G193: 3.3 | H193: 3.3 | I193: 3.8 | J193: 4.7 | K193: 4.1 | L193: 4.9 | M193: 4.4 | N193: 5.2
A194: MO198227 | B194: MO | C194: 1982-08-29 | D194: =COUNTIF(Calculations!$E$56:$E$98,"<="&DATE(2006,MONTH(C194),DAY(C194))) -> 27 | E194: 2.1 | F194: 1.2 | G194: 1.7 | H194: 2.6 | I194: 2.3 | J194: 3.2 | K194: 2.5 | L194: 3.4 | M194: 2.8 | N194: 1.8
A195: MO198228 | B195: MO | C195: 1982-09-05 | D195: =COUNTIF(Calculations!$E$56:$E$98,"<="&DATE(2006,MONTH(C195),DAY(C195))) -> 28 | E195: 1.8 | F195: 0.9 | G195: 1 | H195: 1.1 | I195: 3.8 | J195: 1.4 | K195: 1.5 | L195: 3.9 | M195: 3.5 | N195: 2.4
A196: MO198229 | B196: MO | C196: 1982-09-12 | D196: =COUNTIF(Calculations!$E$56:$E$98,"<="&DATE(2006,MONTH(C196),DAY(C196))) -> 29 | E196: 5.9 | F196: 1.5 | G196: 1.4 | H196: 2.7 | I196: 5.4 | J196: 3.9 | K196: 3.7 | L196: 6.4 | M196: 6.3 | N196: 5.9
A197: =B197&YEAR(C197)&D197 -> MO198230 | B197: MO | C197: 1982-09-19 | D197: =COUNTIF(Calculations!$E$56:$E$98,"<="&DATE(2006,MONTH(C197),DAY(C197))) -> 30 | E197: 3 | F197: 2.5 | G197: 1.6 | H197: 3 | I197: 3 | J197: 2.1 | K197: 2.1 | L197: 5.3 | M197: 4.9 | N197: 4.6
A198: MO198231 | B198: MO | C198: 1982-09-26 | D198: =COUNTIF(Calculations!$E$56:$E$98,"<="&DATE(2006,MONTH(C198),DAY(C198))) -> 31 | E198: 4.5 | F198: 4.6 | G198: 3.7 | H198: 3.6 | I198: 4.8 | J198: 3.6 | K198: 3.7 | L198: 5.5 | M198: 5.6 | N198: 6.1
A199: MO198232 | B199: MO | C199: 1982-10-03 | D199: =COUNTIF(Calculations!$E$56:$E$98,"<="&DATE(2006,MONTH(C199),DAY(C199))) -> 32 | E199: 5.9 | F199: 5.8 | G199: 5.8 | H199: 5.6 | I199: 6.5 | J199: 5.8 | K199: 5.7 | L199: 6.4 | M199: 6.3 | N199: 6.2
A200: MO198233 | B200: MO | C200: 1982-10-10 | D200: =COUNTIF(Calculations!$E$56:$E$98,"<="&DATE(2006,MONTH(C200),DAY(C200))) -> 33 | E200: 4.8 | F200: 5.5 | G200: 5.4 | H200: 5.3 | I200: 3.3 | J200: 5 | K200: 3.9 | L200: 5.1 | M200: 5.1 | N200: 4
A201: MO198234 | B201: MO | C201: 1982-10-17 | D201: =COUNTIF(Calculations!$E$56:$E$98,"<="&DATE(2006,MONTH(C201),DAY(C201))) -> 34 | E201: 5 | F201: 4.9 | G201: 4.5 | H201: 4.8 | I201: 5.6 | J201: 6.1 | K201: 4.3 | L201: 5.6 | M201: 5.9 | N201: 4.6
... 5118 more rows

Sheet Sheet1 (hidden)
